Body Name,Body,Service Label,Service Code,CIPFA Detailed Expenditure Type,CIPFA Detailed Expenditure Code,Date,Transaction Number,Net Amount,Supplier Name
Nottinghamshire County Council,1111/1001,Children and Young People,CYP,Premises Related,BAA,01/08/2023,05-10066,"3,438.42",ARC Property Services Partnership L
Nottinghamshire County Council,1111/1001,Children and Young People,CYP,Premises Related,BAA,11/08/2023,05-11474,1187.52,ARC Property Services Partnership L
Nottinghamshire County Council,1111/1001,Children and Young People,CYP,Premises Related,BAA,11/08/2023,05-11773,5117.94,ARC Property Services Partnership L
Nottinghamshire County Council,1111/1001,Children and Young People,CYP,Premises Related,BCA,18/08/2023,05-18805,1404.3,High Park Industries Ltd
Nottinghamshire County Council,1111/1001,Children and Young People,CYP,Premises Related,BCA,24/08/2023,05-18952,3310.8,High Park Industries Ltd
Nottinghamshire County Council,1111/1001,Children and Young People,CYP,Premises Related,BDA,03/08/2023,05-10296,"14,632.54",Calder Conferences Ltd
Nottinghamshire County Council,1111/1001,Children and Young People,CYP,Premises Related,BDA,03/08/2023,05-18158,"4,458.34",Liberty Leisure Ltd
Nottinghamshire County Council,1111/1001,Children and Young People,CYP,Premises Related,BDA,04/08/2023,05-18256,3281.63,SLM Fitness & Health Ltd (Everyone
Nottinghamshire County Council,1111/1001,Children and Young People,CYP,Premises Related,BDA,14/08/2023,05-18404,"16,311.40",Ekmw Summit Centre
Nottinghamshire County Council,1111/1001,Children and Young People,CYP,Premises Related,BDA,18/08/2023,05-18688,775,Warsop Sporting Ltd
Nottinghamshire County Council,1111/1001,Children and Young People,CYP,Premises Related,BDA,18/08/2023,05-18806,"3,719.71",Quarrydale Academy
Nottinghamshire County Council,1111/1001,Children and Young People,CYP,Premises Related,BJA,25/08/2023,05-14482,1455.73,Enva England Ltd
Nottinghamshire County Council,1111/1001,Children and Young People,CYP,Transport Related,CAA,02/08/2023,05-10041,546.98,UK Fuels Ltd
Nottinghamshire County Council,1111/1001,Children and Young People,CYP,Transport Related,CAA,08/08/2023,05-11285,368.02,Via East Midlands Ltd
Nottinghamshire County Council,1111/1001,Children and Young People,CYP,Transport Related,CAA,08/08/2023,05-11291,58.32,Via East Midlands Ltd
Nottinghamshire County Council,1111/1001,Children and Young People,CYP,Transport Related,CAA,16/08/2023,05-11271,506,UK Fuels Ltd
Nottinghamshire County Council,1111/1001,Children and Young People,CYP,Transport Related,CAA,21/08/2023,05-13971,1103.57,Via East Midlands Ltd
Nottinghamshire County Council,1111/1001,Children and Young People,CYP,Transport Related,CAA,30/08/2023,05-12481,584.32,UK Fuels Ltd
Nottinghamshire County Council,1111/1001,Children and Young People,CYP,Transport Related,CAA,30/08/2023,05-17606,775,Via East Midlands Ltd
Nottinghamshire County Council,1111/1001,Children and Young People,CYP,Transport Related,CCA,03/08/2023,05-10038,1942.13,AJ's Travel
Nottinghamshire County Council,1111/1001,Children and Young People,CYP,Transport Related,CCA,04/08/2023,05-10880,23552.2,Erewash Community Transport
Nottinghamshire County Council,1111/1001,Children and Young People,CYP,Transport Related,CCA,04/08/2023,05-10881,20019.37,Erewash Community Transport
Nottinghamshire County Council,1111/1001,Children and Young People,CYP,Transport Related,CCA,08/08/2023,05-11413,"1,310.00",Elkingtons Park Garage
Nottinghamshire County Council,1111/1001,Children and Young People,CYP,Transport Related,CCA,08/08/2023,05-11416,660,Bingham Cabs
Nottinghamshire County Council,1111/1001,Children and Young People,CYP,Transport Related,CCA,08/08/2023,05-11417,2227.5,W Hollingsworth T/A Target Taxis
Nottinghamshire County Council,1111/1001,Children and Young People,CYP,Transport Related,CCA,08/08/2023,05-11419,742.5,W Hollingsworth T/A Target Taxis
Nottinghamshire County Council,1111/1001,Children and Young People,CYP,Transport Related,CCA,10/08/2023,05-11465,"1,902.25",Marks Transport Group Ltd
Nottinghamshire County Council,1111/1001,Children and Young People,CYP,Transport Related,CCA,11/08/2023,05-11696,"2,164.05",Taxicover Uk Ltd
Nottinghamshire County Council,1111/1001,Children and Young People,CYP,Transport Related,CCA,11/08/2023,05-11697,2752,Taxicover Uk Ltd
Nottinghamshire County Council,1111/1001,Children and Young People,CYP,Transport Related,CCA,11/08/2023,05-11698,"2,752.00",Taxicover Uk Ltd
Nottinghamshire County Council,1111/1001,Children and Young People,CYP,Transport Related,CCA,11/08/2023,05-11699,2352,Taxicover Uk Ltd
Nottinghamshire County Council,1111/1001,Children and Young People,CYP,Transport Related,CCA,11/08/2023,05-11700,"1,107.53",Southside Cars Ltd
Nottinghamshire County Council,1111/1001,Children and Young People,CYP,Transport Related,CCA,11/08/2023,05-11702,1545,Southside Cars Ltd
Nottinghamshire County Council,1111/1001,Children and Young People,CYP,Transport Related,CCA,11/08/2023,05-11703,1345.74,Southside Cars Ltd
Nottinghamshire County Council,1111/1001,Children and Young People,CYP,Transport Related,CCA,11/08/2023,05-11705,606.84,6 Five 2s
Nottinghamshire County Council,1111/1001,Children and Young People,CYP,Transport Related,CCA,11/08/2023,05-11707,"1,188.16",6 Five 2s
Nottinghamshire County Council,1111/1001,Children and Young People,CYP,Transport Related,CCA,11/08/2023,05-11709,"1,436.80",6 Five 2s
Nottinghamshire County Council,1111/1001,Children and Young People,CYP,Transport Related,CCA,11/08/2023,05-11710,840,6 Five 2s
Nottinghamshire County Council,1111/1001,Children and Young People,CYP,Transport Related,CCA,11/08/2023,05-11711,560,6 Five 2s
Nottinghamshire County Council,1111/1001,Children and Young People,CYP,Transport Related,CCA,11/08/2023,05-11712,700,6 Five 2s
Nottinghamshire County Council,1111/1001,Children and Young People,CYP,Transport Related,CCA,11/08/2023,05-11713,980,6 Five 2s
Nottinghamshire County Council,1111/1001,Children and Young People,CYP,Transport Related,CCA,11/08/2023,05-11714,2184.28,6 Five 2s
Nottinghamshire County Council,1111/1001,Children and Young People,CYP,Transport Related,CCA,11/08/2023,05-11715,738.3,6 Five 2s
Nottinghamshire County Council,1111/1001,Children and Young People,CYP,Transport Related,CCA,11/08/2023,05-11717,928,6 Five 2s
Nottinghamshire County Council,1111/1001,Children and Young People,CYP,Transport Related,CCA,11/08/2023,05-11718,"2,080.29",All Wayz Travel
Nottinghamshire County Council,1111/1001,Children and Young People,CYP,Transport Related,CCA,11/08/2023,05-11719,"3,091.00",All Wayz Travel
Nottinghamshire County Council,1111/1001,Children and Young People,CYP,Transport Related,CCA,11/08/2023,05-11720,2164.1,All Wayz Travel
Nottinghamshire County Council,1111/1001,Children and Young People,CYP,Transport Related,CCA,11/08/2023,05-11721,"3,000.00",All Wayz Travel
Nottinghamshire County Council,1111/1001,Children and Young People,CYP,Transport Related,CCA,11/08/2023,05-11722,"3,358.86",All Wayz Travel
Nottinghamshire County Council,1111/1001,Children and Young People,CYP,Transport Related,CCA,11/08/2023,05-11723,1120,All Wayz Travel
Nottinghamshire County Council,1111/1001,Children and Young People,CYP,Transport Related,CCA,11/08/2023,05-11724,"2,669.00",Central Cars (Nottm) Ltd
Nottinghamshire County Council,1111/1001,Children and Young People,CYP,Transport Related,CCA,11/08/2023,05-11725,3217.2,Glenn Ryder Coaches
Nottinghamshire County Council,1111/1001,Children and Young People,CYP,Transport Related,CCA,11/08/2023,05-11726,3217.2,Glenn Ryder Coaches
Nottinghamshire County Council,1111/1001,Children and Young People,CYP,Transport Related,CCA,11/08/2023,05-11727,"4,265.25",Glenn Ryder Coaches
Nottinghamshire County Council,1111/1001,Children and Young People,CYP,Transport Related,CCA,11/08/2023,05-11728,2760.8,Martins Travel
Nottinghamshire County Council,1111/1001,Children and Young People,CYP,Transport Related,CCA,11/08/2023,05-11730,"2,752.00",Horizon Travel
Nottinghamshire County Council,1111/1001,Children and Young People,CYP,Transport Related,CCA,11/08/2023,05-11732,614.16,Ng11 Cars
Nottinghamshire County Council,1111/1001,Children and Young People,CYP,Transport Related,CCA,11/08/2023,05-11733,975,Ng11 Cars
Nottinghamshire County Council,1111/1001,Children and Young People,CYP,Transport Related,CCA,11/08/2023,05-11734,936,Ng11 Cars
Nottinghamshire County Council,1111/1001,Children and Young People,CYP,Transport Related,CCA,11/08/2023,05-11735,2250,Ng11 Cars
Nottinghamshire County Council,1111/1001,Children and Young People,CYP,Transport Related,CCA,11/08/2023,05-11736,1650,Ng11 Cars
Nottinghamshire County Council,1111/1001,Children and Young People,CYP,Transport Related,CCA,11/08/2023,05-11737,"1,018.35",Ng11 Cars
Nottinghamshire County Council,1111/1001,Children and Young People,CYP,Transport Related,CCA,11/08/2023,05-11738,1350,Ng11 Cars
Nottinghamshire County Council,1111/1001,Children and Young People,CYP,Transport Related,CCA,11/08/2023,05-11739,819.98,Ng11 Cars
Nottinghamshire County Council,1111/1001,Children and Young People,CYP,Transport Related,CCA,11/08/2023,05-11740,1861.67,Ng11 Cars
Nottinghamshire County Council,1111/1001,Children and Young People,CYP,Transport Related,CCA,11/08/2023,05-11741,3060,Ng11 Cars
Nottinghamshire County Council,1111/1001,Children and Young People,CYP,Transport Related,CCA,11/08/2023,05-11742,"3,840.00",Vallances Coaches
Nottinghamshire County Council,1111/1001,Children and Young People,CYP,Transport Related,CCA,11/08/2023,05-11743,3672,Vallances Coaches
Nottinghamshire County Council,1111/1001,Children and Young People,CYP,Transport Related,CCA,11/08/2023,05-11744,4080,Vallances Coaches
Nottinghamshire County Council,1111/1001,Children and Young People,CYP,Transport Related,CCA,11/08/2023,05-11745,3326.72,Vallances Coaches
Nottinghamshire County Council,1111/1001,Children and Young People,CYP,Transport Related,CCA,11/08/2023,05-11746,4243.2,Vallances Coaches
Nottinghamshire County Council,1111/1001,Children and Young People,CYP,Transport Related,CCA,11/08/2023,05-11747,3421.05,Vallances Coaches
Nottinghamshire County Council,1111/1001,Children and Young People,CYP,Transport Related,CCA,11/08/2023,05-11748,3383.17,Midfield Travel
Nottinghamshire County Council,1111/1001,Children and Young People,CYP,Transport Related,CCA,11/08/2023,05-11749,3168.8,Midfield Travel
Nottinghamshire County Council,1111/1001,Children and Young People,CYP,Transport Related,CCA,11/08/2023,05-11751,3792.8,AOT Coaches Nottingham LLP
Nottinghamshire County Council,1111/1001,Children and Young People,CYP,Transport Related,CCA,11/08/2023,05-11752,8264.07,AOT Coaches Nottingham LLP
Nottinghamshire County Council,1111/1001,Children and Young People,CYP,Transport Related,CCA,11/08/2023,05-11753,3164,AOT Coaches Nottingham LLP
Nottinghamshire County Council,1111/1001,Children and Young People,CYP,Transport Related,CCA,11/08/2023,05-11754,1672.56,Bryans Taxis
Nottinghamshire County Council,1111/1001,Children and Young People,CYP,Transport Related,CCA,11/08/2023,05-11756,7869.45,Wilfreda Beehive
Nottinghamshire County Council,1111/1001,Children and Young People,CYP,Transport Related,CCA,11/08/2023,05-11757,1995,Wilfreda Beehive
Nottinghamshire County Council,1111/1001,Children and Young People,CYP,Transport Related,CCA,11/08/2023,05-11761,10368.05,C W Moxon Ltd
Nottinghamshire County Council,1111/1001,Children and Young People,CYP,Transport Related,CCA,11/08/2023,05-11765,2829.15,L A Travel
Nottinghamshire County Council,1111/1001,Children and Young People,CYP,Transport Related,CCA,11/08/2023,05-11767,2703,Travel Liner
Nottinghamshire County Council,1111/1001,Children and Young People,CYP,Transport Related,CCA,11/08/2023,05-11768,1785,Sean's Taxi Services
Nottinghamshire County Council,1111/1001,Children and Young People,CYP,Transport Related,CCA,11/08/2023,05-11769,840,Nottingham Cars Ltd
Nottinghamshire County Council,1111/1001,Children and Young People,CYP,Transport Related,CCA,11/08/2023,05-11771,660,Ideal Cars (Private Hire) Ltd
Nottinghamshire County Council,1111/1001,Children and Young People,CYP,Transport Related,CCA,11/08/2023,05-11772,1034,Ideal Cars (Private Hire) Ltd
Nottinghamshire County Council,1111/1001,Children and Young People,CYP,Transport Related,CCA,11/08/2023,05-11778,960,Ideal Cars (Private Hire) Ltd
Nottinghamshire County Council,1111/1001,Children and Young People,CYP,Transport Related,CCA,11/08/2023,05-11781,2288,Ideal Cars (Private Hire) Ltd
Nottinghamshire County Council,1111/1001,Children and Young People,CYP,Transport Related,CCA,11/08/2023,05-11782,2220,A Travel
Nottinghamshire County Council,1111/1001,Children and Young People,CYP,Transport Related,CCA,11/08/2023,05-11783,1870,Gxpress Cars
Nottinghamshire County Council,1111/1001,Children and Young People,CYP,Transport Related,CCA,11/08/2023,05-11784,1050,Gxpress Cars
Nottinghamshire County Council,1111/1001,Children and Young People,CYP,Transport Related,CCA,11/08/2023,05-11786,3083.8,APC Travel
Nottinghamshire County Council,1111/1001,Children and Young People,CYP,Transport Related,CCA,11/08/2023,05-11787,2583.6,Unity Coaches Ltd
Nottinghamshire County Council,1111/1001,Children and Young People,CYP,Transport Related,CCA,11/08/2023,05-11790,7425,Vectare Ltd
Nottinghamshire County Council,1111/1001,Children and Young People,CYP,Transport Related,CCA,11/08/2023,05-11791,3662.82,Vectare Ltd
Nottinghamshire County Council,1111/1001,Children and Young People,CYP,Transport Related,CCA,11/08/2023,05-11792,4793.4,Vectare Ltd
Nottinghamshire County Council,1111/1001,Children and Young People,CYP,Transport Related,CCA,11/08/2023,05-11795,2890,Carriage Solutions Ltd
Nottinghamshire County Council,1111/1001,Children and Young People,CYP,Transport Related,CCA,11/08/2023,05-11798,3960,Home James Cars
Nottinghamshire County Council,1111/1001,Children and Young People,CYP,Transport Related,CCA,11/08/2023,05-11799,2210,Home James Cars
Nottinghamshire County Council,1111/1001,Children and Young People,CYP,Transport Related,CCA,11/08/2023,05-11800,3740,Home James Cars
Nottinghamshire County Council,1111/1001,Children and Young People,CYP,Transport Related,CCA,11/08/2023,05-11801,1600,Home James Cars
Nottinghamshire County Council,1111/1001,Children and Young People,CYP,Transport Related,CCA,11/08/2023,05-11802,1329.4,A Place To Call Our Own Ltd
Nottinghamshire County Council,1111/1001,Children and Young People,CYP,Transport Related,CCA,11/08/2023,05-11803,3515.6,D n K Travel
Nottinghamshire County Council,1111/1001,Children and Young People,CYP,Transport Related,CCA,11/08/2023,05-11804,1843.5,W Hollingsworth T/A Target Taxis
Nottinghamshire County Council,1111/1001,Children and Young People,CYP,Transport Related,CCA,11/08/2023,05-11805,1275,NCT Newark Community Taxis
Nottinghamshire County Council,1111/1001,Children and Young People,CYP,Transport Related,CCA,11/08/2023,05-11806,1855,NCT Newark Community Taxis
Nottinghamshire County Council,1111/1001,Children and Young People,CYP,Transport Related,CCA,14/08/2023,05-12184,2762.33,Sharpes Of Nottingham
Nottinghamshire County Council,1111/1001,Children and Young People,CYP,Transport Related,CCA,14/08/2023,05-12185,2783.25,Sharpes Of Nottingham
Nottinghamshire County Council,1111/1001,Children and Young People,CYP,Transport Related,CCA,14/08/2023,05-12186,3359.5,Sharpes Of Nottingham
Nottinghamshire County Council,1111/1001,Children and Young People,CYP,Transport Related,CCA,14/08/2023,05-12187,3128.7,Sharpes Of Nottingham
Nottinghamshire County Council,1111/1001,Children and Young People,CYP,Transport Related,CCA,14/08/2023,05-12188,3690.5,Sharpes Of Nottingham
Nottinghamshire County Council,1111/1001,Children and Young People,CYP,Transport Related,CCA,14/08/2023,05-12189,3500.5,Sharpes Of Nottingham
Nottinghamshire County Council,1111/1001,Children and Young People,CYP,Transport Related,CCA,14/08/2023,05-12190,3357.5,Sharpes Of Nottingham
Nottinghamshire County Council,1111/1001,Children and Young People,CYP,Transport Related,CCA,14/08/2023,05-12191,571.14,Southside Cars Ltd
Nottinghamshire County Council,1111/1001,Children and Young People,CYP,Transport Related,CCA,14/08/2023,05-12192,3721.3,Southside Cars Ltd
Nottinghamshire County Council,1111/1001,Children and Young People,CYP,Transport Related,CCA,14/08/2023,05-12193,1819,Southside Cars Ltd
Nottinghamshire County Council,1111/1001,Children and Young People,CYP,Transport Related,CCA,14/08/2023,05-12194,"2,516.00",Southside Cars Ltd
Nottinghamshire County Council,1111/1001,Children and Young People,CYP,Transport Related,CCA,14/08/2023,05-12196,2358.24,Southside Cars Ltd
Nottinghamshire County Council,1111/1001,Children and Young People,CYP,Transport Related,CCA,14/08/2023,05-12197,2132.25,Southside Cars Ltd
Nottinghamshire County Council,1111/1001,Children and Young People,CYP,Transport Related,CCA,14/08/2023,05-12198,"1,050.18",Southside Cars Ltd
Nottinghamshire County Council,1111/1001,Children and Young People,CYP,Transport Related,CCA,14/08/2023,05-12199,"2,355.08",Southside Cars Ltd
Nottinghamshire County Council,1111/1001,Children and Young People,CYP,Transport Related,CCA,14/08/2023,05-12200,973.76,Southside Cars Ltd
Nottinghamshire County Council,1111/1001,Children and Young People,CYP,Transport Related,CCA,14/08/2023,05-12201,1735.02,Southside Cars Ltd
Nottinghamshire County Council,1111/1001,Children and Young People,CYP,Transport Related,CCA,14/08/2023,05-12202,"2,524.67",Southside Cars Ltd
Nottinghamshire County Council,1111/1001,Children and Young People,CYP,Transport Related,CCA,14/08/2023,05-12203,922.93,Southside Cars Ltd
Nottinghamshire County Council,1111/1001,Children and Young People,CYP,Transport Related,CCA,14/08/2023,05-12204,2146.08,Southside Cars Ltd
Nottinghamshire County Council,1111/1001,Children and Young People,CYP,Transport Related,CCA,14/08/2023,05-12206,1730.7,Southside Cars Ltd
Nottinghamshire County Council,1111/1001,Children and Young People,CYP,Transport Related,CCA,14/08/2023,05-12207,1360,Southside Cars Ltd
Nottinghamshire County Council,1111/1001,Children and Young People,CYP,Transport Related,CCA,14/08/2023,05-12211,"1,920.00",Southside Cars Ltd
Nottinghamshire County Council,1111/1001,Children and Young People,CYP,Transport Related,CCA,14/08/2023,05-12212,"2,290.24",Southside Cars Ltd
Nottinghamshire County Council,1111/1001,Children and Young People,CYP,Transport Related,CCA,14/08/2023,05-12213,"2,273.70",Southside Cars Ltd
Nottinghamshire County Council,1111/1001,Children and Young People,CYP,Transport Related,CCA,14/08/2023,05-12214,2135.2,Southside Cars Ltd
Nottinghamshire County Council,1111/1001,Children and Young People,CYP,Transport Related,CCA,14/08/2023,05-12218,"3,856.50",Johnson Bros Tours Ltd
Nottinghamshire County Council,1111/1001,Children and Young People,CYP,Transport Related,CCA,14/08/2023,05-12219,3493.05,Johnson Bros Tours Ltd
Nottinghamshire County Council,1111/1001,Children and Young People,CYP,Transport Related,CCA,14/08/2023,05-12220,"4,875.00",Johnson Bros Tours Ltd
Nottinghamshire County Council,1111/1001,Children and Young People,CYP,Transport Related,CCA,14/08/2023,05-12221,"4,587.00",Johnson Bros Tours Ltd
Nottinghamshire County Council,1111/1001,Children and Young People,CYP,Transport Related,CCA,14/08/2023,05-12222,"7,971.30",Johnson Bros Tours Ltd
Nottinghamshire County Council,1111/1001,Children and Young People,CYP,Transport Related,CCA,14/08/2023,05-12223,7702.66,Johnson Bros Tours Ltd
Nottinghamshire County Council,1111/1001,Children and Young People,CYP,Transport Related,CCA,14/08/2023,05-12225,"1,591.20",200 Cars Ltd
Nottinghamshire County Council,1111/1001,Children and Young People,CYP,Transport Related,CCA,14/08/2023,05-12226,930,200 Cars Ltd
Nottinghamshire County Council,1111/1001,Children and Young People,CYP,Transport Related,CCA,14/08/2023,05-12227,510,200 Cars Ltd
Nottinghamshire County Council,1111/1001,Children and Young People,CYP,Transport Related,CCA,14/08/2023,05-12229,"1,360.00",200 Cars Ltd
Nottinghamshire County Council,1111/1001,Children and Young People,CYP,Transport Related,CCA,14/08/2023,05-12230,800,200 Cars Ltd
Nottinghamshire County Council,1111/1001,Children and Young People,CYP,Transport Related,CCA,14/08/2023,05-12231,"1,190.00",200 Cars Ltd
Nottinghamshire County Council,1111/1001,Children and Young People,CYP,Transport Related,CCA,14/08/2023,05-12232,700.2,200 Cars Ltd
Nottinghamshire County Council,1111/1001,Children and Young People,CYP,Transport Related,CCA,14/08/2023,05-12233,910,200 Cars Ltd
Nottinghamshire County Council,1111/1001,Children and Young People,CYP,Transport Related,CCA,14/08/2023,05-12235,797.5,Ace Of Mansfield Ltd
Nottinghamshire County Council,1111/1001,Children and Young People,CYP,Transport Related,CCA,14/08/2023,05-12238,716.1,Acorn Contracts
Nottinghamshire County Council,1111/1001,Children and Young People,CYP,Transport Related,CCA,14/08/2023,05-12239,1713.6,Acorn Contracts
Nottinghamshire County Council,1111/1001,Children and Young People,CYP,Transport Related,CCA,14/08/2023,05-12240,1224,Acorn Contracts
Nottinghamshire County Council,1111/1001,Children and Young People,CYP,Transport Related,CCA,14/08/2023,05-12242,1701.83,Alpha Cars
Nottinghamshire County Council,1111/1001,Children and Young People,CYP,Transport Related,CCA,14/08/2023,05-12243,"2,814.40",Alpha Cars
Nottinghamshire County Council,1111/1001,Children and Young People,CYP,Transport Related,CCA,14/08/2023,05-12244,2444,Alpha Cars
Nottinghamshire County Council,1111/1001,Children and Young People,CYP,Transport Related,CCA,14/08/2023,05-12245,1713.26,Alpha Cars
Nottinghamshire County Council,1111/1001,Children and Young People,CYP,Transport Related,CCA,14/08/2023,05-12246,1005.48,Alpha Cars
Nottinghamshire County Council,1111/1001,Children and Young People,CYP,Transport Related,CCA,14/08/2023,05-12247,1630.4,Alpha Cars
Nottinghamshire County Council,1111/1001,Children and Young People,CYP,Transport Related,CCA,14/08/2023,05-12251,1920,Alpha Cars
Nottinghamshire County Council,1111/1001,Children and Young People,CYP,Transport Related,CCA,14/08/2023,05-12255,2043.6,Alpha Cars
Nottinghamshire County Council,1111/1001,Children and Young People,CYP,Transport Related,CCA,14/08/2023,05-12257,"1,872.00",Alpha Cars
Nottinghamshire County Council,1111/1001,Children and Young People,CYP,Transport Related,CCA,14/08/2023,05-12258,"3,841.15",Arrow Specialised Transport Ltd
Nottinghamshire County Council,1111/1001,Children and Young People,CYP,Transport Related,CCA,14/08/2023,05-12259,"3,283.20",Arrow Specialised Transport Ltd
Nottinghamshire County Council,1111/1001,Children and Young People,CYP,Transport Related,CCA,14/08/2023,05-12260,"3,485.17",Arrow Specialised Transport Ltd
Nottinghamshire County Council,1111/1001,Children and Young People,CYP,Transport Related,CCA,14/08/2023,05-12261,3372.63,Arrow Specialised Transport Ltd
Nottinghamshire County Council,1111/1001,Children and Young People,CYP,Transport Related,CCA,14/08/2023,05-12262,"2,233.80",Arrow Specialised Transport Ltd
Nottinghamshire County Council,1111/1001,Children and Young People,CYP,Transport Related,CCA,14/08/2023,05-12263,"2,308.32",Arrow Specialised Transport Ltd
Nottinghamshire County Council,1111/1001,Children and Young People,CYP,Transport Related,CCA,14/08/2023,05-12264,4424,Arrow Specialised Transport Ltd
Nottinghamshire County Council,1111/1001,Children and Young People,CYP,Transport Related,CCA,14/08/2023,05-12265,4496,Arrow Specialised Transport Ltd
Nottinghamshire County Council,1111/1001,Children and Young People,CYP,Transport Related,CCA,14/08/2023,05-12266,4436,Arrow Specialised Transport Ltd
Nottinghamshire County Council,1111/1001,Children and Young People,CYP,Transport Related,CCA,14/08/2023,05-12267,3432,Arrow Specialised Transport Ltd
Nottinghamshire County Council,1111/1001,Children and Young People,CYP,Transport Related,CCA,14/08/2023,05-12268,"3,691.84",Arrow Specialised Transport Ltd
Nottinghamshire County Council,1111/1001,Children and Young People,CYP,Transport Related,CCA,14/08/2023,05-12269,"2,135.20",Arrow Specialised Transport Ltd
Nottinghamshire County Council,1111/1001,Children and Young People,CYP,Transport Related,CCA,14/08/2023,05-12270,"3,034.88",Arrow Specialised Transport Ltd
Nottinghamshire County Council,1111/1001,Children and Young People,CYP,Transport Related,CCA,14/08/2023,05-12271,"2,587.52",Arrow Specialised Transport Ltd
Nottinghamshire County Council,1111/1001,Children and Young People,CYP,Transport Related,CCA,14/08/2023,05-12272,"2,325.28",Arrow Specialised Transport Ltd
Nottinghamshire County Council,1111/1001,Children and Young People,CYP,Transport Related,CCA,14/08/2023,05-12273,"3,196.80",Arrow Specialised Transport Ltd
Nottinghamshire County Council,1111/1001,Children and Young People,CYP,Transport Related,CCA,14/08/2023,05-12274,"2,695.20",Arrow Specialised Transport Ltd
Nottinghamshire County Council,1111/1001,Children and Young People,CYP,Transport Related,CCA,14/08/2023,05-12275,"1,955.36",Arrow Specialised Transport Ltd
Nottinghamshire County Council,1111/1001,Children and Young People,CYP,Transport Related,CCA,14/08/2023,05-12276,"2,814.08",Arrow Specialised Transport Ltd
Nottinghamshire County Council,1111/1001,Children and Young People,CYP,Transport Related,CCA,14/08/2023,05-12277,"2,985.92",Arrow Specialised Transport Ltd
Nottinghamshire County Council,1111/1001,Children and Young People,CYP,Transport Related,CCA,14/08/2023,05-12278,"2,348.80",Arrow Specialised Transport Ltd
Nottinghamshire County Council,1111/1001,Children and Young People,CYP,Transport Related,CCA,14/08/2023,05-12280,"1,343.00",Arrow Specialised Transport Ltd
Nottinghamshire County Council,1111/1001,Children and Young People,CYP,Transport Related,CCA,14/08/2023,05-12281,"2,094.74",Arrow Specialised Transport Ltd
Nottinghamshire County Council,1111/1001,Children and Young People,CYP,Transport Related,CCA,14/08/2023,05-12282,"3,283.38",Arrow Specialised Transport Ltd
Nottinghamshire County Council,1111/1001,Children and Young People,CYP,Transport Related,CCA,14/08/2023,05-12283,"3,053.54",Arrow Specialised Transport Ltd
Nottinghamshire County Council,1111/1001,Children and Young People,CYP,Transport Related,CCA,14/08/2023,05-12284,"2,152.71",Arrow Specialised Transport Ltd
Nottinghamshire County Council,1111/1001,Children and Young People,CYP,Transport Related,CCA,14/08/2023,05-12285,"3,038.24",Arrow Specialised Transport Ltd
Nottinghamshire County Council,1111/1001,Children and Young People,CYP,Transport Related,CCA,14/08/2023,05-12287,"1,690.65",Arrow Specialised Transport Ltd
Nottinghamshire County Council,1111/1001,Children and Young People,CYP,Transport Related,CCA,14/08/2023,05-12288,"1,700.85",Arrow Specialised Transport Ltd
Nottinghamshire County Council,1111/1001,Children and Young People,CYP,Transport Related,CCA,14/08/2023,05-12289,"2,355.45",Arrow Specialised Transport Ltd
Nottinghamshire County Council,1111/1001,Children and Young People,CYP,Transport Related,CCA,14/08/2023,05-12290,"2,417.40",Arrow Specialised Transport Ltd
Nottinghamshire County Council,1111/1001,Children and Young People,CYP,Transport Related,CCA,14/08/2023,05-12291,"2,448.00",Arrow Specialised Transport Ltd
Nottinghamshire County Council,1111/1001,Children and Young People,CYP,Transport Related,CCA,14/08/2023,05-12292,"2,371.50",Arrow Specialised Transport Ltd
Nottinghamshire County Council,1111/1001,Children and Young People,CYP,Transport Related,CCA,14/08/2023,05-12293,"3,862.05",Arrow Specialised Transport Ltd
Nottinghamshire County Council,1111/1001,Children and Young People,CYP,Transport Related,CCA,14/08/2023,05-12294,"4,312.80",Arrow Specialised Transport Ltd
Nottinghamshire County Council,1111/1001,Children and Young People,CYP,Transport Related,CCA,14/08/2023,05-12295,"2,220.75",Arrow Specialised Transport Ltd
Nottinghamshire County Council,1111/1001,Children and Young People,CYP,Transport Related,CCA,14/08/2023,05-12296,"2,217.75",Arrow Specialised Transport Ltd
Nottinghamshire County Council,1111/1001,Children and Young People,CYP,Transport Related,CCA,14/08/2023,05-12297,"4,641.00",Arrow Specialised Transport Ltd
Nottinghamshire County Council,1111/1001,Children and Young People,CYP,Transport Related,CCA,14/08/2023,05-12298,"4,241.50",Arrow Specialised Transport Ltd
Nottinghamshire County Council,1111/1001,Children and Young People,CYP,Transport Related,CCA,14/08/2023,05-12299,"2,201.50",Arrow Specialised Transport Ltd
Nottinghamshire County Council,1111/1001,Children and Young People,CYP,Transport Related,CCA,14/08/2023,05-12300,"1,983.60",Arrow Specialised Transport Ltd
Nottinghamshire County Council,1111/1001,Children and Young People,CYP,Transport Related,CCA,14/08/2023,05-12301,"1,441.50",Arrow Specialised Transport Ltd
Nottinghamshire County Council,1111/1001,Children and Young People,CYP,Transport Related,CCA,14/08/2023,05-12302,"2,100.45",Arrow Specialised Transport Ltd
Nottinghamshire County Council,1111/1001,Children and Young People,CYP,Transport Related,CCA,14/08/2023,05-12303,"3,604.68",Arrow Specialised Transport Ltd
Nottinghamshire County Council,1111/1001,Children and Young People,CYP,Transport Related,CCA,14/08/2023,05-12304,"3,007.13",Arrow Specialised Transport Ltd
Nottinghamshire County Council,1111/1001,Children and Young People,CYP,Transport Related,CCA,14/08/2023,05-12305,"3,804.37",Arrow Specialised Transport Ltd
Nottinghamshire County Council,1111/1001,Children and Young People,CYP,Transport Related,CCA,14/08/2023,05-12306,"5,031.58",Arrow Specialised Transport Ltd
Nottinghamshire County Council,1111/1001,Children and Young People,CYP,Transport Related,CCA,14/08/2023,05-12308,"6,064.75",Arrow Specialised Transport Ltd
Nottinghamshire County Council,1111/1001,Children and Young People,CYP,Transport Related,CCA,14/08/2023,05-12309,"6,959.80",Arrow Specialised Transport Ltd
Nottinghamshire County Council,1111/1001,Children and Young People,CYP,Transport Related,CCA,14/08/2023,05-12310,"2,176.17",Arrow Specialised Transport Ltd
Nottinghamshire County Council,1111/1001,Children and Young People,CYP,Transport Related,CCA,14/08/2023,05-12311,"4,921.50",Arrow Specialised Transport Ltd
Nottinghamshire County Council,1111/1001,Children and Young People,CYP,Transport Related,CCA,14/08/2023,05-12312,"3,410.40",Arrow Specialised Transport Ltd
Nottinghamshire County Council,1111/1001,Children and Young People,CYP,Transport Related,CCA,14/08/2023,05-12313,"2,713.20",Bridges Transport Ltd
Nottinghamshire County Council,1111/1001,Children and Young People,CYP,Transport Related,CCA,14/08/2023,05-12314,"2,109.87",Bridges Transport Ltd
Nottinghamshire County Council,1111/1001,Children and Young People,CYP,Transport Related,CCA,14/08/2023,05-12315,"2,736.90",Bridges Transport Ltd
Nottinghamshire County Council,1111/1001,Children and Young People,CYP,Transport Related,CCA,14/08/2023,05-12316,870,D G Private Hire Ltd
Nottinghamshire County Council,1111/1001,Children and Young People,CYP,Transport Related,CCA,14/08/2023,05-12317,850,D G Private Hire Ltd
Nottinghamshire County Council,1111/1001,Children and Young People,CYP,Transport Related,CCA,14/08/2023,05-12319,"1,003.00",D G Private Hire Ltd
Nottinghamshire County Council,1111/1001,Children and Young People,CYP,Transport Related,CCA,14/08/2023,05-12321,"1,200.00",D G Private Hire Ltd
Nottinghamshire County Council,1111/1001,Children and Young People,CYP,Transport Related,CCA,14/08/2023,05-12322,779.7,D G Private Hire Ltd
Nottinghamshire County Council,1111/1001,Children and Young People,CYP,Transport Related,CCA,14/08/2023,05-12323,"1,200.00",D G Private Hire Ltd
Nottinghamshire County Council,1111/1001,Children and Young People,CYP,Transport Related,CCA,14/08/2023,05-12324,"2,100.00",D G Private Hire Ltd
Nottinghamshire County Council,1111/1001,Children and Young People,CYP,Transport Related,CCA,14/08/2023,05-12326,"1,530.00",D G Private Hire Ltd
Nottinghamshire County Council,1111/1001,Children and Young People,CYP,Transport Related,CCA,14/08/2023,05-12327,"1,530.00",D G Private Hire Ltd
Nottinghamshire County Council,1111/1001,Children and Young People,CYP,Transport Related,CCA,14/08/2023,05-12328,"1,280.00",D G Private Hire Ltd
Nottinghamshire County Council,1111/1001,Children and Young People,CYP,Transport Related,CCA,14/08/2023,05-12329,720,D G Private Hire Ltd
Nottinghamshire County Council,1111/1001,Children and Young People,CYP,Transport Related,CCA,14/08/2023,05-12330,"4,410.45",Gem Mini Travel Ltd
Nottinghamshire County Council,1111/1001,Children and Young People,CYP,Transport Related,CCA,14/08/2023,05-12331,"4,004.05",Gem Mini Travel Ltd
Nottinghamshire County Council,1111/1001,Children and Young People,CYP,Transport Related,CCA,14/08/2023,05-12332,"3,720.45",Gem Mini Travel Ltd
Nottinghamshire County Council,1111/1001,Children and Young People,CYP,Transport Related,CCA,14/08/2023,05-12333,"4,321.75",Gem Mini Travel Ltd
Nottinghamshire County Council,1111/1001,Children and Young People,CYP,Transport Related,CCA,14/08/2023,05-12334,"4,210.95",Gem Mini Travel Ltd
Nottinghamshire County Council,1111/1001,Children and Young People,CYP,Transport Related,CCA,14/08/2023,05-12335,"3,378.75",Gem Mini Travel Ltd
Nottinghamshire County Council,1111/1001,Children and Young People,CYP,Transport Related,CCA,14/08/2023,05-12336,"3,889.56",Gem Mini Travel Ltd
Nottinghamshire County Council,1111/1001,Children and Young People,CYP,Transport Related,CCA,14/08/2023,05-12337,"2,586.30",Gem Mini Travel Ltd
Nottinghamshire County Council,1111/1001,Children and Young People,CYP,Transport Related,CCA,14/08/2023,05-12339,"2,794.65",JB Tours Watnall Ltd
Nottinghamshire County Council,1111/1001,Children and Young People,CYP,Transport Related,CCA,14/08/2023,05-12340,"2,843.55",JB Tours Watnall Ltd
Nottinghamshire County Council,1111/1001,Children and Young People,CYP,Transport Related,CCA,14/08/2023,05-12346,"2,561.40",Nottingham Minibuses & Coaches
Nottinghamshire County Council,1111/1001,Children and Young People,CYP,Transport Related,CCA,14/08/2023,05-12350,"1,949.85",Nottingham Minibuses & Coaches
Nottinghamshire County Council,1111/1001,Children and Young People,CYP,Transport Related,CCA,14/08/2023,05-12351,"1,855.21",Nottingham Minibuses & Coaches
Nottinghamshire County Council,1111/1001,Children and Young People,CYP,Transport Related,CCA,14/08/2023,05-12354,"2,437.35",Silverdale Tours Nottm Ltd
Nottinghamshire County Council,1111/1001,Children and Young People,CYP,Transport Related,CCA,14/08/2023,05-12355,"2,632.20",Silverdale Tours Nottm Ltd
Nottinghamshire County Council,1111/1001,Children and Young People,CYP,Transport Related,CCA,14/08/2023,05-12356,"2,648.55",Silverdale Tours Nottm Ltd
Nottinghamshire County Council,1111/1001,Children and Young People,CYP,Transport Related,CCA,14/08/2023,05-12357,"4,575.00",Silverdale Tours Nottm Ltd
Nottinghamshire County Council,1111/1001,Children and Young People,CYP,Transport Related,CCA,14/08/2023,05-12362,"2,925.92",Stagecoach Services Ltd
Nottinghamshire County Council,1111/1001,Children and Young People,CYP,Transport Related,CCA,14/08/2023,05-12367,"4,737.24",Stagecoach Services Ltd
Nottinghamshire County Council,1111/1001,Children and Young People,CYP,Transport Related,CCA,14/08/2023,05-12369,"2,781.20",Stagecoach Services Ltd
Nottinghamshire County Council,1111/1001,Children and Young People,CYP,Transport Related,CCA,14/08/2023,05-12371,"5,904.75",Stagecoach Services Ltd
Nottinghamshire County Council,1111/1001,Children and Young People,CYP,Transport Related,CCA,14/08/2023,05-12373,"4,719.00",Stagecoach Services Ltd
Nottinghamshire County Council,1111/1001,Children and Young People,CYP,Transport Related,CCA,14/08/2023,05-12376,"3,485.00",Stagecoach Services Ltd
Nottinghamshire County Council,1111/1001,Children and Young People,CYP,Transport Related,CCA,14/08/2023,05-12377,"4,265.00",Stagecoach Services Ltd
Nottinghamshire County Council,1111/1001,Children and Young People,CYP,Transport Related,CCA,14/08/2023,05-12378,"1,599.00",Stagecoach Services Ltd
Nottinghamshire County Council,1111/1001,Children and Young People,CYP,Transport Related,CCA,14/08/2023,05-12379,"3,074.55",Stagecoach Services Ltd
Nottinghamshire County Council,1111/1001,Children and Young People,CYP,Transport Related,CCA,14/08/2023,05-12381,"4,059.15",Stagecoach Services Ltd
Nottinghamshire County Council,1111/1001,Children and Young People,CYP,Transport Related,CCA,14/08/2023,05-12382,"3,488.70",Stagecoach Services Ltd
Nottinghamshire County Council,1111/1001,Children and Young People,CYP,Transport Related,CCA,14/08/2023,05-12384,"4,890.00",Stagecoach Services Ltd
Nottinghamshire County Council,1111/1001,Children and Young People,CYP,Transport Related,CCA,14/08/2023,05-12385,"4,125.00",Stagecoach Services Ltd
Nottinghamshire County Council,1111/1001,Children and Young People,CYP,Transport Related,CCA,14/08/2023,05-12391,"2,461.26",Stagecoach Services Ltd
Nottinghamshire County Council,1111/1001,Children and Young People,CYP,Transport Related,CCA,14/08/2023,05-12393,"4,175.05",Stagecoach Services Ltd
Nottinghamshire County Council,1111/1001,Children and Young People,CYP,Transport Related,CCA,14/08/2023,05-12408,"4,268.48",Stagecoach Services Ltd
Nottinghamshire County Council,1111/1001,Children and Young People,CYP,Transport Related,CCA,14/08/2023,05-12412,"2,743.80",Kettlewell Retford Ltd
Nottinghamshire County Council,1111/1001,Children and Young People,CYP,Transport Related,CCA,14/08/2023,05-12413,"1,749.47",Kettlewell Retford Ltd
Nottinghamshire County Council,1111/1001,Children and Young People,CYP,Transport Related,CCA,14/08/2023,05-12414,"2,191.47",Kettlewell Retford Ltd
Nottinghamshire County Council,1111/1001,Children and Young People,CYP,Transport Related,CCA,14/08/2023,05-12415,"1,952.47",Kettlewell Retford Ltd
Nottinghamshire County Council,1111/1001,Children and Young People,CYP,Transport Related,CCA,14/08/2023,05-12416,"9,813.59",Kettlewell Retford Ltd
Nottinghamshire County Council,1111/1001,Children and Young People,CYP,Transport Related,CCA,14/08/2023,05-12417,"3,296.80",Kettlewell Retford Ltd
Nottinghamshire County Council,1111/1001,Children and Young People,CYP,Transport Related,CCA,14/08/2023,05-12418,"3,020.05",Kettlewell Retford Ltd
Nottinghamshire County Council,1111/1001,Children and Young People,CYP,Transport Related,CCA,14/08/2023,05-12419,"5,967.85",Kettlewell Retford Ltd
Nottinghamshire County Council,1111/1001,Children and Young People,CYP,Transport Related,CCA,14/08/2023,05-12420,"7,990.00",Kettlewell Retford Ltd
Nottinghamshire County Council,1111/1001,Children and Young People,CYP,Transport Related,CCA,14/08/2023,05-12421,573.41,Bassetlaw Action Centre
Nottinghamshire County Council,1111/1001,Children and Young People,CYP,Transport Related,CCA,14/08/2023,05-12422,"1,253.75",Bassetlaw Action Centre
Nottinghamshire County Council,1111/1001,Children and Young People,CYP,Transport Related,CCA,14/08/2023,05-12423,"2,219.65",Nottingham Coaches Ltd
Nottinghamshire County Council,1111/1001,Children and Young People,CYP,Transport Related,CCA,14/08/2023,05-12424,"2,242.35",Nottingham Coaches Ltd
Nottinghamshire County Council,1111/1001,Children and Young People,CYP,Transport Related,CCA,14/08/2023,05-12425,"8,778.28",Nottingham Coaches Ltd
Nottinghamshire County Council,1111/1001,Children and Young People,CYP,Transport Related,CCA,14/08/2023,05-12426,"3,003.15",Nottingham Coaches Ltd
Nottinghamshire County Council,1111/1001,Children and Young People,CYP,Transport Related,CCA,14/08/2023,05-12427,"2,519.80",Nottingham Coaches Ltd
Nottinghamshire County Council,1111/1001,Children and Young People,CYP,Transport Related,CCA,14/08/2023,05-12428,"2,090.65",Nottingham Coaches Ltd
Nottinghamshire County Council,1111/1001,Children and Young People,CYP,Transport Related,CCA,14/08/2023,05-12429,"3,040.35",Nottingham Coaches Ltd
Nottinghamshire County Council,1111/1001,Children and Young People,CYP,Transport Related,CCA,14/08/2023,05-12430,400,Eastwood Cars (UK) Ltd
Nottinghamshire County Council,1111/1001,Children and Young People,CYP,Transport Related,CCA,14/08/2023,05-12432,"2,680.95",Hammonds Coaches Ltd
Nottinghamshire County Council,1111/1001,Children and Young People,CYP,Transport Related,CCA,14/08/2023,05-12433,"1,882.60",Hammonds Coaches Ltd
Nottinghamshire County Council,1111/1001,Children and Young People,CYP,Transport Related,CCA,14/08/2023,05-12434,"2,069.10",Hammonds Coaches Ltd
Nottinghamshire County Council,1111/1001,Children and Young People,CYP,Transport Related,CCA,14/08/2023,05-12435,"3,010.41",Hammonds Coaches Ltd
Nottinghamshire County Council,1111/1001,Children and Young People,CYP,Transport Related,CCA,14/08/2023,05-12436,"4,675.11",Millennium Travel (Mansfield) Ltd
Nottinghamshire County Council,1111/1001,Children and Young People,CYP,Transport Related,CCA,14/08/2023,05-12438,"3,391.35",Millennium Travel (Mansfield) Ltd
Nottinghamshire County Council,1111/1001,Children and Young People,CYP,Transport Related,CCA,14/08/2023,05-12439,"5,247.90",Millennium Travel (Mansfield) Ltd
Nottinghamshire County Council,1111/1001,Children and Young People,CYP,Transport Related,CCA,14/08/2023,05-12440,"8,335.93",Millennium Travel (Mansfield) Ltd
Nottinghamshire County Council,1111/1001,Children and Young People,CYP,Transport Related,CCA,14/08/2023,05-12441,"2,873.76",Millennium Travel (Mansfield) Ltd
Nottinghamshire County Council,1111/1001,Children and Young People,CYP,Transport Related,CCA,14/08/2023,05-12442,"3,170.16",Millennium Travel (Mansfield) Ltd
Nottinghamshire County Council,1111/1001,Children and Young People,CYP,Transport Related,CCA,14/08/2023,05-12445,"1,908.00",JK Transport Ltd
Nottinghamshire County Council,1111/1001,Children and Young People,CYP,Transport Related,CCA,14/08/2023,05-12446,"2,385.00",JK Transport Ltd
Nottinghamshire County Council,1111/1001,Children and Young People,CYP,Transport Related,CCA,14/08/2023,05-12449,"1,770.00",JK Transport Ltd
Nottinghamshire County Council,1111/1001,Children and Young People,CYP,Transport Related,CCA,14/08/2023,05-12450,"3,285.00",JK Transport Ltd
Nottinghamshire County Council,1111/1001,Children and Young People,CYP,Transport Related,CCA,14/08/2023,05-12451,"2,400.00",JK Transport Ltd
Nottinghamshire County Council,1111/1001,Children and Young People,CYP,Transport Related,CCA,14/08/2023,05-12452,"3,424.80",JK Transport Ltd
Nottinghamshire County Council,1111/1001,Children and Young People,CYP,Transport Related,CCA,14/08/2023,05-12453,"1,971.00",JK Transport Ltd
Nottinghamshire County Council,1111/1001,Children and Young People,CYP,Transport Related,CCA,14/08/2023,05-12454,690,JK Transport Ltd
Nottinghamshire County Council,1111/1001,Children and Young People,CYP,Transport Related,CCA,14/08/2023,05-12455,"3,484.80",JK Transport Ltd
Nottinghamshire County Council,1111/1001,Children and Young People,CYP,Transport Related,CCA,14/08/2023,05-12456,"2,691.00",JK Transport Ltd
Nottinghamshire County Council,1111/1001,Children and Young People,CYP,Transport Related,CCA,14/08/2023,05-12457,"2,683.00",JK Transport Ltd
Nottinghamshire County Council,1111/1001,Children and Young People,CYP,Transport Related,CCA,14/08/2023,05-12458,"2,520.00",JK Transport Ltd
Nottinghamshire County Council,1111/1001,Children and Young People,CYP,Transport Related,CCA,14/08/2023,05-12460,"2,544.00",JK Transport Ltd
Nottinghamshire County Council,1111/1001,Children and Young People,CYP,Transport Related,CCA,14/08/2023,05-12461,"1,175.00",JK Transport Ltd
Nottinghamshire County Council,1111/1001,Children and Young People,CYP,Transport Related,CCA,14/08/2023,05-12462,"2,890.00",JK Transport Ltd
Nottinghamshire County Council,1111/1001,Children and Young People,CYP,Transport Related,CCA,14/08/2023,05-12463,"2,431.00",JK Transport Ltd
Nottinghamshire County Council,1111/1001,Children and Young People,CYP,Transport Related,CCA,14/08/2023,05-12464,"1,395.00",JK Transport Ltd
Nottinghamshire County Council,1111/1001,Children and Young People,CYP,Transport Related,CCA,14/08/2023,05-12465,"1,246.00",JK Transport Ltd
Nottinghamshire County Council,1111/1001,Children and Young People,CYP,Transport Related,CCA,14/08/2023,05-12466,763,JK Transport Ltd
Nottinghamshire County Council,1111/1001,Children and Young People,CYP,Transport Related,CCA,14/08/2023,05-12467,814,JK Transport Ltd
Nottinghamshire County Council,1111/1001,Children and Young People,CYP,Transport Related,CCA,14/08/2023,05-12468,"2,533.00",JK Transport Ltd
Nottinghamshire County Council,1111/1001,Children and Young People,CYP,Transport Related,CCA,14/08/2023,05-12472,"1,343.00",JK Transport Ltd
Nottinghamshire County Council,1111/1001,Children and Young People,CYP,Transport Related,CCA,14/08/2023,05-12473,"2,130.00",JK Transport Ltd
Nottinghamshire County Council,1111/1001,Children and Young People,CYP,Transport Related,CCA,15/08/2023,05-12559,"2,336.40",Southside Cars Ltd
Nottinghamshire County Council,1111/1001,Children and Young People,CYP,Transport Related,CCA,15/08/2023,05-12561,"2,352.00",Southside Cars Ltd
Nottinghamshire County Council,1111/1001,Children and Young People,CYP,Transport Related,CCA,15/08/2023,05-12563,673.2,Southside Cars Ltd
Nottinghamshire County Council,1111/1001,Children and Young People,CYP,Transport Related,CCA,15/08/2023,05-12564,690.38,Southside Cars Ltd
Nottinghamshire County Council,1111/1001,Children and Young People,CYP,Transport Related,CCA,15/08/2023,05-12566,"1,707.86",Southside Cars Ltd
Nottinghamshire County Council,1111/1001,Children and Young People,CYP,Transport Related,CCA,15/08/2023,05-12567,"1,318.35",Southside Cars Ltd
Nottinghamshire County Council,1111/1001,Children and Young People,CYP,Transport Related,CCA,15/08/2023,05-12568,"1,560.00",Southside Cars Ltd
Nottinghamshire County Council,1111/1001,Children and Young People,CYP,Transport Related,CCA,15/08/2023,05-12569,"1,656.48",Southside Cars Ltd
Nottinghamshire County Council,1111/1001,Children and Young People,CYP,Transport Related,CCA,15/08/2023,05-12570,"1,875.24",Southside Cars Ltd
Nottinghamshire County Council,1111/1001,Children and Young People,CYP,Transport Related,CCA,15/08/2023,05-12571,"1,639.00",Southside Cars Ltd
Nottinghamshire County Council,1111/1001,Children and Young People,CYP,Transport Related,CCA,15/08/2023,05-12572,"1,890.00",Southside Cars Ltd
Nottinghamshire County Council,1111/1001,Children and Young People,CYP,Transport Related,CCA,15/08/2023,05-12574,"1,318.80",Southside Cars Ltd
Nottinghamshire County Council,1111/1001,Children and Young People,CYP,Transport Related,CCA,15/08/2023,05-12576,"1,884.40",Southside Cars Ltd
Nottinghamshire County Council,1111/1001,Children and Young People,CYP,Transport Related,CCA,15/08/2023,05-12578,"1,851.30",Southside Cars Ltd
Nottinghamshire County Council,1111/1001,Children and Young People,CYP,Transport Related,CCA,15/08/2023,05-12581,"1,785.00",Southside Cars Ltd
Nottinghamshire County Council,1111/1001,Children and Young People,CYP,Transport Related,CCA,15/08/2023,05-12583,"1,672.48",Southside Cars Ltd
Nottinghamshire County Council,1111/1001,Children and Young People,CYP,Transport Related,CCA,15/08/2023,05-12585,"2,459.88",Southside Cars Ltd
Nottinghamshire County Council,1111/1001,Children and Young People,CYP,Transport Related,CCA,15/08/2023,05-12587,"2,214.90",Southside Cars Ltd
Nottinghamshire County Council,1111/1001,Children and Young People,CYP,Transport Related,CCA,15/08/2023,05-12589,"2,578.05",Acorn Travel (UK) Ltd
Nottinghamshire County Council,1111/1001,Children and Young People,CYP,Transport Related,CCA,15/08/2023,05-12590,"2,258.55",Skills Motor Coaches Ltd
Nottinghamshire County Council,1111/1001,Children and Young People,CYP,Transport Related,CCA,15/08/2023,05-12591,"2,583.60",Skills Motor Coaches Ltd
Nottinghamshire County Council,1111/1001,Children and Young People,CYP,Transport Related,CCA,15/08/2023,05-12593,"3,599.92",Skills Motor Coaches Ltd
Nottinghamshire County Council,1111/1001,Children and Young People,CYP,Transport Related,CCA,15/08/2023,05-12594,"3,599.92",Skills Motor Coaches Ltd
Nottinghamshire County Council,1111/1001,Children and Young People,CYP,Transport Related,CCA,15/08/2023,05-12596,"3,599.92",Skills Motor Coaches Ltd
Nottinghamshire County Council,1111/1001,Children and Young People,CYP,Transport Related,CCA,15/08/2023,05-12598,"2,706.91",Skills Motor Coaches Ltd
Nottinghamshire County Council,1111/1001,Children and Young People,CYP,Transport Related,CCA,15/08/2023,05-12599,"1,936.22",Skills Motor Coaches Ltd
Nottinghamshire County Council,1111/1001,Children and Young People,CYP,Transport Related,CCA,15/08/2023,05-12600,"1,936.35",Skills Motor Coaches Ltd
Nottinghamshire County Council,1111/1001,Children and Young People,CYP,Transport Related,CCA,15/08/2023,05-12601,"1,530.00",Abacus Cars
Nottinghamshire County Council,1111/1001,Children and Young People,CYP,Transport Related,CCA,15/08/2023,05-12604,"1,803.40",Abacus Cars
Nottinghamshire County Council,1111/1001,Children and Young People,CYP,Transport Related,CCA,15/08/2023,05-12606,"2,344.30",Abacus Cars
Nottinghamshire County Council,1111/1001,Children and Young People,CYP,Transport Related,CCA,15/08/2023,05-12608,"1,200.00",Abacus Cars
Nottinghamshire County Council,1111/1001,Children and Young People,CYP,Transport Related,CCA,15/08/2023,05-12609,"2,663.40",Abacus Cars
Nottinghamshire County Council,1111/1001,Children and Young People,CYP,Transport Related,CCA,15/08/2023,05-12610,"3,855.60",Abacus Cars
Nottinghamshire County Council,1111/1001,Children and Young People,CYP,Transport Related,CCA,15/08/2023,05-12612,"3,000.00",Abacus Cars
Nottinghamshire County Council,1111/1001,Children and Young People,CYP,Transport Related,CCA,15/08/2023,05-12615,"3,600.00",Abacus Cars
Nottinghamshire County Council,1111/1001,Children and Young People,CYP,Transport Related,CCA,15/08/2023,05-12621,"2,227.68",Abacus Cars
Nottinghamshire County Council,1111/1001,Children and Young People,CYP,Transport Related,CCA,15/08/2023,05-13581,"2,009.00",Southside Cars Ltd
Nottinghamshire County Council,1111/1001,Children and Young People,CYP,Transport Related,CCA,15/08/2023,05-13583,"2,489.70",F4Control Ltd (t/a First4care)
Nottinghamshire County Council,1111/1001,Children and Young People,CYP,Transport Related,CCA,15/08/2023,05-13584,"2,463.30",F4Control Ltd (t/a First4care)
Nottinghamshire County Council,1111/1001,Children and Young People,CYP,Transport Related,CCA,15/08/2023,05-13585,"3,442.50",F4Control Ltd (t/a First4care)
Nottinghamshire County Council,1111/1001,Children and Young People,CYP,Transport Related,CCA,15/08/2023,05-13586,"2,861.10",F4Control Ltd (t/a First4care)
Nottinghamshire County Council,1111/1001,Children and Young People,CYP,Transport Related,CCA,15/08/2023,05-13587,"1,969.05",F4Control Ltd (t/a First4care)
Nottinghamshire County Council,1111/1001,Children and Young People,CYP,Transport Related,CCA,15/08/2023,05-13588,"2,781.00",Arrow Specialised Transport Ltd
Nottinghamshire County Council,1111/1001,Children and Young People,CYP,Transport Related,CCA,15/08/2023,05-13589,"2,058.00",Arrow Specialised Transport Ltd
Nottinghamshire County Council,1111/1001,Children and Young People,CYP,Transport Related,CCA,15/08/2023,05-13590,"2,298.00",Arrow Specialised Transport Ltd
Nottinghamshire County Council,1111/1001,Children and Young People,CYP,Transport Related,CCA,15/08/2023,05-13591,"2,769.00",Arrow Specialised Transport Ltd
Nottinghamshire County Council,1111/1001,Children and Young People,CYP,Transport Related,CCA,15/08/2023,05-13592,"2,874.00",Arrow Specialised Transport Ltd
Nottinghamshire County Council,1111/1001,Children and Young People,CYP,Transport Related,CCA,15/08/2023,05-13594,"3,860.25",Arrow Specialised Transport Ltd
Nottinghamshire County Council,1111/1001,Children and Young People,CYP,Transport Related,CCA,15/08/2023,05-13595,"2,666.85",Arrow Specialised Transport Ltd
Nottinghamshire County Council,1111/1001,Children and Young People,CYP,Transport Related,CCA,15/08/2023,05-13596,"2,749.50",Arrow Specialised Transport Ltd
Nottinghamshire County Council,1111/1001,Children and Young People,CYP,Transport Related,CCA,15/08/2023,05-13597,"3,708.99",Arrow Specialised Transport Ltd
Nottinghamshire County Council,1111/1001,Children and Young People,CYP,Transport Related,CCA,15/08/2023,05-13598,"4,322.25",Arrow Specialised Transport Ltd
Nottinghamshire County Council,1111/1001,Children and Young People,CYP,Transport Related,CCA,15/08/2023,05-13599,"4,912.50",Arrow Specialised Transport Ltd
Nottinghamshire County Council,1111/1001,Children and Young People,CYP,Transport Related,CCA,15/08/2023,05-13600,"2,791.60",Arrow Specialised Transport Ltd
Nottinghamshire County Council,1111/1001,Children and Young People,CYP,Transport Related,CCA,15/08/2023,05-13601,"3,914.25",Arrow Specialised Transport Ltd
Nottinghamshire County Council,1111/1001,Children and Young People,CYP,Transport Related,CCA,15/08/2023,05-13602,"2,431.95",Arrow Specialised Transport Ltd
Nottinghamshire County Council,1111/1001,Children and Young People,CYP,Transport Related,CCA,15/08/2023,05-13603,"2,608.65",Arrow Specialised Transport Ltd
Nottinghamshire County Council,1111/1001,Children and Young People,CYP,Transport Related,CCA,15/08/2023,05-13604,"2,367.75",Arrow Specialised Transport Ltd
Nottinghamshire County Council,1111/1001,Children and Young People,CYP,Transport Related,CCA,15/08/2023,05-13605,"2,891.70",Arrow Specialised Transport Ltd
Nottinghamshire County Council,1111/1001,Children and Young People,CYP,Transport Related,CCA,15/08/2023,05-13606,"3,057.75",Arrow Specialised Transport Ltd
Nottinghamshire County Council,1111/1001,Children and Young People,CYP,Transport Related,CCA,15/08/2023,05-13607,"2,783.10",Arrow Specialised Transport Ltd
Nottinghamshire County Council,1111/1001,Children and Young People,CYP,Transport Related,CCA,15/08/2023,05-13608,"4,968.75",Arrow Specialised Transport Ltd
Nottinghamshire County Council,1111/1001,Children and Young People,CYP,Transport Related,CCA,15/08/2023,05-13609,"1,352.55",Fozcabs Newark Taxis
Nottinghamshire County Council,1111/1001,Children and Young People,CYP,Transport Related,CCA,15/08/2023,05-13610,"1,166.90",Fozcabs Newark Taxis
Nottinghamshire County Council,1111/1001,Children and Young People,CYP,Transport Related,CCA,15/08/2023,05-13611,"2,885.41",Fozcabs Newark Taxis
Nottinghamshire County Council,1111/1001,Children and Young People,CYP,Transport Related,CCA,15/08/2023,05-13612,"1,113.90",Fozcabs Newark Taxis
Nottinghamshire County Council,1111/1001,Children and Young People,CYP,Transport Related,CCA,15/08/2023,05-13613,"2,307.30",Fozcabs Newark Taxis
Nottinghamshire County Council,1111/1001,Children and Young People,CYP,Transport Related,CCA,15/08/2023,05-13614,"2,125.00",Fozcabs Newark Taxis
Nottinghamshire County Council,1111/1001,Children and Young People,CYP,Transport Related,CCA,15/08/2023,05-13618,"2,144.10",F4Control Ltd (t/a First4care)
Nottinghamshire County Council,1111/1001,Children and Young People,CYP,Transport Related,CCA,15/08/2023,05-13619,"2,679.90",F4Control Ltd (t/a First4care)
Nottinghamshire County Council,1111/1001,Children and Young People,CYP,Transport Related,CCA,15/08/2023,05-13620,"2,671.50",F4Control Ltd (t/a First4care)
Nottinghamshire County Council,1111/1001,Children and Young People,CYP,Transport Related,CCA,15/08/2023,05-13621,"2,570.40",F4Control Ltd (t/a First4care)
Nottinghamshire County Council,1111/1001,Children and Young People,CYP,Transport Related,CCA,15/08/2023,05-13622,"2,772.19",F4Control Ltd (t/a First4care)
Nottinghamshire County Council,1111/1001,Children and Young People,CYP,Transport Related,CCA,15/08/2023,05-13623,"1,999.95",F4Control Ltd (t/a First4care)
Nottinghamshire County Council,1111/1001,Children and Young People,CYP,Transport Related,CCA,15/08/2023,05-13624,"2,744.96",F4Control Ltd (t/a First4care)
Nottinghamshire County Council,1111/1001,Children and Young People,CYP,Transport Related,CCA,15/08/2023,05-13625,"2,541.60",F4Control Ltd (t/a First4care)
Nottinghamshire County Council,1111/1001,Children and Young People,CYP,Transport Related,CCA,15/08/2023,05-13626,"2,188.35",F4Control Ltd (t/a First4care)
Nottinghamshire County Council,1111/1001,Children and Young People,CYP,Transport Related,CCA,15/08/2023,05-13627,"2,347.35",F4Control Ltd (t/a First4care)
Nottinghamshire County Council,1111/1001,Children and Young People,CYP,Transport Related,CCA,15/08/2023,05-13628,"2,585.70",F4Control Ltd (t/a First4care)
Nottinghamshire County Council,1111/1001,Children and Young People,CYP,Transport Related,CCA,15/08/2023,05-13629,"2,000.70",F4Control Ltd (t/a First4care)
Nottinghamshire County Council,1111/1001,Children and Young People,CYP,Transport Related,CCA,15/08/2023,05-13631,"1,794.15",F4Control Ltd (t/a First4care)
Nottinghamshire County Council,1111/1001,Children and Young People,CYP,Transport Related,CCA,15/08/2023,05-13633,"1,086.48",F4Control Ltd (t/a First4care)
Nottinghamshire County Council,1111/1001,Children and Young People,CYP,Transport Related,CCA,15/08/2023,05-13634,"3,275.04",F4Control Ltd (t/a First4care)
Nottinghamshire County Council,1111/1001,Children and Young People,CYP,Transport Related,CCA,15/08/2023,05-13635,"4,260.20",F4Control Ltd (t/a First4care)
Nottinghamshire County Council,1111/1001,Children and Young People,CYP,Transport Related,CCA,15/08/2023,05-13636,"4,417.79",F4Control Ltd (t/a First4care)
Nottinghamshire County Council,1111/1001,Children and Young People,CYP,Transport Related,CCA,15/08/2023,05-13637,"4,120.63",F4Control Ltd (t/a First4care)
Nottinghamshire County Council,1111/1001,Children and Young People,CYP,Transport Related,CCA,15/08/2023,05-13639,"4,254.42",F4Control Ltd (t/a First4care)
Nottinghamshire County Council,1111/1001,Children and Young People,CYP,Transport Related,CCA,15/08/2023,05-13640,"3,186.60",F4Control Ltd (t/a First4care)
Nottinghamshire County Council,1111/1001,Children and Young People,CYP,Transport Related,CCA,15/08/2023,05-13642,"2,291.40",Rio Cabs
Nottinghamshire County Council,1111/1001,Children and Young People,CYP,Transport Related,CCA,15/08/2023,05-13644,"1,414.65",Rio Cabs
Nottinghamshire County Council,1111/1001,Children and Young People,CYP,Transport Related,CCA,15/08/2023,05-13648,"3,632.00",Reliable Cars Ltd
Nottinghamshire County Council,1111/1001,Children and Young People,CYP,Transport Related,CCA,15/08/2023,05-13649,"2,425.60",Reliable Cars Ltd
Nottinghamshire County Council,1111/1001,Children and Young People,CYP,Transport Related,CCA,15/08/2023,05-13650,"2,360.00",Reliable Cars Ltd
Nottinghamshire County Council,1111/1001,Children and Young People,CYP,Transport Related,CCA,15/08/2023,05-13651,"2,149.20",A1 Private Hire Ltd
Nottinghamshire County Council,1111/1001,Children and Young People,CYP,Transport Related,CCA,15/08/2023,05-13652,"3,383.10",A1 Private Hire Ltd
Nottinghamshire County Council,1111/1001,Children and Young People,CYP,Transport Related,CCA,15/08/2023,05-13653,"2,467.60",A1 Private Hire Ltd
Nottinghamshire County Council,1111/1001,Children and Young People,CYP,Transport Related,CCA,15/08/2023,05-13654,"2,041.20",A1 Private Hire Ltd
Nottinghamshire County Council,1111/1001,Children and Young People,CYP,Transport Related,CCA,15/08/2023,05-13655,"1,611.00",A1 Private Hire Ltd
Nottinghamshire County Council,1111/1001,Children and Young People,CYP,Transport Related,CCA,15/08/2023,05-13656,"1,784.99",A1 Private Hire Ltd
Nottinghamshire County Council,1111/1001,Children and Young People,CYP,Transport Related,CCA,15/08/2023,05-13657,"2,112.20",A1 Private Hire Ltd
Nottinghamshire County Council,1111/1001,Children and Young People,CYP,Transport Related,CCA,15/08/2023,05-13658,"4,500.00",A1 Private Hire Ltd
Nottinghamshire County Council,1111/1001,Children and Young People,CYP,Transport Related,CCA,15/08/2023,05-13659,"2,467.60",A1 Private Hire Ltd
Nottinghamshire County Council,1111/1001,Children and Young People,CYP,Transport Related,CCA,15/08/2023,05-13660,584.1,A1 Private Hire Ltd
Nottinghamshire County Council,1111/1001,Children and Young People,CYP,Transport Related,CCA,15/08/2023,05-13661,"2,219.60",A1 Private Hire Ltd
Nottinghamshire County Council,1111/1001,Children and Young People,CYP,Transport Related,CCA,15/08/2023,05-13662,"2,452.30",A1 Private Hire Ltd
Nottinghamshire County Council,1111/1001,Children and Young People,CYP,Transport Related,CCA,15/08/2023,05-13663,"3,263.60",A1 Private Hire Ltd
Nottinghamshire County Council,1111/1001,Children and Young People,CYP,Transport Related,CCA,15/08/2023,05-13664,"1,965.60",A1 Private Hire Ltd
Nottinghamshire County Council,1111/1001,Children and Young People,CYP,Transport Related,CCA,15/08/2023,05-13665,"3,175.60",A1 Private Hire Ltd
Nottinghamshire County Council,1111/1001,Children and Young People,CYP,Transport Related,CCA,15/08/2023,05-13666,"2,279.95",A1 Private Hire Ltd
Nottinghamshire County Council,1111/1001,Children and Young People,CYP,Transport Related,CCA,15/08/2023,05-13670,"1,965.60",A1 Private Hire Ltd
Nottinghamshire County Council,1111/1001,Children and Young People,CYP,Transport Related,CCA,16/08/2023,05-13717,"5,410.50",Tiger European Uk Ltd
Nottinghamshire County Council,1111/1001,Children and Young People,CYP,Transport Related,CCA,16/08/2023,05-13718,"6,652.60",Tiger European Uk Ltd
Nottinghamshire County Council,1111/1001,Children and Young People,CYP,Transport Related,CCA,16/08/2023,05-13719,"6,640.50",Tiger European Uk Ltd
Nottinghamshire County Council,1111/1001,Children and Young People,CYP,Transport Related,CCA,16/08/2023,05-13720,"6,206.00",Tiger European Uk Ltd
Nottinghamshire County Council,1111/1001,Children and Young People,CYP,Transport Related,CCA,16/08/2023,05-13721,"4,787.85",Tiger European Uk Ltd
Nottinghamshire County Council,1111/1001,Children and Young People,CYP,Transport Related,CCA,16/08/2023,05-13722,"6,386.15",Tiger European Uk Ltd
Nottinghamshire County Council,1111/1001,Children and Young People,CYP,Transport Related,CCA,16/08/2023,05-13723,"3,956.92",Tiger European Uk Ltd
Nottinghamshire County Council,1111/1001,Children and Young People,CYP,Transport Related,CCA,16/08/2023,05-13724,"6,068.12",Tiger European Uk Ltd
Nottinghamshire County Council,1111/1001,Children and Young People,CYP,Transport Related,CCA,16/08/2023,05-13725,"8,426.97",Tiger European Uk Ltd
Nottinghamshire County Council,1111/1001,Children and Young People,CYP,Transport Related,CCA,16/08/2023,05-13726,"4,689.70",Tiger European Uk Ltd
Nottinghamshire County Council,1111/1001,Children and Young People,CYP,Transport Related,CCA,16/08/2023,05-13727,"4,763.07",Tiger European Uk Ltd
Nottinghamshire County Council,1111/1001,Children and Young People,CYP,Transport Related,CCA,16/08/2023,05-13728,"3,894.52",Tiger European Uk Ltd
Nottinghamshire County Council,1111/1001,Children and Young People,CYP,Transport Related,CCA,16/08/2023,05-13731,"6,717.15",Tiger European Uk Ltd
Nottinghamshire County Council,1111/1001,Children and Young People,CYP,Transport Related,CCA,16/08/2023,05-13732,"11,282.50",Tiger European Uk Ltd
Nottinghamshire County Council,1111/1001,Children and Young People,CYP,Transport Related,CCA,16/08/2023,05-13733,"4,485.00",Tiger European Uk Ltd
Nottinghamshire County Council,1111/1001,Children and Young People,CYP,Transport Related,CCA,16/08/2023,05-13734,"2,462.00",Tiger European Uk Ltd
Nottinghamshire County Council,1111/1001,Children and Young People,CYP,Transport Related,CCA,16/08/2023,05-13735,"2,918.00",Tiger European Uk Ltd
Nottinghamshire County Council,1111/1001,Children and Young People,CYP,Transport Related,CCA,16/08/2023,05-13736,"2,895.00",Tiger European Uk Ltd
Nottinghamshire County Council,1111/1001,Children and Young People,CYP,Transport Related,CCA,16/08/2023,05-13737,"2,683.00",Tiger European Uk Ltd
Nottinghamshire County Council,1111/1001,Children and Young People,CYP,Transport Related,CCA,16/08/2023,05-13738,"1,841.50",Tiger European Uk Ltd
Nottinghamshire County Council,1111/1001,Children and Young People,CYP,Transport Related,CCA,16/08/2023,05-13739,"2,105.50",Tiger European Uk Ltd
Nottinghamshire County Council,1111/1001,Children and Young People,CYP,Transport Related,CCA,16/08/2023,05-13740,"2,885.00",Tiger European Uk Ltd
Nottinghamshire County Council,1111/1001,Children and Young People,CYP,Transport Related,CCA,16/08/2023,05-13741,"1,754.80",Tiger European Uk Ltd
Nottinghamshire County Council,1111/1001,Children and Young People,CYP,Transport Related,CCA,16/08/2023,05-13742,"2,697.30",Tiger European Uk Ltd
Nottinghamshire County Council,1111/1001,Children and Young People,CYP,Transport Related,CCA,16/08/2023,05-13743,"3,737.20",Tiger European Uk Ltd
Nottinghamshire County Council,1111/1001,Children and Young People,CYP,Transport Related,CCA,16/08/2023,05-13744,"2,079.80",Tiger European Uk Ltd
Nottinghamshire County Council,1111/1001,Children and Young People,CYP,Transport Related,CCA,16/08/2023,05-13745,"2,112.30",Tiger European Uk Ltd
Nottinghamshire County Council,1111/1001,Children and Young People,CYP,Transport Related,CCA,16/08/2023,05-13746,"1,787.80",Tiger European Uk Ltd
Nottinghamshire County Council,1111/1001,Children and Young People,CYP,Transport Related,CCA,16/08/2023,05-13749,"1,950.00",Tiger European Uk Ltd
Nottinghamshire County Council,1111/1001,Children and Young People,CYP,Transport Related,CCA,16/08/2023,05-13750,"2,978.90",Tiger European Uk Ltd
Nottinghamshire County Council,1111/1001,Children and Young People,CYP,Transport Related,CCA,16/08/2023,05-13751,"4,916.00",Tiger European Uk Ltd
Nottinghamshire County Council,1111/1001,Children and Young People,CYP,Transport Related,CCA,16/08/2023,05-13752,"4,264.05",Tiger European Uk Ltd
Nottinghamshire County Council,1111/1001,Children and Young People,CYP,Transport Related,CCA,16/08/2023,05-13753,"5,238.00",Tiger European Uk Ltd
Nottinghamshire County Council,1111/1001,Children and Young People,CYP,Transport Related,CCA,16/08/2023,05-13754,"5,110.00",Tiger European Uk Ltd
Nottinghamshire County Council,1111/1001,Children and Young People,CYP,Transport Related,CCA,16/08/2023,05-13755,"4,812.50",Tiger European Uk Ltd
Nottinghamshire County Council,1111/1001,Children and Young People,CYP,Transport Related,CCA,16/08/2023,05-13756,"3,284.70",Tiger European Uk Ltd
Nottinghamshire County Council,1111/1001,Children and Young People,CYP,Transport Related,CCA,16/08/2023,05-13757,"3,782.14",Tiger European Uk Ltd
Nottinghamshire County Council,1111/1001,Children and Young People,CYP,Transport Related,CCA,16/08/2023,05-13758,"3,123.64",Tiger European Uk Ltd
Nottinghamshire County Council,1111/1001,Children and Young People,CYP,Transport Related,CCA,16/08/2023,05-13759,"4,812.14",Tiger European Uk Ltd
Nottinghamshire County Council,1111/1001,Children and Young People,CYP,Transport Related,CCA,16/08/2023,05-13760,"6,681.96",Tiger European Uk Ltd
Nottinghamshire County Council,1111/1001,Children and Young People,CYP,Transport Related,CCA,16/08/2023,05-13761,"3,698.64",Tiger European Uk Ltd
Nottinghamshire County Council,1111/1001,Children and Young People,CYP,Transport Related,CCA,16/08/2023,05-13762,"3,757.14",Tiger European Uk Ltd
Nottinghamshire County Council,1111/1001,Children and Young People,CYP,Transport Related,CCA,16/08/2023,05-13763,"3,162.64",Tiger European Uk Ltd
Nottinghamshire County Council,1111/1001,Children and Young People,CYP,Transport Related,CCA,16/08/2023,05-13766,"3,495.00",Tiger European Uk Ltd
Nottinghamshire County Council,1111/1001,Children and Young People,CYP,Transport Related,CCA,16/08/2023,05-13767,"5,327.02",Tiger European Uk Ltd
Nottinghamshire County Council,1111/1001,Children and Young People,CYP,Transport Related,CCA,16/08/2023,05-13768,"8,742.00",Tiger European Uk Ltd
Nottinghamshire County Council,1111/1001,Children and Young People,CYP,Transport Related,CCA,16/08/2023,05-13769,"4,837.00",Tiger European Uk Ltd
Nottinghamshire County Council,1111/1001,Children and Young People,CYP,Transport Related,CCA,16/08/2023,05-13770,"5,832.00",Tiger European Uk Ltd
Nottinghamshire County Council,1111/1001,Children and Young People,CYP,Transport Related,CCA,16/08/2023,05-13771,"5,797.00",Tiger European Uk Ltd
Nottinghamshire County Council,1111/1001,Children and Young People,CYP,Transport Related,CCA,16/08/2023,05-13772,"5,397.00",Tiger European Uk Ltd
Nottinghamshire County Council,1111/1001,Children and Young People,CYP,Transport Related,CCA,16/08/2023,05-13773,"3,683.00",Tiger European Uk Ltd
Nottinghamshire County Council,1111/1001,Children and Young People,CYP,Transport Related,CCA,16/08/2023,05-13774,"4,324.60",Tiger European Uk Ltd
Nottinghamshire County Council,1111/1001,Children and Young People,CYP,Transport Related,CCA,16/08/2023,05-13775,"5,424.98",Tiger European Uk Ltd
Nottinghamshire County Council,1111/1001,Children and Young People,CYP,Transport Related,CCA,16/08/2023,05-13776,"3,509.60",Tiger European Uk Ltd
Nottinghamshire County Council,1111/1001,Children and Young People,CYP,Transport Related,CCA,16/08/2023,05-13777,"5,394.60",Tiger European Uk Ltd
Nottinghamshire County Council,1111/1001,Children and Young People,CYP,Transport Related,CCA,16/08/2023,05-13778,"7,474.40",Tiger European Uk Ltd
Nottinghamshire County Council,1111/1001,Children and Young People,CYP,Transport Related,CCA,16/08/2023,05-13779,"4,159.60",Tiger European Uk Ltd
Nottinghamshire County Council,1111/1001,Children and Young People,CYP,Transport Related,CCA,16/08/2023,05-13780,"4,224.60",Tiger European Uk Ltd
Nottinghamshire County Council,1111/1001,Children and Young People,CYP,Transport Related,CCA,16/08/2023,05-13781,"3,369.62",Tiger European Uk Ltd
Nottinghamshire County Council,1111/1001,Children and Young People,CYP,Transport Related,CCA,16/08/2023,05-13784,"3,900.00",Tiger European Uk Ltd
Nottinghamshire County Council,1111/1001,Children and Young People,CYP,Transport Related,CCA,16/08/2023,05-13785,"5,957.80",Tiger European Uk Ltd
Nottinghamshire County Council,1111/1001,Children and Young People,CYP,Transport Related,CCA,16/08/2023,05-13786,"9,842.00",Tiger European Uk Ltd
Nottinghamshire County Council,1111/1001,Children and Young People,CYP,Transport Related,CCA,16/08/2023,05-13787,"3,750.00",Tiger European Uk Ltd
Nottinghamshire County Council,1111/1001,Children and Young People,CYP,Transport Related,CCA,16/08/2023,05-13788,"4,413.40",Tiger European Uk Ltd
Nottinghamshire County Council,1111/1001,Children and Young People,CYP,Transport Related,CCA,16/08/2023,05-13789,"4,347.85",Tiger European Uk Ltd
Nottinghamshire County Council,1111/1001,Children and Young People,CYP,Transport Related,CCA,16/08/2023,05-13790,"4,043.00",Tiger European Uk Ltd
Nottinghamshire County Council,1111/1001,Children and Young People,CYP,Transport Related,CCA,16/08/2023,05-13791,"2,762.25",Tiger European Uk Ltd
Nottinghamshire County Council,1111/1001,Children and Young People,CYP,Transport Related,CCA,16/08/2023,05-13792,"3,861.41",Tiger European Uk Ltd
Nottinghamshire County Council,1111/1001,Children and Young People,CYP,Transport Related,CCA,16/08/2023,05-13793,"4,135.80",Tiger European Uk Ltd
Nottinghamshire County Council,1111/1001,Children and Young People,CYP,Transport Related,CCA,16/08/2023,05-13794,"2,632.20",Tiger European Uk Ltd
Nottinghamshire County Council,1111/1001,Children and Young People,CYP,Transport Related,CCA,16/08/2023,05-13795,"4,045.95",Tiger European Uk Ltd
Nottinghamshire County Council,1111/1001,Children and Young People,CYP,Transport Related,CCA,16/08/2023,05-13796,"5,605.80",Tiger European Uk Ltd
Nottinghamshire County Council,1111/1001,Children and Young People,CYP,Transport Related,CCA,16/08/2023,05-13797,"3,119.70",Tiger European Uk Ltd
Nottinghamshire County Council,1111/1001,Children and Young People,CYP,Transport Related,CCA,16/08/2023,05-13798,"3,168.45",Tiger European Uk Ltd
Nottinghamshire County Council,1111/1001,Children and Young People,CYP,Transport Related,CCA,16/08/2023,05-13799,"3,063.66",Tiger European Uk Ltd
Nottinghamshire County Council,1111/1001,Children and Young People,CYP,Transport Related,CCA,16/08/2023,05-13802,"2,925.00",Tiger European Uk Ltd
Nottinghamshire County Council,1111/1001,Children and Young People,CYP,Transport Related,CCA,16/08/2023,05-13803,"4,468.35",Tiger European Uk Ltd
Nottinghamshire County Council,1111/1001,Children and Young People,CYP,Transport Related,CCA,16/08/2023,05-13804,"7,343.00",Tiger European Uk Ltd
Nottinghamshire County Council,1111/1001,Children and Young People,CYP,Transport Related,CCA,16/08/2023,05-13806,"1,884.70",A1 Private Hire Ltd
Nottinghamshire County Council,1111/1001,Children and Young People,CYP,Transport Related,CCA,16/08/2023,05-13807,"2,250.00",A1 Private Hire Ltd
Nottinghamshire County Council,1111/1001,Children and Young People,CYP,Transport Related,CCA,16/08/2023,05-13808,"1,481.04",A1 Private Hire Ltd
Nottinghamshire County Council,1111/1001,Children and Young People,CYP,Transport Related,CCA,16/08/2023,05-13809,"1,994.40",A1 Private Hire Ltd
Nottinghamshire County Council,1111/1001,Children and Young People,CYP,Transport Related,CCA,16/08/2023,05-13811,"2,689.06",Nottingham Specialist Transport Ltd
Nottinghamshire County Council,1111/1001,Children and Young People,CYP,Transport Related,CCA,16/08/2023,05-13812,"2,869.43",Nottingham Specialist Transport Ltd
Nottinghamshire County Council,1111/1001,Children and Young People,CYP,Transport Related,CCA,16/08/2023,05-13813,"3,236.97",Nottingham Specialist Transport Ltd
Nottinghamshire County Council,1111/1001,Children and Young People,CYP,Transport Related,CCA,16/08/2023,05-13814,"2,548.70",Nottingham Specialist Transport Ltd
Nottinghamshire County Council,1111/1001,Children and Young People,CYP,Transport Related,CCA,16/08/2023,05-13815,"2,385.88",Nottingham Specialist Transport Ltd
Nottinghamshire County Council,1111/1001,Children and Young People,CYP,Transport Related,CCA,16/08/2023,05-13816,"4,241.50",Nottingham Specialist Transport Ltd
Nottinghamshire County Council,1111/1001,Children and Young People,CYP,Transport Related,CCA,16/08/2023,05-13817,"3,221.50",Nottingham Specialist Transport Ltd
Nottinghamshire County Council,1111/1001,Children and Young People,CYP,Transport Related,CCA,16/08/2023,05-13818,"3,051.50",Nottingham Specialist Transport Ltd
Nottinghamshire County Council,1111/1001,Children and Young People,CYP,Transport Related,CCA,16/08/2023,05-13819,"3,391.50",Nottingham Specialist Transport Ltd
Nottinghamshire County Council,1111/1001,Children and Young People,CYP,Transport Related,CCA,16/08/2023,05-13820,"2,711.50",Nottingham Specialist Transport Ltd
Nottinghamshire County Council,1111/1001,Children and Young People,CYP,Transport Related,CCA,16/08/2023,05-13821,"2,638.95",Nottingham Specialist Transport Ltd
Nottinghamshire County Council,1111/1001,Children and Young People,CYP,Transport Related,CCA,16/08/2023,05-13822,"2,850.15",Nottingham Specialist Transport Ltd
Nottinghamshire County Council,1111/1001,Children and Young People,CYP,Transport Related,CCA,16/08/2023,05-13823,"6,479.25",Nottingham Specialist Transport Ltd
Nottinghamshire County Council,1111/1001,Children and Young People,CYP,Transport Related,CCA,16/08/2023,05-13824,"3,142.50",Nottingham Specialist Transport Ltd
Nottinghamshire County Council,1111/1001,Children and Young People,CYP,Transport Related,CCA,16/08/2023,05-13826,"2,317.50",Nottingham Specialist Transport Ltd
Nottinghamshire County Council,1111/1001,Children and Young People,CYP,Transport Related,CCA,16/08/2023,05-13827,"3,221.50",Nottingham Specialist Transport Ltd
Nottinghamshire County Council,1111/1001,Children and Young People,CYP,Transport Related,CCA,16/08/2023,05-13828,"3,051.50",Nottingham Specialist Transport Ltd
Nottinghamshire County Council,1111/1001,Children and Young People,CYP,Transport Related,CCA,16/08/2023,05-13829,"1,527.55",Nottingham Specialist Transport Ltd
Nottinghamshire County Council,1111/1001,Children and Young People,CYP,Transport Related,CCA,16/08/2023,05-13830,"2,393.19",Nottingham Specialist Transport Ltd
Nottinghamshire County Council,1111/1001,Children and Young People,CYP,Transport Related,CCA,16/08/2023,05-13832,"2,393.19",Nottingham Specialist Transport Ltd
Nottinghamshire County Council,1111/1001,Children and Young People,CYP,Transport Related,CCA,16/08/2023,05-13833,"2,324.73",Nottingham Specialist Transport Ltd
Nottinghamshire County Council,1111/1001,Children and Young People,CYP,Transport Related,CCA,16/08/2023,05-13834,"3,061.47",Nottingham Specialist Transport Ltd
Nottinghamshire County Council,1111/1001,Children and Young People,CYP,Transport Related,CCA,16/08/2023,05-13835,"2,333.50",Nottingham Specialist Transport Ltd
Nottinghamshire County Council,1111/1001,Children and Young People,CYP,Transport Related,CCA,16/08/2023,05-13836,"3,538.50",Nottingham Specialist Transport Ltd
Nottinghamshire County Council,1111/1001,Children and Young People,CYP,Transport Related,CCA,16/08/2023,05-13837,"2,274.00",Nottingham Specialist Transport Ltd
Nottinghamshire County Council,1111/1001,Children and Young People,CYP,Transport Related,CCA,16/08/2023,05-13838,890.45,Nottingham Specialist Transport Ltd
Nottinghamshire County Council,1111/1001,Children and Young People,CYP,Transport Related,CCA,18/08/2023,05-13870,"3,636.81",BN Gibson Ltd
Nottinghamshire County Council,1111/1001,Children and Young People,CYP,Transport Related,CCA,18/08/2023,05-13871,"4,392.80",BN Gibson Ltd
Nottinghamshire County Council,1111/1001,Children and Young People,CYP,Transport Related,CCA,18/08/2023,05-13872,"2,880.00",BN Gibson Ltd
Nottinghamshire County Council,1111/1001,Children and Young People,CYP,Transport Related,CCA,18/08/2023,05-13873,"2,880.00",BN Gibson Ltd
Nottinghamshire County Council,1111/1001,Children and Young People,CYP,Transport Related,CCA,18/08/2023,05-13874,"3,840.00",BN Gibson Ltd
Nottinghamshire County Council,1111/1001,Children and Young People,CYP,Transport Related,CCA,18/08/2023,05-13875,"3,200.00",BN Gibson Ltd
Nottinghamshire County Council,1111/1001,Children and Young People,CYP,Transport Related,CCA,18/08/2023,05-13876,"3,200.00",BN Gibson Ltd
Nottinghamshire County Council,1111/1001,Children and Young People,CYP,Transport Related,CCA,18/08/2023,05-13877,"3,951.45",BN Gibson Ltd
Nottinghamshire County Council,1111/1001,Children and Young People,CYP,Transport Related,CCA,18/08/2023,05-13878,"2,744.93",BN Gibson Ltd
Nottinghamshire County Council,1111/1001,Children and Young People,CYP,Transport Related,CCA,18/08/2023,05-13879,"3,766.08",BN Gibson Ltd
Nottinghamshire County Council,1111/1001,Children and Young People,CYP,Transport Related,CCA,18/08/2023,05-13880,"4,032.64",BN Gibson Ltd
Nottinghamshire County Council,1111/1001,Children and Young People,CYP,Transport Related,CCA,18/08/2023,05-13881,"3,070.80",BN Gibson Ltd
Nottinghamshire County Council,1111/1001,Children and Young People,CYP,Transport Related,CCA,18/08/2023,05-13882,"3,459.75",BN Gibson Ltd
Nottinghamshire County Council,1111/1001,Children and Young People,CYP,Transport Related,CCA,18/08/2023,05-13883,"2,700.00",BN Gibson Ltd
Nottinghamshire County Council,1111/1001,Children and Young People,CYP,Transport Related,CCA,18/08/2023,05-13884,"3,947.74",BN Gibson Ltd
Nottinghamshire County Council,1111/1001,Children and Young People,CYP,Transport Related,CCA,18/08/2023,05-13885,"3,609.75",BN Gibson Ltd
Nottinghamshire County Council,1111/1001,Children and Young People,CYP,Transport Related,CCA,18/08/2023,05-13886,"2,362.60",BN Gibson Ltd
Nottinghamshire County Council,1111/1001,Children and Young People,CYP,Transport Related,CCA,18/08/2023,05-13887,"3,106.80",BN Gibson Ltd
Nottinghamshire County Council,1111/1001,Children and Young People,CYP,Transport Related,CCA,18/08/2023,05-13888,"2,976.15",BN Gibson Ltd
Nottinghamshire County Council,1111/1001,Children and Young People,CYP,Transport Related,CCA,18/08/2023,05-13889,"2,275.35",BN Gibson Ltd
Nottinghamshire County Council,1111/1001,Children and Young People,CYP,Transport Related,CCA,18/08/2023,05-13890,"2,218.30",BN Gibson Ltd
Nottinghamshire County Council,1111/1001,Children and Young People,CYP,Transport Related,CCA,18/08/2023,05-13891,"2,448.00",BN Gibson Ltd
Nottinghamshire County Council,1111/1001,Children and Young People,CYP,Transport Related,CCA,18/08/2023,05-13892,"4,741.40",BN Gibson Ltd
Nottinghamshire County Council,1111/1001,Children and Young People,CYP,Transport Related,CCA,18/08/2023,05-13893,"3,103.74",BN Gibson Ltd
Nottinghamshire County Council,1111/1001,Children and Young People,CYP,Transport Related,CCA,18/08/2023,05-13894,"5,719.65",BN Gibson Ltd
Nottinghamshire County Council,1111/1001,Children and Young People,CYP,Transport Related,CCA,18/08/2023,05-13895,"2,940.48",BN Gibson Ltd
Nottinghamshire County Council,1111/1001,Children and Young People,CYP,Transport Related,CCA,18/08/2023,05-13896,"1,536.21",BN Gibson Ltd
Nottinghamshire County Council,1111/1001,Children and Young People,CYP,Transport Related,CCA,18/08/2023,05-13897,"2,376.75",BN Gibson Ltd
Nottinghamshire County Council,1111/1001,Children and Young People,CYP,Transport Related,CCA,18/08/2023,05-13899,"3,001.08",BN Gibson Ltd
Nottinghamshire County Council,1111/1001,Children and Young People,CYP,Transport Related,CCA,18/08/2023,05-13900,"2,203.08",BN Gibson Ltd
Nottinghamshire County Council,1111/1001,Children and Young People,CYP,Transport Related,CCA,18/08/2023,05-13901,716.36,BN Gibson Ltd
Nottinghamshire County Council,1111/1001,Children and Young People,CYP,Transport Related,CCA,18/08/2023,05-13902,"2,943.84",BN Gibson Ltd
Nottinghamshire County Council,1111/1001,Children and Young People,CYP,Transport Related,CCA,18/08/2023,05-13903,"2,789.70",BN Gibson Ltd
Nottinghamshire County Council,1111/1001,Children and Young People,CYP,Transport Related,CCA,18/08/2023,05-13904,"3,285.75",BN Gibson Ltd
Nottinghamshire County Council,1111/1001,Children and Young People,CYP,Transport Related,CCA,18/08/2023,05-13905,"2,686.80",BN Gibson Ltd
Nottinghamshire County Council,1111/1001,Children and Young People,CYP,Transport Related,CCA,18/08/2023,05-13906,"3,365.40",BN Gibson Ltd
Nottinghamshire County Council,1111/1001,Children and Young People,CYP,Transport Related,CCA,18/08/2023,05-13907,"1,758.90",Marshalls Of Sutton On Trent Ltd
Nottinghamshire County Council,1111/1001,Children and Young People,CYP,Transport Related,CCA,18/08/2023,05-13912,"2,885.55",Marshalls Of Sutton On Trent Ltd
Nottinghamshire County Council,1111/1001,Children and Young People,CYP,Transport Related,CCA,18/08/2023,05-13915,"2,483.62",Marshalls Of Sutton On Trent Ltd
Nottinghamshire County Council,1111/1001,Children and Young People,CYP,Transport Related,CCA,18/08/2023,05-13917,"3,661.90",Marshalls Of Sutton On Trent Ltd
Nottinghamshire County Council,1111/1001,Children and Young People,CYP,Transport Related,CCA,18/08/2023,05-13918,"5,457.00",Marshalls Of Sutton On Trent Ltd
Nottinghamshire County Council,1111/1001,Children and Young People,CYP,Transport Related,CCA,18/08/2023,05-13920,"3,588.75",Marshalls Of Sutton On Trent Ltd
Nottinghamshire County Council,1111/1001,Children and Young People,CYP,Transport Related,CCA,18/08/2023,05-13921,"1,259.40",Marshalls Of Sutton On Trent Ltd
Nottinghamshire County Council,1111/1001,Children and Young People,CYP,Transport Related,CCA,18/08/2023,05-13922,"3,910.00",Tiger European Uk Ltd
Nottinghamshire County Council,1111/1001,Children and Young People,CYP,Transport Related,CCA,18/08/2023,05-13923,"4,921.06",Tiger European Uk Ltd
Nottinghamshire County Council,1111/1001,Children and Young People,CYP,Transport Related,CCA,18/08/2023,05-13929,"4,037.25",Isle Coaches
Nottinghamshire County Council,1111/1001,Children and Young People,CYP,Transport Related,CCA,18/08/2023,05-13930,"5,118.00",Isle Coaches
Nottinghamshire County Council,1111/1001,Children and Young People,CYP,Transport Related,CCA,18/08/2023,05-13931,"6,355.79",Ace Cars & Minibuses Ltd
Nottinghamshire County Council,1111/1001,Children and Young People,CYP,Transport Related,CCA,18/08/2023,05-13932,"2,984.64",Ace Cars & Minibuses Ltd
Nottinghamshire County Council,1111/1001,Children and Young People,CYP,Transport Related,CCA,18/08/2023,05-13933,"2,907.00",Ace Cars & Minibuses Ltd
Nottinghamshire County Council,1111/1001,Children and Young People,CYP,Transport Related,CCA,18/08/2023,05-13934,"2,830.50",Ace Cars & Minibuses Ltd
Nottinghamshire County Council,1111/1001,Children and Young People,CYP,Transport Related,CCA,18/08/2023,05-13935,"2,525.70",Ace Cars & Minibuses Ltd
Nottinghamshire County Council,1111/1001,Children and Young People,CYP,Transport Related,CCA,18/08/2023,05-13936,"3,221.50",Ace Cars & Minibuses Ltd
Nottinghamshire County Council,1111/1001,Children and Young People,CYP,Transport Related,CCA,18/08/2023,05-13937,"3,221.50",Ace Cars & Minibuses Ltd
Nottinghamshire County Council,1111/1001,Children and Young People,CYP,Transport Related,CCA,18/08/2023,05-13938,"7,894.95",SM Travel Yorkshire Ltd
Nottinghamshire County Council,1111/1001,Children and Young People,CYP,Transport Related,CCA,18/08/2023,05-13968,840,Phoenix Private Hire Ltd
Nottinghamshire County Council,1111/1001,Children and Young People,CYP,Transport Related,CCA,18/08/2023,05-13969,"3,150.00",Phoenix Private Hire Ltd
Nottinghamshire County Council,1111/1001,Children and Young People,CYP,Transport Related,CCA,18/08/2023,05-13970,900,Phoenix Private Hire Ltd
Nottinghamshire County Council,1111/1001,Children and Young People,CYP,Transport Related,CCA,21/08/2023,05-11807,"1,989.00",[Redacted]
Nottinghamshire County Council,1111/1001,Children and Young People,CYP,Transport Related,CCA,21/08/2023,05-14331,"2,125.12",Southside Cars Ltd
Nottinghamshire County Council,1111/1001,Children and Young People,CYP,Transport Related,CCA,21/08/2023,05-14332,"2,570.13",Southside Cars Ltd
Nottinghamshire County Council,1111/1001,Children and Young People,CYP,Transport Related,CCA,21/08/2023,05-14335,"1,062.00",Southside Cars Ltd
Nottinghamshire County Council,1111/1001,Children and Young People,CYP,Transport Related,CCA,21/08/2023,05-14336,"1,782.30",Southside Cars Ltd
Nottinghamshire County Council,1111/1001,Children and Young People,CYP,Transport Related,CCA,21/08/2023,05-14337,816,Southside Cars Ltd
Nottinghamshire County Council,1111/1001,Children and Young People,CYP,Transport Related,CCA,21/08/2023,05-14338,"3,322.38",Southside Cars Ltd
Nottinghamshire County Council,1111/1001,Children and Young People,CYP,Transport Related,CCA,21/08/2023,05-14339,"1,069.20",Southside Cars Ltd
Nottinghamshire County Council,1111/1001,Children and Young People,CYP,Transport Related,CCA,21/08/2023,05-14340,"1,425.51",Southside Cars Ltd
Nottinghamshire County Council,1111/1001,Children and Young People,CYP,Transport Related,CCA,21/08/2023,05-14341,"1,382.70",Southside Cars Ltd
Nottinghamshire County Council,1111/1001,Children and Young People,CYP,Transport Related,CCA,21/08/2023,05-14342,611.04,Southside Cars Ltd
Nottinghamshire County Council,1111/1001,Children and Young People,CYP,Transport Related,CCA,21/08/2023,05-14343,"3,663.84",Southside Cars Ltd
Nottinghamshire County Council,1111/1001,Children and Young People,CYP,Transport Related,CCA,21/08/2023,05-14344,"1,814.24",Southside Cars Ltd
Nottinghamshire County Council,1111/1001,Children and Young People,CYP,Transport Related,CCA,21/08/2023,05-14345,907.12,Southside Cars Ltd
Nottinghamshire County Council,1111/1001,Children and Young People,CYP,Transport Related,CCA,21/08/2023,05-14346,"3,023.28",Southside Cars Ltd
Nottinghamshire County Council,1111/1001,Children and Young People,CYP,Transport Related,CCA,21/08/2023,05-14348,"1,831.37",6 Five 2s
Nottinghamshire County Council,1111/1001,Children and Young People,CYP,Transport Related,CCA,21/08/2023,05-14351,595,6 Five 2s
Nottinghamshire County Council,1111/1001,Children and Young People,CYP,Transport Related,CCA,21/08/2023,05-14352,"3,087.15",Johnson Bros Tours Ltd
Nottinghamshire County Council,1111/1001,Children and Young People,CYP,Transport Related,CCA,21/08/2023,05-14353,"5,187.60",Johnson Bros Tours Ltd
Nottinghamshire County Council,1111/1001,Children and Young People,CYP,Transport Related,CCA,21/08/2023,05-14355,"3,288.40",Shelleys Taxis Ltd
Nottinghamshire County Council,1111/1001,Children and Young People,CYP,Transport Related,CCA,21/08/2023,05-14356,"2,546.00",Shelleys Taxis Ltd
Nottinghamshire County Council,1111/1001,Children and Young People,CYP,Transport Related,CCA,21/08/2023,05-14357,"2,079.20",Shelleys Taxis Ltd
Nottinghamshire County Council,1111/1001,Children and Young People,CYP,Transport Related,CCA,21/08/2023,05-14358,"2,466.30",Shelleys Taxis Ltd
Nottinghamshire County Council,1111/1001,Children and Young People,CYP,Transport Related,CCA,21/08/2023,05-14359,"1,909.50",Shelleys Taxis Ltd
Nottinghamshire County Council,1111/1001,Children and Young People,CYP,Transport Related,CCA,21/08/2023,05-14360,"1,559.40",Shelleys Taxis Ltd
Nottinghamshire County Council,1111/1001,Children and Young People,CYP,Transport Related,CCA,21/08/2023,05-14361,"7,256.70",BN Gibson Ltd
Nottinghamshire County Council,1111/1001,Children and Young People,CYP,Transport Related,CCA,21/08/2023,05-14362,"1,608.93",Skills Motor Coaches Ltd
Nottinghamshire County Council,1111/1001,Children and Young People,CYP,Transport Related,CCA,21/08/2023,05-14363,"1,316.88",Marshalls Of Sutton On Trent Ltd
Nottinghamshire County Council,1111/1001,Children and Young People,CYP,Transport Related,CCA,21/08/2023,05-14364,"1,529.28",Silverdale Tours Nottm Ltd
Nottinghamshire County Council,1111/1001,Children and Young People,CYP,Transport Related,CCA,21/08/2023,05-14365,"1,146.96",Silverdale Tours Nottm Ltd
Nottinghamshire County Council,1111/1001,Children and Young People,CYP,Transport Related,CCA,21/08/2023,05-14366,"4,858.32",Kettlewell Retford Ltd
Nottinghamshire County Council,1111/1001,Children and Young People,CYP,Transport Related,CCA,21/08/2023,05-14367,519.96,Kettlewell Retford Ltd
Nottinghamshire County Council,1111/1001,Children and Young People,CYP,Transport Related,CCA,21/08/2023,05-14369,"1,933.65",Paul S Winson Coaches
Nottinghamshire County Council,1111/1001,Children and Young People,CYP,Transport Related,CCA,21/08/2023,05-14370,"1,786.65",Wallis Coachways
Nottinghamshire County Council,1111/1001,Children and Young People,CYP,Transport Related,CCA,21/08/2023,05-14371,"1,933.65",Wallis Coachways
Nottinghamshire County Council,1111/1001,Children and Young People,CYP,Transport Related,CCA,21/08/2023,05-14372,"3,885.52",Ace Cars & Minibuses Ltd
Nottinghamshire County Council,1111/1001,Children and Young People,CYP,Transport Related,CCA,21/08/2023,05-14373,"1,610.00",Hammonds Coaches Ltd
Nottinghamshire County Council,1111/1001,Children and Young People,CYP,Transport Related,CCA,21/08/2023,05-14374,"1,040.00",Hammonds Coaches Ltd
Nottinghamshire County Council,1111/1001,Children and Young People,CYP,Transport Related,CCA,21/08/2023,05-14375,"3,100.46",CT4N Ltd
Nottinghamshire County Council,1111/1001,Children and Young People,CYP,Transport Related,CCA,21/08/2023,05-14378,"2,230.91",CT4N Ltd
Nottinghamshire County Council,1111/1001,Children and Young People,CYP,Transport Related,CCA,21/08/2023,05-14379,"1,968.45",CT4N Ltd
Nottinghamshire County Council,1111/1001,Children and Young People,CYP,Transport Related,CCA,21/08/2023,05-14380,"1,543.65",CT4N Ltd
Nottinghamshire County Council,1111/1001,Children and Young People,CYP,Transport Related,CCA,21/08/2023,05-14381,749.91,Millennium Travel (Mansfield) Ltd
Nottinghamshire County Council,1111/1001,Children and Young People,CYP,Transport Related,CCA,21/08/2023,05-14382,"5,518.37",24 x 7 (Nottingham) Ltd
Nottinghamshire County Council,1111/1001,Children and Young People,CYP,Transport Related,CCA,21/08/2023,05-14383,"1,660.53",24 x 7 (Nottingham) Ltd
Nottinghamshire County Council,1111/1001,Children and Young People,CYP,Transport Related,CCA,21/08/2023,05-14384,"5,855.00",24 x 7 (Nottingham) Ltd
Nottinghamshire County Council,1111/1001,Children and Young People,CYP,Transport Related,CCA,21/08/2023,05-14389,"2,276.60",24 x 7 (Nottingham) Ltd
Nottinghamshire County Council,1111/1001,Children and Young People,CYP,Transport Related,CCA,21/08/2023,05-14390,"2,624.64",24 x 7 (Nottingham) Ltd
Nottinghamshire County Council,1111/1001,Children and Young People,CYP,Transport Related,CCA,21/08/2023,05-14391,694.8,24 x 7 (Nottingham) Ltd
Nottinghamshire County Council,1111/1001,Children and Young People,CYP,Transport Related,CCA,21/08/2023,05-14392,"1,952.96",24 x 7 (Nottingham) Ltd
Nottinghamshire County Council,1111/1001,Children and Young People,CYP,Transport Related,CCA,21/08/2023,05-14393,"1,789.12",24 x 7 (Nottingham) Ltd
Nottinghamshire County Council,1111/1001,Children and Young People,CYP,Transport Related,CCA,21/08/2023,05-14396,"5,340.62",24 x 7 (Nottingham) Ltd
Nottinghamshire County Council,1111/1001,Children and Young People,CYP,Transport Related,CCA,21/08/2023,05-14397,"5,994.80",24 x 7 (Nottingham) Ltd
Nottinghamshire County Council,1111/1001,Children and Young People,CYP,Transport Related,CCA,21/08/2023,05-14399,"2,095.00",Phoenix Private Hire Ltd
Nottinghamshire County Council,1111/1001,Children and Young People,CYP,Transport Related,CCA,22/08/2023,05-14412,"2,981.95",Sharpes Of Nottingham
Nottinghamshire County Council,1111/1001,Children and Young People,CYP,Transport Related,CCA,22/08/2023,05-14413,"1,209.16",Southside Cars Ltd
Nottinghamshire County Council,1111/1001,Children and Young People,CYP,Transport Related,CCA,22/08/2023,05-14414,530.4,F4Control Ltd (t/a First4care)
Nottinghamshire County Council,1111/1001,Children and Young People,CYP,Transport Related,CCA,22/08/2023,05-14420,540,Abacus Cars
Nottinghamshire County Council,1111/1001,Children and Young People,CYP,Transport Related,CCA,22/08/2023,05-14421,"3,249.80",Silverdale Tours Nottm Ltd
Nottinghamshire County Council,1111/1001,Children and Young People,CYP,Transport Related,CCA,22/08/2023,05-14422,889.8,SM Travel Yorkshire Ltd
Nottinghamshire County Council,1111/1001,Children and Young People,CYP,Transport Related,CCA,24/08/2023,05-12625,"5,129.75",Marks Transport Group Ltd
Nottinghamshire County Council,1111/1001,Children and Young People,CYP,Transport Related,CCA,24/08/2023,05-12627,"4,619.75",Marks Transport Group Ltd
Nottinghamshire County Council,1111/1001,Children and Young People,CYP,Transport Related,CCA,24/08/2023,05-12629,"3,360.00",Marks Transport Group Ltd
Nottinghamshire County Council,1111/1001,Children and Young People,CYP,Transport Related,CCA,24/08/2023,05-13942,682.98,24 x 7 (Nottingham) Ltd
Nottinghamshire County Council,1111/1001,Children and Young People,CYP,Transport Related,CCA,24/08/2023,05-13943,"2,767.77",24 x 7 (Nottingham) Ltd
Nottinghamshire County Council,1111/1001,Children and Young People,CYP,Transport Related,CCA,24/08/2023,05-13944,566.55,24 x 7 (Nottingham) Ltd
Nottinghamshire County Council,1111/1001,Children and Young People,CYP,Transport Related,CCA,24/08/2023,05-13945,"2,079.95",24 x 7 (Nottingham) Ltd
Nottinghamshire County Council,1111/1001,Children and Young People,CYP,Transport Related,CCA,24/08/2023,05-13946,"1,573.18",24 x 7 (Nottingham) Ltd
Nottinghamshire County Council,1111/1001,Children and Young People,CYP,Transport Related,CCA,24/08/2023,05-13947,"2,309.12",24 x 7 (Nottingham) Ltd
Nottinghamshire County Council,1111/1001,Children and Young People,CYP,Transport Related,CCA,24/08/2023,05-13948,"3,140.48",24 x 7 (Nottingham) Ltd
Nottinghamshire County Council,1111/1001,Children and Young People,CYP,Transport Related,CCA,24/08/2023,05-13949,"1,968.48",24 x 7 (Nottingham) Ltd
Nottinghamshire County Council,1111/1001,Children and Young People,CYP,Transport Related,CCA,24/08/2023,05-13950,"1,433.70",24 x 7 (Nottingham) Ltd
Nottinghamshire County Council,1111/1001,Children and Young People,CYP,Transport Related,CCA,24/08/2023,05-13951,590.2,24 x 7 (Nottingham) Ltd
Nottinghamshire County Council,1111/1001,Children and Young People,CYP,Transport Related,CCA,24/08/2023,05-13952,"3,891.84",24 x 7 (Nottingham) Ltd
Nottinghamshire County Council,1111/1001,Children and Young People,CYP,Transport Related,CCA,24/08/2023,05-13953,"4,591.05",24 x 7 (Nottingham) Ltd
Nottinghamshire County Council,1111/1001,Children and Young People,CYP,Transport Related,CCA,24/08/2023,05-13954,"2,046.12",24 x 7 (Nottingham) Ltd
Nottinghamshire County Council,1111/1001,Children and Young People,CYP,Transport Related,CCA,24/08/2023,05-13955,"2,720.10",24 x 7 (Nottingham) Ltd
Nottinghamshire County Council,1111/1001,Children and Young People,CYP,Transport Related,CCA,24/08/2023,05-13956,"2,038.35",24 x 7 (Nottingham) Ltd
Nottinghamshire County Council,1111/1001,Children and Young People,CYP,Transport Related,CCA,24/08/2023,05-13957,"1,608.32",24 x 7 (Nottingham) Ltd
Nottinghamshire County Council,1111/1001,Children and Young People,CYP,Transport Related,CCA,24/08/2023,05-13958,"1,178.66",24 x 7 (Nottingham) Ltd
Nottinghamshire County Council,1111/1001,Children and Young People,CYP,Transport Related,CCA,24/08/2023,05-13959,"1,824.64",24 x 7 (Nottingham) Ltd
Nottinghamshire County Council,1111/1001,Children and Young People,CYP,Transport Related,CCA,24/08/2023,05-13960,"1,450.95",24 x 7 (Nottingham) Ltd
Nottinghamshire County Council,1111/1001,Children and Young People,CYP,Transport Related,CCA,24/08/2023,05-13961,"2,006.24",24 x 7 (Nottingham) Ltd
Nottinghamshire County Council,1111/1001,Children and Young People,CYP,Transport Related,CCA,24/08/2023,05-13962,"1,302.00",24 x 7 (Nottingham) Ltd
Nottinghamshire County Council,1111/1001,Children and Young People,CYP,Transport Related,CCA,24/08/2023,05-13963,"4,363.38",24 x 7 (Nottingham) Ltd
Nottinghamshire County Council,1111/1001,Children and Young People,CYP,Transport Related,CCA,24/08/2023,05-13964,"3,287.29",24 x 7 (Nottingham) Ltd
Nottinghamshire County Council,1111/1001,Children and Young People,CYP,Transport Related,CCA,24/08/2023,05-13965,"3,356.99",24 x 7 (Nottingham) Ltd
Nottinghamshire County Council,1111/1001,Children and Young People,CYP,Transport Related,CCA,24/08/2023,05-13966,"2,624.10",24 x 7 (Nottingham) Ltd
Nottinghamshire County Council,1111/1001,Children and Young People,CYP,Transport Related,CCA,24/08/2023,05-13967,"3,848.25",24 x 7 (Nottingham) Ltd
Nottinghamshire County Council,1111/1001,Children and Young People,CYP,Transport Related,CCA,24/08/2023,05-14394,"4,391.25",24 x 7 (Nottingham) Ltd
Nottinghamshire County Council,1111/1001,Children and Young People,CYP,Transport Related,CCA,24/08/2023,05-14395,"1,341.84",24 x 7 (Nottingham) Ltd
Nottinghamshire County Council,1111/1001,Children and Young People,CYP,Transport Related,CCA,24/08/2023,05-14398,"4,795.84",24 x 7 (Nottingham) Ltd
Nottinghamshire County Council,1111/1001,Children and Young People,CYP,Transport Related,CCA,25/08/2023,05-14467,"2,291.40",Shelleys Taxis Ltd
Nottinghamshire County Council,1111/1001,Children and Young People,CYP,Transport Related,CCA,25/08/2023,05-14468,"1,833.12",Shelleys Taxis Ltd
Nottinghamshire County Council,1111/1001,Children and Young People,CYP,Transport Related,CCA,25/08/2023,05-14472,"2,904.00",Hammonds Coaches Ltd
Nottinghamshire County Council,1111/1001,Children and Young People,CYP,Transport Related,CCA,25/08/2023,05-17205,"4,656.00",Butler Brothers Ltd
Nottinghamshire County Council,1111/1001,Children and Young People,CYP,Transport Related,CCA,25/08/2023,05-17206,"4,017.00",Butler Brothers Ltd
Nottinghamshire County Council,1111/1001,Children and Young People,CYP,Transport Related,CCA,25/08/2023,05-17208,"4,676.02",Stagecoach Services Ltd
Nottinghamshire County Council,1111/1001,Children and Young People,CYP,Transport Related,CCA,25/08/2023,05-17213,"2,124.33",24 x 7 (Nottingham) Ltd
Nottinghamshire County Council,1111/1001,Children and Young People,CYP,Transport Related,CDA,04/08/2023,05-18241,"1,870.00",Take Me (Group) Ltd T/A ADT Taxis
Nottinghamshire County Council,1111/1001,Children and Young People,CYP,Transport Related,CDA,11/08/2023,05-11701,"1,232.50",Southside Cars Ltd
Nottinghamshire County Council,1111/1001,Children and Young People,CYP,Transport Related,CDA,11/08/2023,05-11704,"1,082.22",6 Five 2s
Nottinghamshire County Council,1111/1001,Children and Young People,CYP,Transport Related,CDA,11/08/2023,05-11716,800,6 Five 2s
Nottinghamshire County Council,1111/1001,Children and Young People,CYP,Transport Related,CDA,11/08/2023,05-11750,"5,284.30",AOT Coaches Nottingham LLP
Nottinghamshire County Council,1111/1001,Children and Young People,CYP,Transport Related,CDA,11/08/2023,05-11758,"14,523.30",C W Moxon Ltd
Nottinghamshire County Council,1111/1001,Children and Young People,CYP,Transport Related,CDA,11/08/2023,05-11759,"2,193.60",C W Moxon Ltd
Nottinghamshire County Council,1111/1001,Children and Young People,CYP,Transport Related,CDA,11/08/2023,05-11760,"4,484.55",C W Moxon Ltd
Nottinghamshire County Council,1111/1001,Children and Young People,CYP,Transport Related,CDA,11/08/2023,05-11770,"1,213.55",Ideal Cars (Private Hire) Ltd
Nottinghamshire County Council,1111/1001,Children and Young People,CYP,Transport Related,CDA,14/08/2023,05-12215,"5,183.40",Johnson Bros Tours Ltd
Nottinghamshire County Council,1111/1001,Children and Young People,CYP,Transport Related,CDA,14/08/2023,05-12216,"1,865.40",Johnson Bros Tours Ltd
Nottinghamshire County Council,1111/1001,Children and Young People,CYP,Transport Related,CDA,14/08/2023,05-12217,"4,875.00",Johnson Bros Tours Ltd
Nottinghamshire County Council,1111/1001,Children and Young People,CYP,Transport Related,CDA,14/08/2023,05-12224,590.31,200 Cars Ltd
Nottinghamshire County Council,1111/1001,Children and Young People,CYP,Transport Related,CDA,14/08/2023,05-12256,"1,717.02",Alpha Cars
Nottinghamshire County Council,1111/1001,Children and Young People,CYP,Transport Related,CDA,14/08/2023,05-12320,"1,439.19",D G Private Hire Ltd
Nottinghamshire County Council,1111/1001,Children and Young People,CYP,Transport Related,CDA,14/08/2023,05-12341,"2,578.05",Nottingham Minibuses & Coaches
Nottinghamshire County Council,1111/1001,Children and Young People,CYP,Transport Related,CDA,14/08/2023,05-12342,"2,393.94",Nottingham Minibuses & Coaches
Nottinghamshire County Council,1111/1001,Children and Young People,CYP,Transport Related,CDA,14/08/2023,05-12343,"1,440.00",Nottingham Minibuses & Coaches
Nottinghamshire County Council,1111/1001,Children and Young People,CYP,Transport Related,CDA,14/08/2023,05-12344,"1,543.65",Nottingham Minibuses & Coaches
Nottinghamshire County Council,1111/1001,Children and Young People,CYP,Transport Related,CDA,14/08/2023,05-12345,"2,031.15",Nottingham Minibuses & Coaches
Nottinghamshire County Council,1111/1001,Children and Young People,CYP,Transport Related,CDA,14/08/2023,05-12347,"2,297.55",Nottingham Minibuses & Coaches
Nottinghamshire County Council,1111/1001,Children and Young People,CYP,Transport Related,CDA,14/08/2023,05-12348,"4,032.00",Nottingham Minibuses & Coaches
Nottinghamshire County Council,1111/1001,Children and Young People,CYP,Transport Related,CDA,14/08/2023,05-12349,"2,112.30",Nottingham Minibuses & Coaches
Nottinghamshire County Council,1111/1001,Children and Young People,CYP,Transport Related,CDA,14/08/2023,05-12352,"17,952.00",Nottingham Minibuses & Coaches
Nottinghamshire County Council,1111/1001,Children and Young People,CYP,Transport Related,CDA,14/08/2023,05-12358,"2,680.95",Silverdale Tours Nottm Ltd
Nottinghamshire County Council,1111/1001,Children and Young People,CYP,Transport Related,CDA,14/08/2023,05-12359,"2,680.95",Silverdale Tours Nottm Ltd
Nottinghamshire County Council,1111/1001,Children and Young People,CYP,Transport Related,CDA,14/08/2023,05-12360,"2,681.10",Silverdale Tours Nottm Ltd
Nottinghamshire County Council,1111/1001,Children and Young People,CYP,Transport Related,CDA,14/08/2023,05-12361,"2,681.10",Silverdale Tours Nottm Ltd
Nottinghamshire County Council,1111/1001,Children and Young People,CYP,Transport Related,CDA,14/08/2023,05-12362,"26,333.34",Stagecoach Services Ltd
Nottinghamshire County Council,1111/1001,Children and Young People,CYP,Transport Related,CDA,14/08/2023,05-12430,400,Eastwood Cars (UK) Ltd
Nottinghamshire County Council,1111/1001,Children and Young People,CYP,Transport Related,CDA,14/08/2023,05-12436,246.05,Millennium Travel (Mansfield) Ltd
Nottinghamshire County Council,1111/1001,Children and Young People,CYP,Transport Related,CDA,14/08/2023,05-12447,"2,086.00",JK Transport Ltd
Nottinghamshire County Council,1111/1001,Children and Young People,CYP,Transport Related,CDA,14/08/2023,05-12448,"2,901.00",JK Transport Ltd
Nottinghamshire County Council,1111/1001,Children and Young People,CYP,Transport Related,CDA,14/08/2023,05-12469,"2,171.85",JK Transport Ltd
Nottinghamshire County Council,1111/1001,Children and Young People,CYP,Transport Related,CDA,15/08/2023,05-12564,"1,401.70",Southside Cars Ltd
Nottinghamshire County Council,1111/1001,Children and Young People,CYP,Transport Related,CDA,15/08/2023,05-13669,"3,280.00",A1 Private Hire Ltd
Nottinghamshire County Council,1111/1001,Children and Young People,CYP,Transport Related,CDA,16/08/2023,05-13729,"3,541.77",Tiger European Uk Ltd
Nottinghamshire County Council,1111/1001,Children and Young People,CYP,Transport Related,CDA,16/08/2023,05-13730,"3,236.56",Tiger European Uk Ltd
Nottinghamshire County Council,1111/1001,Children and Young People,CYP,Transport Related,CDA,16/08/2023,05-13747,"1,570.70",Tiger European Uk Ltd
Nottinghamshire County Council,1111/1001,Children and Young People,CYP,Transport Related,CDA,16/08/2023,05-13748,"1,435.30",Tiger European Uk Ltd
Nottinghamshire County Council,1111/1001,Children and Young People,CYP,Transport Related,CDA,16/08/2023,05-13764,"2,797.26",Tiger European Uk Ltd
Nottinghamshire County Council,1111/1001,Children and Young People,CYP,Transport Related,CDA,16/08/2023,05-13765,"2,548.54",Tiger European Uk Ltd
Nottinghamshire County Council,1111/1001,Children and Young People,CYP,Transport Related,CDA,16/08/2023,05-13782,"2,984.33",Tiger European Uk Ltd
Nottinghamshire County Council,1111/1001,Children and Young People,CYP,Transport Related,CDA,16/08/2023,05-13783,"2,870.60",Tiger European Uk Ltd
Nottinghamshire County Council,1111/1001,Children and Young People,CYP,Transport Related,CDA,16/08/2023,05-13800,"2,356.05",Tiger European Uk Ltd
Nottinghamshire County Council,1111/1001,Children and Young People,CYP,Transport Related,CDA,16/08/2023,05-13801,"2,152.95",Tiger European Uk Ltd
Nottinghamshire County Council,1111/1001,Children and Young People,CYP,Transport Related,CDA,18/08/2023,05-13919,"7,246.05",Marshalls Of Sutton On Trent Ltd
Nottinghamshire County Council,1111/1001,Children and Young People,CYP,Transport Related,CDA,21/08/2023,05-14333,"1,690.50",Southside Cars Ltd
Nottinghamshire County Council,1111/1001,Children and Young People,CYP,Transport Related,CDA,21/08/2023,05-14347,"2,584.00",Southside Cars Ltd
Nottinghamshire County Council,1111/1001,Children and Young People,CYP,Transport Related,CDA,21/08/2023,05-14350,"2,405.00",6 Five 2s
Nottinghamshire County Council,1111/1001,Children and Young People,CYP,Transport Related,CDA,21/08/2023,05-14368,"5,563.50",Paul S Winson Coaches
Nottinghamshire County Council,1111/1001,Children and Young People,CYP,Transport Related,CEA,17/08/2023,05-13852,"4,719.82",Reed Employment Ltd
Nottinghamshire County Council,1111/1001,Children and Young People,CYP,Transport Related,CEA,21/08/2023,05-13848,"3,373.82",Reed Employment Ltd
Nottinghamshire County Council,1111/1001,Children and Young People,CYP,Transport Related,CEA,29/08/2023,05-14487,"3,779.82",Reed Employment Ltd
Nottinghamshire County Council,1111/1001,Children and Young People,CYP,Supplies & Services,DAA,22/08/2023,05-18895,885,Royal Life Saving Society UK(RLSS U
Nottinghamshire County Council,1111/1001,Children and Young People,CYP,Supplies & Services,DAA,25/08/2023,05-18893,500,Royal Life Saving Society UK(RLSS U
Nottinghamshire County Council,1111/1001,Children and Young People,CYP,Supplies & Services,DBA,02/08/2023,05-10050,"1,181.00",Brake Bros Ltd
Nottinghamshire County Council,1111/1001,Children and Young People,CYP,Supplies & Services,DBA,02/08/2023,05-18151,"3,066.00",P Ironside T/A Mill Waters Caf�
Nottinghamshire County Council,1111/1001,Children and Young People,CYP,Supplies & Services,DBA,03/08/2023,05-10292,312.37,M Maloney Country Butchers & B Ltd
Nottinghamshire County Council,1111/1001,Children and Young People,CYP,Supplies & Services,DBA,14/08/2023,05-11818,"1,925.00",John Palin (Wholesale) Ltd
Nottinghamshire County Council,1111/1001,Children and Young People,CYP,Supplies & Services,DBA,15/08/2023,05-12476,378.51,M Maloney Country Butchers & B Ltd
Nottinghamshire County Council,1111/1001,Children and Young People,CYP,Supplies & Services,DBA,16/08/2023,05-13841,643.09,Fresh Opportunities Ltd
Nottinghamshire County Council,1111/1001,Children and Young People,CYP,Supplies & Services,DBA,18/08/2023,05-13860,316.93,M Maloney Country Butchers & B Ltd
Nottinghamshire County Council,1111/1001,Children and Young People,CYP,Supplies & Services,DBA,23/08/2023,05-10126,471.38,Brake Bros Ltd
Nottinghamshire County Council,1111/1001,Children and Young People,CYP,Supplies & Services,DBA,29/08/2023,05-17588,360.51,M Maloney Country Butchers & B Ltd
Nottinghamshire County Council,1111/1001,Children and Young People,CYP,Supplies & Services,DBA,30/08/2023,05-11426,"1,370.53",Brake Bros Ltd
Nottinghamshire County Council,1111/1001,Children and Young People,CYP,Supplies & Services,DBA,30/08/2023,05-19054,"3,066.00",P Ironside T/A Mill Waters Caf�
Nottinghamshire County Council,1111/1001,Children and Young People,CYP,Supplies & Services,DDA,22/08/2023,05-18697,834,100 Homes
Nottinghamshire County Council,1111/1001,Children and Young People,CYP,Supplies & Services,DEA,02/08/2023,05-18123,"1,410.00",Sally Eagle Ltd
Nottinghamshire County Council,1111/1001,Children and Young People,CYP,Supplies & Services,DEA,02/08/2023,05-18150,880,Sally Eagle Ltd
Nottinghamshire County Council,1111/1001,Children and Young People,CYP,Supplies & Services,DEA,03/08/2023,05-18114,"2,750.00",Crisp & Crane Training Ltd
Nottinghamshire County Council,1111/1001,Children and Young People,CYP,Supplies & Services,DEA,03/08/2023,05-18116,620,[Redacted]
Nottinghamshire County Council,1111/1001,Children and Young People,CYP,Supplies & Services,DEA,03/08/2023,05-18135,693,Playful Family Psychotherapy Ltd
Nottinghamshire County Council,1111/1001,Children and Young People,CYP,Supplies & Services,DEA,03/08/2023,05-18209,875,C Brewer T/A Imagine Arts Therapy
Nottinghamshire County Council,1111/1001,Children and Young People,CYP,Supplies & Services,DEA,03/08/2023,05-18210,700,C Brewer T/A Imagine Arts Therapy
Nottinghamshire County Council,1111/1001,Children and Young People,CYP,Supplies & Services,DEA,03/08/2023,05-18211,"1,000.00",C Brewer T/A Imagine Arts Therapy
Nottinghamshire County Council,1111/1001,Children and Young People,CYP,Supplies & Services,DEA,03/08/2023,05-18212,"3,600.00",Childrens Sensory Therapy Ltd
Nottinghamshire County Council,1111/1001,Children and Young People,CYP,Supplies & Services,DEA,03/08/2023,05-18213,"1,920.00",Childrens Sensory Therapy Ltd
Nottinghamshire County Council,1111/1001,Children and Young People,CYP,Supplies & Services,DEA,04/08/2023,05-18206,"1,555.00",[Redacted]
Nottinghamshire County Council,1111/1001,Children and Young People,CYP,Supplies & Services,DEA,04/08/2023,05-18220,800,C Brewer T/A Imagine Arts Therapy
Nottinghamshire County Council,1111/1001,Children and Young People,CYP,Supplies & Services,DEA,04/08/2023,05-18223,865,C Brewer T/A Imagine Arts Therapy
Nottinghamshire County Council,1111/1001,Children and Young People,CYP,Supplies & Services,DEA,04/08/2023,05-18233,"1,250.00",Jigsaw Psychology Ltd
Nottinghamshire County Council,1111/1001,Children and Young People,CYP,Supplies & Services,DEA,04/08/2023,05-18236,500,Jigsaw Psychology Ltd
Nottinghamshire County Council,1111/1001,Children and Young People,CYP,Supplies & Services,DEA,04/08/2023,05-18244,820,Lotus Therapy Ltd
Nottinghamshire County Council,1111/1001,Children and Young People,CYP,Supplies & Services,DEA,04/08/2023,05-18245,760,C Brewer T/A Imagine Arts Therapy
Nottinghamshire County Council,1111/1001,Children and Young People,CYP,Supplies & Services,DEA,04/08/2023,05-18246,760,Lotus Therapy Ltd
Nottinghamshire County Council,1111/1001,Children and Young People,CYP,Supplies & Services,DEA,04/08/2023,05-18284,"5,435.30",CoramBAAF Adoption & Fostering Agen
Nottinghamshire County Council,1111/1001,Children and Young People,CYP,Supplies & Services,DEA,07/08/2023,05-18285,"24,188.18",People Plus Group Ltd (Head Office)
Nottinghamshire County Council,1111/1001,Children and Young People,CYP,Supplies & Services,DEA,07/08/2023,05-18307,"1,570.00",[Redacted]
Nottinghamshire County Council,1111/1001,Children and Young People,CYP,Supplies & Services,DEA,07/08/2023,05-18310,"1,340.00",Thompson Technical Service Ltd
Nottinghamshire County Council,1111/1001,Children and Young People,CYP,Supplies & Services,DEA,07/08/2023,05-18323,"1,250.00",Chrysalis Associates Ltd
Nottinghamshire County Council,1111/1001,Children and Young People,CYP,Supplies & Services,DEA,08/08/2023,05-18326,"5,220.00","Culture, Learning & Libraries (Midl"
Nottinghamshire County Council,1111/1001,Children and Young People,CYP,Supplies & Services,DEA,08/08/2023,05-18347,"3,150.00",Rose Callan Education Services
Nottinghamshire County Council,1111/1001,Children and Young People,CYP,Supplies & Services,DEA,09/08/2023,05-11441,"2,592.40",Sensory Learning & Play CIC
Nottinghamshire County Council,1111/1001,Children and Young People,CYP,Supplies & Services,DEA,09/08/2023,05-18170,"2,500.00",Carter Brown - The Expert Service L
Nottinghamshire County Council,1111/1001,Children and Young People,CYP,Supplies & Services,DEA,09/08/2023,05-18337,"2,400.00",Carter Brown - The Expert Service L
Nottinghamshire County Council,1111/1001,Children and Young People,CYP,Supplies & Services,DEA,09/08/2023,05-18382,675,Andrew Lagden Ltd
Nottinghamshire County Council,1111/1001,Children and Young People,CYP,Supplies & Services,DEA,10/08/2023,05-18464,558.25,[Redacted]
Nottinghamshire County Council,1111/1001,Children and Young People,CYP,Supplies & Services,DEA,10/08/2023,05-18468,700,C Brewer T/A Imagine Arts Therapy
Nottinghamshire County Council,1111/1001,Children and Young People,CYP,Supplies & Services,DEA,10/08/2023,05-18471,777,Complement Genomics Ltd
Nottinghamshire County Council,1111/1001,Children and Young People,CYP,Supplies & Services,DEA,10/08/2023,05-18481,573,Child Centred Solutions Ltd
Nottinghamshire County Council,1111/1001,Children and Young People,CYP,Supplies & Services,DEA,10/08/2023,05-18482,553.5,Child Centred Solutions Ltd
Nottinghamshire County Council,1111/1001,Children and Young People,CYP,Supplies & Services,DEA,10/08/2023,05-18522,900,Sends Support CIC
Nottinghamshire County Council,1111/1001,Children and Young People,CYP,Supplies & Services,DEA,10/08/2023,05-18528,997.68,ARC Property Services Partnership L
Nottinghamshire County Council,1111/1001,Children and Young People,CYP,Supplies & Services,DEA,11/08/2023,05-10312,600,Halborns Ltd
Nottinghamshire County Council,1111/1001,Children and Young People,CYP,Supplies & Services,DEA,11/08/2023,05-10313,600,Halborns Ltd
Nottinghamshire County Council,1111/1001,Children and Young People,CYP,Supplies & Services,DEA,11/08/2023,05-10314,600,Halborns Ltd
Nottinghamshire County Council,1111/1001,Children and Young People,CYP,Supplies & Services,DEA,11/08/2023,05-10315,600,Halborns Ltd
Nottinghamshire County Council,1111/1001,Children and Young People,CYP,Supplies & Services,DEA,11/08/2023,05-18530,800,TW Educational Consultancy
Nottinghamshire County Council,1111/1001,Children and Young People,CYP,Supplies & Services,DEA,11/08/2023,05-18548,550,Sarah Mann Shaw Ltd
Nottinghamshire County Council,1111/1001,Children and Young People,CYP,Supplies & Services,DEA,11/08/2023,05-18550,520,Lotus Therapy Ltd
Nottinghamshire County Council,1111/1001,Children and Young People,CYP,Supplies & Services,DEA,11/08/2023,05-18553,750,Jigsaw Psychology Ltd
Nottinghamshire County Council,1111/1001,Children and Young People,CYP,Supplies & Services,DEA,14/08/2023,05-18180,875,Jigsaw Psychology Ltd
Nottinghamshire County Council,1111/1001,Children and Young People,CYP,Supplies & Services,DEA,15/08/2023,05-18429,"2,400.00",Carter Brown - The Expert Service L
Nottinghamshire County Council,1111/1001,Children and Young People,CYP,Supplies & Services,DEA,15/08/2023,05-18624,720,[Redacted]
Nottinghamshire County Council,1111/1001,Children and Young People,CYP,Supplies & Services,DEA,16/08/2023,05-18504,540,Total Care Matters Ltd
Nottinghamshire County Council,1111/1001,Children and Young People,CYP,Supplies & Services,DEA,16/08/2023,05-18505,540,Total Care Matters Ltd
Nottinghamshire County Council,1111/1001,Children and Young People,CYP,Supplies & Services,DEA,16/08/2023,05-18506,540,Total Care Matters Ltd
Nottinghamshire County Council,1111/1001,Children and Young People,CYP,Supplies & Services,DEA,16/08/2023,05-18682,640,Lotus Therapy Ltd
Nottinghamshire County Council,1111/1001,Children and Young People,CYP,Supplies & Services,DEA,16/08/2023,05-18692,"2,475.00",Earl Education Consultancy Ltd
Nottinghamshire County Council,1111/1001,Children and Young People,CYP,Supplies & Services,DEA,16/08/2023,05-18701,"3,600.00",Childrens Sensory Therapy Ltd
Nottinghamshire County Council,1111/1001,Children and Young People,CYP,Supplies & Services,DEA,16/08/2023,05-18705,"1,380.00",[Redacted]
Nottinghamshire County Council,1111/1001,Children and Young People,CYP,Supplies & Services,DEA,16/08/2023,05-18725,520,Catharsis - Creative Arts Therapy
Nottinghamshire County Council,1111/1001,Children and Young People,CYP,Supplies & Services,DEA,17/08/2023,05-18171,"2,400.00",Carter Brown - The Expert Service L
Nottinghamshire County Council,1111/1001,Children and Young People,CYP,Supplies & Services,DEA,17/08/2023,05-18184,"1,000.00",Bright Light Therapy
Nottinghamshire County Council,1111/1001,Children and Young People,CYP,Supplies & Services,DEA,17/08/2023,05-18379,"3,600.00",RMH Associates
Nottinghamshire County Council,1111/1001,Children and Young People,CYP,Supplies & Services,DEA,17/08/2023,05-18732,680,Enabling Hope CIC
Nottinghamshire County Council,1111/1001,Children and Young People,CYP,Supplies & Services,DEA,18/08/2023,05-18189,500,Bright Light Therapy
Nottinghamshire County Council,1111/1001,Children and Young People,CYP,Supplies & Services,DEA,18/08/2023,05-18462,909.6,Montague Consulting Ltd
Nottinghamshire County Council,1111/1001,Children and Young People,CYP,Supplies & Services,DEA,18/08/2023,05-18490,560,TAAFA (Ruth Adams)
Nottinghamshire County Council,1111/1001,Children and Young People,CYP,Supplies & Services,DEA,18/08/2023,05-18787,"2,613.50",Children's Choice Therapy Services
Nottinghamshire County Council,1111/1001,Children and Young People,CYP,Supplies & Services,DEA,18/08/2023,05-18800,"2,916.00",Children's Choice Therapy Services
Nottinghamshire County Council,1111/1001,Children and Young People,CYP,Supplies & Services,DEA,21/08/2023,05-10300,500,Elliot Mather LLP Solicitors
Nottinghamshire County Council,1111/1001,Children and Young People,CYP,Supplies & Services,DEA,21/08/2023,05-18185,500,Bright Light Therapy
Nottinghamshire County Council,1111/1001,Children and Young People,CYP,Supplies & Services,DEA,21/08/2023,05-18186,500,Bright Light Therapy
Nottinghamshire County Council,1111/1001,Children and Young People,CYP,Supplies & Services,DEA,21/08/2023,05-18187,500,Bright Light Therapy
Nottinghamshire County Council,1111/1001,Children and Young People,CYP,Supplies & Services,DEA,21/08/2023,05-18188,"1,250.00",Bright Light Therapy
Nottinghamshire County Council,1111/1001,Children and Young People,CYP,Supplies & Services,DEA,21/08/2023,05-18815,"1,620.00",Medical Expert Witness Alliance (ME
Nottinghamshire County Council,1111/1001,Children and Young People,CYP,Supplies & Services,DEA,23/08/2023,05-18912,880,Sally Eagle Ltd
Nottinghamshire County Council,1111/1001,Children and Young People,CYP,Supplies & Services,DEA,23/08/2023,05-18922,"1,785.00",Crisis Prevention Institute
Nottinghamshire County Council,1111/1001,Children and Young People,CYP,Supplies & Services,DEA,24/08/2023,05-18162,"2,797.22",Ann Lugering Education Services
Nottinghamshire County Council,1111/1001,Children and Young People,CYP,Supplies & Services,DEA,24/08/2023,05-18174,"1,080.00",LMS Social Work Services Ltd
Nottinghamshire County Council,1111/1001,Children and Young People,CYP,Supplies & Services,DEA,24/08/2023,05-18215,656.25,[Redacted]
Nottinghamshire County Council,1111/1001,Children and Young People,CYP,Supplies & Services,DEA,24/08/2023,05-18221,750,Child Psychology Service
Nottinghamshire County Council,1111/1001,Children and Young People,CYP,Supplies & Services,DEA,24/08/2023,05-18262,520,Synchrony Psychology Ltd
Nottinghamshire County Council,1111/1001,Children and Young People,CYP,Supplies & Services,DEA,24/08/2023,05-18275,600,Family Focused Ltd
Nottinghamshire County Council,1111/1001,Children and Young People,CYP,Supplies & Services,DEA,24/08/2023,05-18318,520,Synchrony Psychology Ltd
Nottinghamshire County Council,1111/1001,Children and Young People,CYP,Supplies & Services,DEA,24/08/2023,05-18394,"1,080.00",LMS Social Work Services Ltd
Nottinghamshire County Council,1111/1001,Children and Young People,CYP,Supplies & Services,DEA,24/08/2023,05-18503,"1,800.00",Minster Trust for Education
Nottinghamshire County Council,1111/1001,Children and Young People,CYP,Supplies & Services,DEA,24/08/2023,05-18552,675,LMS Social Work Services Ltd
Nottinghamshire County Council,1111/1001,Children and Young People,CYP,Supplies & Services,DEA,24/08/2023,05-18639,600,Family Focused Ltd
Nottinghamshire County Council,1111/1001,Children and Young People,CYP,Supplies & Services,DEA,24/08/2023,05-18910,628,Adoption Matters (northwest)
Nottinghamshire County Council,1111/1001,Children and Young People,CYP,Supplies & Services,DEA,25/08/2023,05-18238,"2,485.00",Child Psychology Service
Nottinghamshire County Council,1111/1001,Children and Young People,CYP,Supplies & Services,DEA,25/08/2023,05-18426,"1,250.00",Chrysalis Associates Ltd
Nottinghamshire County Council,1111/1001,Children and Young People,CYP,Supplies & Services,DEA,29/08/2023,05-18228,"4,800.00",BUSS Model Ltd
Nottinghamshire County Council,1111/1001,Children and Young People,CYP,Supplies & Services,DEA,29/08/2023,05-18346,550,Clive Harrison Consultancy Ltd
Nottinghamshire County Council,1111/1001,Children and Young People,CYP,Supplies & Services,DEA,29/08/2023,05-18467,"2,135.00",Child & Family Training
Nottinghamshire County Council,1111/1001,Children and Young People,CYP,Supplies & Services,DEA,29/08/2023,05-18485,664.5,Manchester Occupational Therapy Ser
Nottinghamshire County Council,1111/1001,Children and Young People,CYP,Supplies & Services,DEA,29/08/2023,05-18529,"1,050.00",[Redacted]
Nottinghamshire County Council,1111/1001,Children and Young People,CYP,Supplies & Services,DEA,29/08/2023,05-18551,550,LMS Social Work Services Ltd
Nottinghamshire County Council,1111/1001,Children and Young People,CYP,Supplies & Services,DEA,29/08/2023,05-18698,675,Derbyshire Psychology Ltd
Nottinghamshire County Council,1111/1001,Children and Young People,CYP,Supplies & Services,DEA,29/08/2023,05-18968,646,Lextox Drug & Alcohol Testing
Nottinghamshire County Council,1111/1001,Children and Young People,CYP,Supplies & Services,DEA,29/08/2023,05-19007,"3,250.00",Savills L & P Ltd
Nottinghamshire County Council,1111/1001,Children and Young People,CYP,Supplies & Services,DEA,29/08/2023,05-19010,"4,962.60",Carter Brown - The Expert Service L
Nottinghamshire County Council,1111/1001,Children and Young People,CYP,Supplies & Services,DEA,29/08/2023,05-19014,"2,000.00",Inclusive Trading CIC
Nottinghamshire County Council,1111/1001,Children and Young People,CYP,Supplies & Services,DEA,29/08/2023,05-19015,"1,000.00",Inclusive Trading CIC
Nottinghamshire County Council,1111/1001,Children and Young People,CYP,Supplies & Services,DEA,29/08/2023,05-19016,800,C Brewer T/A Imagine Arts Therapy
Nottinghamshire County Council,1111/1001,Children and Young People,CYP,Supplies & Services,DEA,30/08/2023,05-18956,567.5,Carter Brown - The Expert Service L
Nottinghamshire County Council,1111/1001,Children and Young People,CYP,Supplies & Services,DEA,30/08/2023,05-18957,"2,400.00",Carter Brown - The Expert Service L
Nottinghamshire County Council,1111/1001,Children and Young People,CYP,Supplies & Services,DEA,30/08/2023,05-19026,"5,950.00",Savills L & P Ltd
Nottinghamshire County Council,1111/1001,Children and Young People,CYP,Supplies & Services,DEA,30/08/2023,05-19027,780,Chroma Therapies Ltd
Nottinghamshire County Council,1111/1001,Children and Young People,CYP,Supplies & Services,DEA,30/08/2023,05-19028,"1,750.00",Jigsaw Psychology Ltd
Nottinghamshire County Council,1111/1001,Children and Young People,CYP,Supplies & Services,DEA,30/08/2023,05-19035,"4,950.00",[Redacted]
Nottinghamshire County Council,1111/1001,Children and Young People,CYP,Supplies & Services,DEA,30/08/2023,05-19053,"1,512.00",Ecologic
Nottinghamshire County Council,1111/1001,Children and Young People,CYP,Supplies & Services,DEA,31/08/2023,05-18400,693.1,[Redacted]
Nottinghamshire County Council,1111/1001,Children and Young People,CYP,Supplies & Services,DEA,31/08/2023,05-18403,661.6,[Redacted]
Nottinghamshire County Council,1111/1001,Children and Young People,CYP,Supplies & Services,DEA,31/08/2023,05-18740,"1,138.00",Anna Wheelhouse Art
Nottinghamshire County Council,1111/1001,Children and Young People,CYP,Supplies & Services,DEA,31/08/2023,05-19056,900,[Redacted]
Nottinghamshire County Council,1111/1001,Children and Young People,CYP,Supplies & Services,DEA,31/08/2023,05-19065,500,Lisa Fletcher Therapy Consultation
Nottinghamshire County Council,1111/1001,Children and Young People,CYP,Supplies & Services,DEA,31/08/2023,05-19121,658.8,Solo Support Services Ltd
Nottinghamshire County Council,1111/1001,Children and Young People,CYP,Supplies & Services,DEA,31/08/2023,05-19128,658.8,Solo Support Services Ltd
Nottinghamshire County Council,1111/1001,Children and Young People,CYP,Supplies & Services,DEA,31/08/2023,05-19142,"1,594.00",Prepaid Financial Services Ltd
Nottinghamshire County Council,1111/1001,Children and Young People,CYP,Supplies & Services,DFA,03/08/2023,05-18111,522.04,CDW Ltd
Nottinghamshire County Council,1111/1001,Children and Young People,CYP,Supplies & Services,DFA,07/08/2023,05-18316,"3,348.00",Access UK Ltd
Nottinghamshire County Council,1111/1001,Children and Young People,CYP,Supplies & Services,DFA,21/08/2023,05-18831,"16,475.00",Signis Ltd
Nottinghamshire County Council,1111/1001,Children and Young People,CYP,Supplies & Services,DGA,09/08/2023,05-11434,"2,061.36",Positive Independence Ltd (Placemen
Nottinghamshire County Council,1111/1001,Children and Young People,CYP,Supplies & Services,DHA,07/08/2023,05-18324,"3,295.00",Catch 22
Nottinghamshire County Council,1111/1001,Children and Young People,CYP,Supplies & Services,DHA,08/08/2023,05-11405,500,National Assoc of Virtual School He
Nottinghamshire County Council,1111/1001,Children and Young People,CYP,Supplies & Services,DKA,02/08/2023,05-10130,795,MVS Transportation
Nottinghamshire County Council,1111/1001,Children and Young People,CYP,Supplies & Services,DKA,02/08/2023,05-10131,650,[Redacted]
Nottinghamshire County Council,1111/1001,Children and Young People,CYP,Supplies & Services,DKA,02/08/2023,05-10132,500,[Redacted]
Nottinghamshire County Council,1111/1001,Children and Young People,CYP,Supplies & Services,DKA,02/08/2023,05-10289,"2,436.00",200 Cars Ltd
Nottinghamshire County Council,1111/1001,Children and Young People,CYP,Supplies & Services,DKA,03/08/2023,05-18136,541.67,John Nike Leisuresport Ltd
Nottinghamshire County Council,1111/1001,Children and Young People,CYP,Supplies & Services,DKA,09/08/2023,05-11432,550,Mansfield Property Services LtdT/A
Nottinghamshire County Council,1111/1001,Children and Young People,CYP,Supplies & Services,DKA,09/08/2023,05-11433,500,[Redacted]
Nottinghamshire County Council,1111/1001,Children and Young People,CYP,Supplies & Services,DKA,15/08/2023,05-12480,825.6,Lowdham C Of E Primary School
Nottinghamshire County Council,1111/1001,Children and Young People,CYP,Supplies & Services,DKA,16/08/2023,05-13675,850,Norman Galloway Ltd
Nottinghamshire County Council,1111/1001,Children and Young People,CYP,Supplies & Services,DKA,16/08/2023,05-13677,500,Wollaton Cricket Club
Nottinghamshire County Council,1111/1001,Children and Young People,CYP,Supplies & Services,DKA,21/08/2023,05-18850,"207,339.38",East Leake Schools Ltd
Nottinghamshire County Council,1111/1001,Children and Young People,CYP,Supplies & Services,DKA,23/08/2023,05-14429,750,[Redacted]
Nottinghamshire County Council,1111/1001,Children and Young People,CYP,Supplies & Services,DKA,24/08/2023,05-18971,"4,195.59",Transform Schools (Bassetlaw) Ltd
Nottinghamshire County Council,1111/1001,Children and Young People,CYP,Supplies & Services,DKA,30/08/2023,05-17615,540,MVS Transportation
Nottinghamshire County Council,1111/1001,Children and Young People,CYP,Supplies & Services,DKA,30/08/2023,05-17616,500,[Redacted]
Nottinghamshire County Council,1111/1001,Children and Young People,CYP,Third Party Payments,EBA,01/08/2023,05-18137,"69,917.49",Bright Futures Accom Ltd(Inv Paymt
Nottinghamshire County Council,1111/1001,Children and Young People,CYP,Third Party Payments,EBA,01/08/2023,05-18138,"69,917.49",Bright Futures Accom Ltd(Inv Paymt
Nottinghamshire County Council,1111/1001,Children and Young People,CYP,Third Party Payments,EBA,07/08/2023,05-11269,"16,997.00",Nottingham City Council
Nottinghamshire County Council,1111/1001,Children and Young People,CYP,Third Party Payments,EBA,07/08/2023,05-11270,"16,849.00",Derby City Council
Nottinghamshire County Council,1111/1001,Children and Young People,CYP,Third Party Payments,EBA,09/08/2023,05-18422,"111,693.66",New Roots Housing Project
Nottinghamshire County Council,1111/1001,Children and Young People,CYP,Third Party Payments,EBA,09/08/2023,05-18425,"17,789.58",People Potential Possibilities T/A
Nottinghamshire County Council,1111/1001,Children and Young People,CYP,Third Party Payments,EBA,10/08/2023,05-18469,"58,963.75",Framework Housing Association(Head
Nottinghamshire County Council,1111/1001,Children and Young People,CYP,Third Party Payments,EBA,10/08/2023,05-18474,"32,443.77",Bright Futures Accom Ltd(Inv Paymt
Nottinghamshire County Council,1111/1001,Children and Young People,CYP,Third Party Payments,EBA,10/08/2023,05-18475,"64,887.67",Bright Futures Accom Ltd(Inv Paymt
Nottinghamshire County Council,1111/1001,Children and Young People,CYP,Third Party Payments,EBA,10/08/2023,05-18491,"16,358.67",Framework Housing Association(Head
Nottinghamshire County Council,1111/1001,Children and Young People,CYP,Third Party Payments,EBA,10/08/2023,05-18509,"27,011.25",YMCA Robin Hood Group(Head Office)
Nottinghamshire County Council,1111/1001,Children and Young People,CYP,Third Party Payments,EBA,16/08/2023,05-18671,"1,380.00",Baby T Workshops Ltd
Nottinghamshire County Council,1111/1001,Children and Young People,CYP,Third Party Payments,EBA,21/08/2023,05-18829,"220,855.91",Transform Schools (Bassetlaw) Ltd
Nottinghamshire County Council,1111/1001,Children and Young People,CYP,Third Party Payments,EBA,22/08/2023,05-18888,"69,917.49",Bright Futures Accom Ltd(Inv Paymt
Nottinghamshire County Council,1111/1001,Children and Young People,CYP,Third Party Payments,EBA,24/08/2023,05-18428,"17,789.58",People Potential Possibilities T/A
Nottinghamshire County Council,1111/1001,Children and Young People,CYP,Third Party Payments,EBA,24/08/2023,05-18444,"34,166.08",YMCA Robin Hood Group(Head Office)
Nottinghamshire County Council,1111/1001,Children and Young People,CYP,Third Party Payments,EBA,24/08/2023,05-18447,"27,011.25",YMCA Robin Hood Group(Head Office)
Nottinghamshire County Council,1111/1001,Children and Young People,CYP,Third Party Payments,EBA,29/08/2023,05-18478,"8,544.00",Nottm Community Housing Assoc (Head
Nottinghamshire County Council,1111/1001,Children and Young People,CYP,Third Party Payments,EBA,29/08/2023,05-18603,"8,544.00",Nottm Community Housing Assoc (Head
Nottinghamshire County Council,1111/1001,Children and Young People,CYP,Third Party Payments,EBA,29/08/2023,05-18604,"90,795.00",Nottingham City Council
Nottinghamshire County Council,1111/1001,Children and Young People,CYP,Third Party Payments,EBA,29/08/2023,05-19020,"120,499.95",Remedi-Restorative Services
Nottinghamshire County Council,1111/1001,Children and Young People,CYP,Third Party Payments,EBA,30/08/2023,05-18424,"111,693.66",New Roots Housing Project
Nottinghamshire County Council,1111/1001,Children and Young People,CYP,Third Party Payments,EBA,30/08/2023,05-18445,"31,279.75",New Roots Housing Project
Nottinghamshire County Council,1111/1001,Children and Young People,CYP,Third Party Payments,EBA,30/08/2023,05-19025,"233,635.19","Culture, Learning & Libraries (Midl"
Nottinghamshire County Council,1111/1001,Children and Young People,CYP,Third Party Payments,EBA,30/08/2023,05-19033,"5,845.09",Nottingham City Council
Nottinghamshire County Council,1111/1001,Children and Young People,CYP,Third Party Payments,EBA,30/08/2023,05-19051,"16,358.67",Framework Housing Association(Head
Nottinghamshire County Council,1111/1001,Children and Young People,CYP,Third Party Payments,EBA,30/08/2023,05-19052,"58,963.75",Framework Housing Association(Head
Nottinghamshire County Council,1111/1001,Children and Young People,CYP,Third Party Payments,EBA,31/08/2023,05-18089,552,Hopewood - Lookout Education Centre
Nottinghamshire County Council,1111/1001,Children and Young People,CYP,Third Party Payments,EBA,31/08/2023,05-18090,900,Progression 2Work Ltd (Registered O
Nottinghamshire County Council,1111/1001,Children and Young People,CYP,Third Party Payments,EBA,31/08/2023,05-18092,600,Channels & Choices Ltd
Nottinghamshire County Council,1111/1001,Children and Young People,CYP,Third Party Payments,EBA,31/08/2023,05-18093,700,Woodland View Primary School (Acade
Nottinghamshire County Council,1111/1001,Children and Young People,CYP,Third Party Payments,EBA,31/08/2023,05-18102,700,Westfield House School
Nottinghamshire County Council,1111/1001,Children and Young People,CYP,Third Party Payments,EBA,31/08/2023,05-18103,700,Willow Brook Primary School
Nottinghamshire County Council,1111/1001,Children and Young People,CYP,Third Party Payments,EDA,01/08/2023,05-10065,"68,635.37",Barnby Road Academy Prim & Nursery
Nottinghamshire County Council,1111/1001,Children and Young People,CYP,Third Party Payments,EDA,04/08/2023,05-10311,"53,176.00",White Hills Park Trust
Nottinghamshire County Council,1111/1001,Children and Young People,CYP,Third Party Payments,EDA,08/08/2023,05-11280,655,Outwood Academy - Valley
Nottinghamshire County Council,1111/1001,Children and Young People,CYP,Third Party Payments,EDA,08/08/2023,05-11281,530,St Johns C of E Academy
Nottinghamshire County Council,1111/1001,Children and Young People,CYP,Third Party Payments,EDA,08/08/2023,05-11282,955,Worksop Priory CE Primary Academy
Nottinghamshire County Council,1111/1001,Children and Young People,CYP,Third Party Payments,EDA,08/08/2023,05-11283,"12,000.00",Keyworth Primary & Nursery School (
Nottinghamshire County Council,1111/1001,Children and Young People,CYP,Third Party Payments,EDA,08/08/2023,05-11284,"7,000.00",Bracken Lane Primary Academy
Nottinghamshire County Council,1111/1001,Children and Young People,CYP,Third Party Payments,EDA,08/08/2023,05-11296,"3,103.00",Rushcliffe School (Spencer Academie
Nottinghamshire County Council,1111/1001,Children and Young People,CYP,Third Party Payments,EDA,08/08/2023,05-11307,"3,462.00",Kimberley School Academy
Nottinghamshire County Council,1111/1001,Children and Young People,CYP,Third Party Payments,EDA,08/08/2023,05-11308,635,Larkfields Infant Academy
Nottinghamshire County Council,1111/1001,Children and Young People,CYP,Third Party Payments,EDA,08/08/2023,05-11309,"12,023.00",Hawthorne Primary Academy(Flying Hi
Nottinghamshire County Council,1111/1001,Children and Young People,CYP,Third Party Payments,EDA,08/08/2023,05-11310,"6,396.00",Arnold Hill Academy (Spencer Academ
Nottinghamshire County Council,1111/1001,Children and Young People,CYP,Third Party Payments,EDA,08/08/2023,05-11311,"1,950.00",St Patricks Catholic Voluntary Acad
Nottinghamshire County Council,1111/1001,Children and Young People,CYP,Third Party Payments,EDA,08/08/2023,05-11312,953,Outwood Academy Kirkby
Nottinghamshire County Council,1111/1001,Children and Young People,CYP,Third Party Payments,EDA,08/08/2023,05-11313,"4,000.00",Westdale Junior School Academy
Nottinghamshire County Council,1111/1001,Children and Young People,CYP,Third Party Payments,EDA,08/08/2023,05-11314,"9,000.00",Haddon Primary School (Academy)
Nottinghamshire County Council,1111/1001,Children and Young People,CYP,Third Party Payments,EDA,08/08/2023,05-11315,"14,800.00",Carlton Academy (Redhill Academy Tr
Nottinghamshire County Council,1111/1001,Children and Young People,CYP,Third Party Payments,EDA,08/08/2023,05-11316,"18,078.00",Greythorn Primary Academy
Nottinghamshire County Council,1111/1001,Children and Young People,CYP,Third Party Payments,EDA,08/08/2023,05-11317,"20,769.00",Heymann Primary School
Nottinghamshire County Council,1111/1001,Children and Young People,CYP,Third Party Payments,EDA,08/08/2023,05-11318,"2,220.00",Outwood Academy - Valley
Nottinghamshire County Council,1111/1001,Children and Young People,CYP,Third Party Payments,EDA,08/08/2023,05-11319,"84,340.00",Outwood Academy - Valley
Nottinghamshire County Council,1111/1001,Children and Young People,CYP,Third Party Payments,EDA,08/08/2023,05-11320,"88,040.00",Outwood Academy Portland
Nottinghamshire County Council,1111/1001,Children and Young People,CYP,Third Party Payments,EDA,08/08/2023,05-11321,"17,600.00",St Johns C of E Academy
Nottinghamshire County Council,1111/1001,Children and Young People,CYP,Third Party Payments,EDA,08/08/2023,05-11322,"52,810.00",St Augustine's Academy (The Forge T
Nottinghamshire County Council,1111/1001,Children and Young People,CYP,Third Party Payments,EDA,08/08/2023,05-11323,"63,080.00",Sparken Hill Academy
Nottinghamshire County Council,1111/1001,Children and Young People,CYP,Third Party Payments,EDA,08/08/2023,05-11324,"35,950.00",Worksop Priory CE Primary Academy
Nottinghamshire County Council,1111/1001,Children and Young People,CYP,Third Party Payments,EDA,08/08/2023,05-11325,"24,210.00",Norbridge Academy(Delta Academies T
Nottinghamshire County Council,1111/1001,Children and Young People,CYP,Third Party Payments,EDA,08/08/2023,05-11326,"38,890.00",Langold Dyscarr Community Academy
Nottinghamshire County Council,1111/1001,Children and Young People,CYP,Third Party Payments,EDA,08/08/2023,05-11327,"22,020.00",Kingston Park Academy
Nottinghamshire County Council,1111/1001,Children and Young People,CYP,Third Party Payments,EDA,08/08/2023,05-11329,"4,400.00",Haggonfields Primary Academy
Nottinghamshire County Council,1111/1001,Children and Young People,CYP,Third Party Payments,EDA,08/08/2023,05-11330,"3,055.00",Sutton Community Academy
Nottinghamshire County Council,1111/1001,Children and Young People,CYP,Third Party Payments,EDA,08/08/2023,05-11331,"17,569.00",Tollerton Primary School (Equals Tr
Nottinghamshire County Council,1111/1001,Children and Young People,CYP,Third Party Payments,EDA,08/08/2023,05-11332,"22,200.00",Crossdale Primary School
Nottinghamshire County Council,1111/1001,Children and Young People,CYP,Third Party Payments,EDA,08/08/2023,05-11333,"47,897.00",Keyworth Primary & Nursery School (
Nottinghamshire County Council,1111/1001,Children and Young People,CYP,Third Party Payments,EDA,08/08/2023,05-11334,"26,000.00",Cotgrave C of E Primary Academy(Dio
Nottinghamshire County Council,1111/1001,Children and Young People,CYP,Third Party Payments,EDA,08/08/2023,05-11335,"42,000.00",Candleby Lane School
Nottinghamshire County Council,1111/1001,Children and Young People,CYP,Third Party Payments,EDA,08/08/2023,05-11336,"50,000.00",South Nottinghamshire Academy(Redhi
Nottinghamshire County Council,1111/1001,Children and Young People,CYP,Third Party Payments,EDA,08/08/2023,05-11337,"58,968.00",CBSelston High Academy(Two Counties
Nottinghamshire County Council,1111/1001,Children and Young People,CYP,Third Party Payments,EDA,08/08/2023,05-11338,"10,584.00",Selston C of E Infant & Nursery Aca
Nottinghamshire County Council,1111/1001,Children and Young People,CYP,Third Party Payments,EDA,08/08/2023,05-11339,"11,690.00",St Swithuns C of E Primary Academy
Nottinghamshire County Council,1111/1001,Children and Young People,CYP,Third Party Payments,EDA,08/08/2023,05-11340,"8,311.00",Thrumpton Primary Academy
Nottinghamshire County Council,1111/1001,Children and Young People,CYP,Third Party Payments,EDA,08/08/2023,05-11341,"18,084.00",Retford Oaks Academy
Nottinghamshire County Council,1111/1001,Children and Young People,CYP,Third Party Payments,EDA,08/08/2023,05-11342,"7,307.00",Leverton C of E Academy
Nottinghamshire County Council,1111/1001,Children and Young People,CYP,Third Party Payments,EDA,08/08/2023,05-11343,"11,872.00",Bracken Lane Primary Academy
Nottinghamshire County Council,1111/1001,Children and Young People,CYP,Third Party Payments,EDA,08/08/2023,05-11344,"14,000.00",Burntstump Seely CofE Primary Acade
Nottinghamshire County Council,1111/1001,Children and Young People,CYP,Third Party Payments,EDA,08/08/2023,05-11345,"19,000.00",Richard Bonnington Primary Academy(
Nottinghamshire County Council,1111/1001,Children and Young People,CYP,Third Party Payments,EDA,08/08/2023,05-11346,"18,667.00",Killisick Junior Academy
Nottinghamshire County Council,1111/1001,Children and Young People,CYP,Third Party Payments,EDA,08/08/2023,05-11347,"34,443.00",Robert Mellors Primary & Nursery Ac
Nottinghamshire County Council,1111/1001,Children and Young People,CYP,Third Party Payments,EDA,08/08/2023,05-11348,"48,664.00",The Flying High Academy
Nottinghamshire County Council,1111/1001,Children and Young People,CYP,Third Party Payments,EDA,08/08/2023,05-11349,"44,666.00",Wainwright Primary Academy (DALP)
Nottinghamshire County Council,1111/1001,Children and Young People,CYP,Third Party Payments,EDA,08/08/2023,05-11350,"74,000.00",Queen Elizabeth's Academy
Nottinghamshire County Council,1111/1001,Children and Young People,CYP,Third Party Payments,EDA,08/08/2023,05-11351,"66,960.00",Meden School - A Torch Academy
Nottinghamshire County Council,1111/1001,Children and Young People,CYP,Third Party Payments,EDA,08/08/2023,05-11352,"80,097.00",Kimberley School Academy
Nottinghamshire County Council,1111/1001,Children and Young People,CYP,Third Party Payments,EDA,08/08/2023,05-11353,"7,332.00",Outwood Academy Kirkby
Nottinghamshire County Council,1111/1001,Children and Young People,CYP,Third Party Payments,EDA,08/08/2023,05-11354,"49,140.00",Birklands Primary (Academy)
Nottinghamshire County Council,1111/1001,Children and Young People,CYP,Third Party Payments,EDA,08/08/2023,05-11355,"50,000.00",Mornington Primary Academy
Nottinghamshire County Council,1111/1001,Children and Young People,CYP,Third Party Payments,EDA,08/08/2023,05-11356,"7,500.00",Larkfields Infant Academy
Nottinghamshire County Council,1111/1001,Children and Young People,CYP,Third Party Payments,EDA,08/08/2023,05-11357,"34,423.00",Kimberley Primary & Nursery Acadamy
Nottinghamshire County Council,1111/1001,Children and Young People,CYP,Third Party Payments,EDA,08/08/2023,05-11358,"37,192.00",Horsendale Primary School
Nottinghamshire County Council,1111/1001,Children and Young People,CYP,Third Party Payments,EDA,08/08/2023,05-11359,"22,635.00",Hollywell Primary Academy
Nottinghamshire County Council,1111/1001,Children and Young People,CYP,Third Party Payments,EDA,08/08/2023,05-11360,"6,635.00",Gilthill Primary Academy
Nottinghamshire County Council,1111/1001,Children and Young People,CYP,Third Party Payments,EDA,08/08/2023,05-11361,"13,692.00",Awsworth Primary & Nursery Academy
Nottinghamshire County Council,1111/1001,Children and Young People,CYP,Third Party Payments,EDA,08/08/2023,05-11362,"3,500.00",Joseph Whittaker Academy
Nottinghamshire County Council,1111/1001,Children and Young People,CYP,Third Party Payments,EDA,08/08/2023,05-11363,"31,800.00",Joseph Whittaker Academy
Nottinghamshire County Council,1111/1001,Children and Young People,CYP,Third Party Payments,EDA,08/08/2023,05-11364,"12,400.00",Python Hill Academy (Forge Trust)
Nottinghamshire County Council,1111/1001,Children and Young People,CYP,Third Party Payments,EDA,08/08/2023,05-11365,"8,050.00",Lake View Primary & Nursery School
Nottinghamshire County Council,1111/1001,Children and Young People,CYP,Third Party Payments,EDA,08/08/2023,05-11366,"5,900.00",Heathlands Primary School Academy
Nottinghamshire County Council,1111/1001,Children and Young People,CYP,Third Party Payments,EDA,08/08/2023,05-11367,"20,850.00",Blidworth Oaks Primary Academy
Nottinghamshire County Council,1111/1001,Children and Young People,CYP,Third Party Payments,EDA,08/08/2023,05-11368,"17,594.00",Hucknall Flying High Academy
Nottinghamshire County Council,1111/1001,Children and Young People,CYP,Third Party Payments,EDA,08/08/2023,05-11369,"25,170.00",Holgate Academy
Nottinghamshire County Council,1111/1001,Children and Young People,CYP,Third Party Payments,EDA,08/08/2023,05-11370,"12,691.00",Hillside Academy (Flying High Trust
Nottinghamshire County Council,1111/1001,Children and Young People,CYP,Third Party Payments,EDA,08/08/2023,05-11371,"17,113.00",Hawthorne Primary Academy(Flying Hi
Nottinghamshire County Council,1111/1001,Children and Young People,CYP,Third Party Payments,EDA,08/08/2023,05-11372,"55,000.00",Samuel Barlow Primary Academy
Nottinghamshire County Council,1111/1001,Children and Young People,CYP,Third Party Payments,EDA,08/08/2023,05-11373,"36,000.00",Garibaldi School (Academy)
Nottinghamshire County Council,1111/1001,Children and Young People,CYP,Third Party Payments,EDA,08/08/2023,05-11374,"41,332.00",Springbank Primary Academy
Nottinghamshire County Council,1111/1001,Children and Young People,CYP,Third Party Payments,EDA,08/08/2023,05-11375,"26,500.00",Priory Catholic Academy(St Ralph Sh
Nottinghamshire County Council,1111/1001,Children and Young People,CYP,Third Party Payments,EDA,08/08/2023,05-11376,"55,666.00",Hall Park Academy (Redhill Academy
Nottinghamshire County Council,1111/1001,Children and Young People,CYP,Third Party Payments,EDA,08/08/2023,05-11377,"31,500.00",Florence Nightingale Academy
Nottinghamshire County Council,1111/1001,Children and Young People,CYP,Third Party Payments,EDA,08/08/2023,05-11378,"28,904.00",John Clifford School
Nottinghamshire County Council,1111/1001,Children and Young People,CYP,Third Party Payments,EDA,08/08/2023,05-11379,"42,000.00",Arnold Hill Academy (Spencer Academ
Nottinghamshire County Council,1111/1001,Children and Young People,CYP,Third Party Payments,EDA,08/08/2023,05-11380,"10,960.00",St Josephs Catholic Primary Sch Aca
Nottinghamshire County Council,1111/1001,Children and Young People,CYP,Third Party Payments,EDA,08/08/2023,05-11381,"23,334.00",Ernehale Junior School Academy
Nottinghamshire County Council,1111/1001,Children and Young People,CYP,Third Party Payments,EDA,08/08/2023,05-11382,"24,000.00",Ernehale Infants Academy
Nottinghamshire County Council,1111/1001,Children and Young People,CYP,Third Party Payments,EDA,08/08/2023,05-11383,"23,333.00",[Redacted]
Nottinghamshire County Council,1111/1001,Children and Young People,CYP,Third Party Payments,EDA,08/08/2023,05-11384,"18,268.00",St Patricks Catholic Voluntary Acad
Nottinghamshire County Council,1111/1001,Children and Young People,CYP,Third Party Payments,EDA,08/08/2023,05-11385,"8,768.00",Holy Trinity Catholic Voluntary Aca
Nottinghamshire County Council,1111/1001,Children and Young People,CYP,Third Party Payments,EDA,08/08/2023,05-11386,"19,730.00",St Philip Neri with St Bede Vol Aca
Nottinghamshire County Council,1111/1001,Children and Young People,CYP,Third Party Payments,EDA,08/08/2023,05-11387,"11,692.00",All Saints Catholic Voluntary Acade
Nottinghamshire County Council,1111/1001,Children and Young People,CYP,Third Party Payments,EDA,08/08/2023,05-11388,777,Beeston Fields Primary(Flying High
Nottinghamshire County Council,1111/1001,Children and Young People,CYP,Third Party Payments,EDA,08/08/2023,05-11389,"1,057.00",Alderman White School
Nottinghamshire County Council,1111/1001,Children and Young People,CYP,Third Party Payments,EDA,08/08/2023,05-11390,"5,972.90",Alderman White School
Nottinghamshire County Council,1111/1001,Children and Young People,CYP,Third Party Payments,EDA,08/08/2023,05-11391,"83,080.30",Alderman White School
Nottinghamshire County Council,1111/1001,Children and Young People,CYP,Third Party Payments,EDA,08/08/2023,05-11392,"75,731.17",Bramcote College
Nottinghamshire County Council,1111/1001,Children and Young People,CYP,Third Party Payments,EDA,08/08/2023,05-11393,"9,551.00",Joseph Whittaker Academy
Nottinghamshire County Council,1111/1001,Children and Young People,CYP,Third Party Payments,EDA,08/08/2023,05-11394,"9,072.87",Tuxford Academy
Nottinghamshire County Council,1111/1001,Children and Young People,CYP,Third Party Payments,EDA,08/08/2023,05-11395,"7,519.17",Queen Elizabeth's Academy
Nottinghamshire County Council,1111/1001,Children and Young People,CYP,Third Party Payments,EDA,08/08/2023,05-11396,"96,687.04",Queen Elizabeth's Academy
Nottinghamshire County Council,1111/1001,Children and Young People,CYP,Third Party Payments,EDA,08/08/2023,05-11397,"9,132.32",Meden School - A Torch Academy
Nottinghamshire County Council,1111/1001,Children and Young People,CYP,Third Party Payments,EDA,08/08/2023,05-11398,"6,930.24",Garibaldi School (Academy)
Nottinghamshire County Council,1111/1001,Children and Young People,CYP,Third Party Payments,EDA,08/08/2023,05-11399,"86,063.85",Garibaldi School (Academy)
Nottinghamshire County Council,1111/1001,Children and Young People,CYP,Third Party Payments,EDA,08/08/2023,05-11400,"7,920.55",All Saints Catholic Voluntary Acade
Nottinghamshire County Council,1111/1001,Children and Young People,CYP,Third Party Payments,EDA,08/08/2023,05-11401,"98,362.17",All Saints Catholic Voluntary Acade
Nottinghamshire County Council,1111/1001,Children and Young People,CYP,Third Party Payments,EDA,08/08/2023,05-11402,"5,444.54",Bramcote College
Nottinghamshire County Council,1111/1001,Children and Young People,CYP,Third Party Payments,EDA,08/08/2023,05-11403,"8,983.78",Kimberley School Academy
Nottinghamshire County Council,1111/1001,Children and Young People,CYP,Third Party Payments,EDA,08/08/2023,05-11404,"66,720.29",Kimberley School Academy
Nottinghamshire County Council,1111/1001,Children and Young People,CYP,Third Party Payments,EDA,08/08/2023,05-11406,"72,667.00",Redhill Academy (Redhill Academy Tr
Nottinghamshire County Council,1111/1001,Children and Young People,CYP,Third Party Payments,EDA,08/08/2023,05-11407,"59,058.00",South Wolds Academy & Sixth Form
Nottinghamshire County Council,1111/1001,Children and Young People,CYP,Third Party Payments,EDA,08/08/2023,05-11408,"28,847.00",West Bridgford School
Nottinghamshire County Council,1111/1001,Children and Young People,CYP,Third Party Payments,EDA,08/08/2023,05-11409,"15,200.00",Carlton Junior Academy (Redhill Aca
Nottinghamshire County Council,1111/1001,Children and Young People,CYP,Third Party Payments,EDA,08/08/2023,05-11410,"11,400.00",Carlton Infant Academy (Redhill Aca
Nottinghamshire County Council,1111/1001,Children and Young People,CYP,Third Party Payments,EDA,08/08/2023,05-18363,"1,060.00",Redbrook Hayes Community Primary Sc
Nottinghamshire County Council,1111/1001,Children and Young People,CYP,Third Party Payments,EDA,11/08/2023,05-11328,"34,120.00",Holy Family Catholic Primary School
Nottinghamshire County Council,1111/1001,Children and Young People,CYP,Third Party Payments,EDA,11/08/2023,05-11496,"20,672.63",South Nottinghamshire Academy(Redhi
Nottinghamshire County Council,1111/1001,Children and Young People,CYP,Third Party Payments,EDA,11/08/2023,05-11497,"5,287.99",South Nottinghamshire Academy(Redhi
Nottinghamshire County Council,1111/1001,Children and Young People,CYP,Third Party Payments,EDA,17/08/2023,05-13857,"10,189.88",George Spencer Academy
Nottinghamshire County Council,1111/1001,Children and Young People,CYP,Third Party Payments,EDA,21/08/2023,05-13977,"141,736.61",George Spencer Academy
Nottinghamshire County Council,1111/1001,Children and Young People,CYP,Third Party Payments,EDA,21/08/2023,05-13978,"113,410.54",Meden School - A Torch Academy
Nottinghamshire County Council,1111/1001,Children and Young People,CYP,Third Party Payments,EDA,21/08/2023,05-13979,"126,199.59",Tuxford Academy
Nottinghamshire County Council,1111/1001,Children and Young People,CYP,Third Party Payments,EDA,21/08/2023,05-13980,"116,124.07",Joseph Whittaker Academy
Nottinghamshire County Council,1111/1001,Children and Young People,CYP,Third Party Payments,EDA,22/08/2023,05-14403,"8,200.00",St Mary's C of E Primary Academy
Nottinghamshire County Council,1111/1001,Children and Young People,CYP,Third Party Payments,EDA,22/08/2023,05-14404,"9,650.00",Parkgate Academy (Forge Trust)
Nottinghamshire County Council,1111/1001,Children and Young People,CYP,Third Party Payments,EDA,22/08/2023,05-14405,"11,600.00",Forest View Academy (Forge Trust)
Nottinghamshire County Council,1111/1001,Children and Young People,CYP,Third Party Payments,EDA,22/08/2023,05-14406,"8,700.00",Dukeries Academy
Nottinghamshire County Council,1111/1001,Children and Young People,CYP,Third Party Payments,EDA,22/08/2023,05-14407,"11,450.00",Bilsthorpe Flying High Academy (Fly
Nottinghamshire County Council,1111/1001,Children and Young People,CYP,Third Party Payments,EDA,25/08/2023,05-14493,"3,438.00",Quarrydale Academy
Nottinghamshire County Council,1111/1001,Children and Young People,CYP,Third Party Payments,EDA,25/08/2023,05-14494,"36,099.00",Forest Glade Primary School (Academ
Nottinghamshire County Council,1111/1001,Children and Young People,CYP,Third Party Payments,EDA,25/08/2023,05-14495,"91,107.00",Quarrydale Academy
Nottinghamshire County Council,1111/1001,Children and Young People,CYP,Third Party Payments,EDA,25/08/2023,05-14496,"37,054.00",Skegby Junior Academy
Nottinghamshire County Council,1111/1001,Children and Young People,CYP,Third Party Payments,EDA,29/08/2023,05-18226,"1,000.00",Holy Trinity Catholic Voluntary Aca
Nottinghamshire County Council,1111/1001,Children and Young People,CYP,Third Party Payments,EDA,29/08/2023,05-18604,"173,925.00",Nottingham City Council
Nottinghamshire County Council,1111/1001,Children and Young People,CYP,Third Party Payments,EDA,31/08/2023,05-18094,590,Mapplewells Primary & Nursery Acade
Nottinghamshire County Council,1111/1001,Children and Young People,CYP,Third Party Payments,EDA,31/08/2023,05-18095,"1,328.00",Hucknall National Primary Academy
Nottinghamshire County Council,1111/1001,Children and Young People,CYP,Third Party Payments,EDA,31/08/2023,05-18096,670,Thomas Deacon Academy
Nottinghamshire County Council,1111/1001,Children and Young People,CYP,Third Party Payments,EDA,31/08/2023,05-18097,650,Thrumpton Primary Academy
Nottinghamshire County Council,1111/1001,Children and Young People,CYP,Third Party Payments,EDA,31/08/2023,05-18098,700,Toothill Academy
Nottinghamshire County Council,1111/1001,Children and Young People,CYP,Third Party Payments,EDA,31/08/2023,05-18099,"6,200.00",Tuxford Academy
Nottinghamshire County Council,1111/1001,Children and Young People,CYP,Third Party Payments,EDA,31/08/2023,05-18100,"2,329.00",Wainwright Primary Academy (DALP)
Nottinghamshire County Council,1111/1001,Children and Young People,CYP,Third Party Payments,EDA,31/08/2023,05-18101,686,Welland Park Academy
Nottinghamshire County Council,1111/1001,Children and Young People,CYP,Third Party Payments,EFA,02/08/2023,05-18167,"1,440.00",Fleet Education Services Ltd
Nottinghamshire County Council,1111/1001,Children and Young People,CYP,Third Party Payments,EFA,03/08/2023,05-18106,863.25,SpeechRight Ltd
Nottinghamshire County Council,1111/1001,Children and Young People,CYP,Third Party Payments,EFA,03/08/2023,05-18130,"17,745.11",Real Education Ltd
Nottinghamshire County Council,1111/1001,Children and Young People,CYP,Third Party Payments,EFA,03/08/2023,05-18131,"19,282.88",Real Education Ltd
Nottinghamshire County Council,1111/1001,Children and Young People,CYP,Third Party Payments,EFA,03/08/2023,05-18172,"4,600.00",CAST Angling Projects
Nottinghamshire County Council,1111/1001,Children and Young People,CYP,Third Party Payments,EFA,03/08/2023,05-18173,"4,600.00",CAST Angling Projects
Nottinghamshire County Council,1111/1001,Children and Young People,CYP,Third Party Payments,EFA,03/08/2023,05-18208,"41,724.00",Nottingham Tutorial College
Nottinghamshire County Council,1111/1001,Children and Young People,CYP,Third Party Payments,EFA,04/08/2023,05-18222,"2,229.00",A P E Ltd (Alternative Programme Ed
Nottinghamshire County Council,1111/1001,Children and Young People,CYP,Third Party Payments,EFA,07/08/2023,05-18319,"72,240.00",Rainbow Horses Learning Centre
Nottinghamshire County Council,1111/1001,Children and Young People,CYP,Third Party Payments,EFA,07/08/2023,05-18320,"1,440.00",Fleet Education Services Ltd
Nottinghamshire County Council,1111/1001,Children and Young People,CYP,Third Party Payments,EFA,07/08/2023,05-18321,"4,600.00",CAST Angling Projects
Nottinghamshire County Council,1111/1001,Children and Young People,CYP,Third Party Payments,EFA,08/08/2023,05-11279,500,[Redacted]
Nottinghamshire County Council,1111/1001,Children and Young People,CYP,Third Party Payments,EFA,08/08/2023,05-18302,"2,657.01",Educ8 (Your Chapter Ltd)
Nottinghamshire County Council,1111/1001,Children and Young People,CYP,Third Party Payments,EFA,08/08/2023,05-18374,"4,490.38",Teaching Personnel Ltd
Nottinghamshire County Council,1111/1001,Children and Young People,CYP,Third Party Payments,EFA,09/08/2023,05-18387,"7,235.00",Stone Soup Academy
Nottinghamshire County Council,1111/1001,Children and Young People,CYP,Third Party Payments,EFA,09/08/2023,05-18389,"7,235.00",Stone Soup Academy
Nottinghamshire County Council,1111/1001,Children and Young People,CYP,Third Party Payments,EFA,09/08/2023,05-18393,"1,072.80",Switch Up CIC
Nottinghamshire County Council,1111/1001,Children and Young People,CYP,Third Party Payments,EFA,09/08/2023,05-18406,"13,800.00",Progression 2Work Ltd (Registered O
Nottinghamshire County Council,1111/1001,Children and Young People,CYP,Third Party Payments,EFA,09/08/2023,05-18407,"13,800.00",Progression 2Work Ltd (Registered O
Nottinghamshire County Council,1111/1001,Children and Young People,CYP,Third Party Payments,EFA,09/08/2023,05-18408,"13,800.00",Progression 2Work Ltd (Registered O
Nottinghamshire County Council,1111/1001,Children and Young People,CYP,Third Party Payments,EFA,09/08/2023,05-18454,"22,000.00",Ackworth School
Nottinghamshire County Council,1111/1001,Children and Young People,CYP,Third Party Payments,EFA,09/08/2023,05-18457,"11,388.00",Crisp Vocational Provision Ltd
Nottinghamshire County Council,1111/1001,Children and Young People,CYP,Third Party Payments,EFA,09/08/2023,05-18460,"1,782.00",A P E Ltd (Alternative Programme Ed
Nottinghamshire County Council,1111/1001,Children and Young People,CYP,Third Party Payments,EFA,09/08/2023,05-18461,"1,782.00",A P E Ltd (Alternative Programme Ed
Nottinghamshire County Council,1111/1001,Children and Young People,CYP,Third Party Payments,EFA,10/08/2023,05-18494,"48,656.53",Senad Ltd
Nottinghamshire County Council,1111/1001,Children and Young People,CYP,Third Party Payments,EFA,10/08/2023,05-18496,573.58,Senad Ltd
Nottinghamshire County Council,1111/1001,Children and Young People,CYP,Third Party Payments,EFA,10/08/2023,05-18497,"1,045.91",Senad Ltd
Nottinghamshire County Council,1111/1001,Children and Young People,CYP,Third Party Payments,EFA,10/08/2023,05-18499,"1,720.74",Senad Ltd
Nottinghamshire County Council,1111/1001,Children and Young People,CYP,Third Party Payments,EFA,11/08/2023,05-18532,"1,656.00",Senad Ltd
Nottinghamshire County Council,1111/1001,Children and Young People,CYP,Third Party Payments,EFA,14/08/2023,05-12286,"7,700.00",[Redacted]
Nottinghamshire County Council,1111/1001,Children and Young People,CYP,Third Party Payments,EFA,14/08/2023,05-18531,"1,269.00",Senad Ltd
Nottinghamshire County Council,1111/1001,Children and Young People,CYP,Third Party Payments,EFA,14/08/2023,05-18534,"1,392.42",Senad Ltd
Nottinghamshire County Council,1111/1001,Children and Young People,CYP,Third Party Payments,EFA,14/08/2023,05-18535,"1,720.74",Senad Ltd
Nottinghamshire County Council,1111/1001,Children and Young People,CYP,Third Party Payments,EFA,14/08/2023,05-18536,573.58,Senad Ltd
Nottinghamshire County Council,1111/1001,Children and Young People,CYP,Third Party Payments,EFA,14/08/2023,05-18542,"1,045.91",Senad Ltd
Nottinghamshire County Council,1111/1001,Children and Young People,CYP,Third Party Payments,EFA,14/08/2023,05-18543,"1,720.74",Senad Ltd
Nottinghamshire County Council,1111/1001,Children and Young People,CYP,Third Party Payments,EFA,14/08/2023,05-18570,"23,433.33",Senad Ltd
Nottinghamshire County Council,1111/1001,Children and Young People,CYP,Third Party Payments,EFA,14/08/2023,05-18592,"4,490.38",Teaching Personnel Ltd
Nottinghamshire County Council,1111/1001,Children and Young People,CYP,Third Party Payments,EFA,14/08/2023,05-18610,"10,455.00",Progression 2Work Ltd (Registered O
Nottinghamshire County Council,1111/1001,Children and Young People,CYP,Third Party Payments,EFA,15/08/2023,05-18533,"2,485.72",Senad Ltd
Nottinghamshire County Council,1111/1001,Children and Young People,CYP,Third Party Payments,EFA,15/08/2023,05-18613,"1,280.00",MindJam Ltd
Nottinghamshire County Council,1111/1001,Children and Young People,CYP,Third Party Payments,EFA,16/08/2023,05-18355,700,Abbey School
Nottinghamshire County Council,1111/1001,Children and Young People,CYP,Third Party Payments,EFA,16/08/2023,05-18641,"1,195,593.00",Portland College
Nottinghamshire County Council,1111/1001,Children and Young People,CYP,Third Party Payments,EFA,16/08/2023,05-18686,"1,440.00",Fleet Education Services Ltd
Nottinghamshire County Council,1111/1001,Children and Young People,CYP,Third Party Payments,EFA,16/08/2023,05-18689,"1,440.00",Fleet Education Services Ltd
Nottinghamshire County Council,1111/1001,Children and Young People,CYP,Third Party Payments,EFA,16/08/2023,05-18690,"1,440.00",Fleet Education Services Ltd
Nottinghamshire County Council,1111/1001,Children and Young People,CYP,Third Party Payments,EFA,16/08/2023,05-18691,"1,440.00",Fleet Education Services Ltd
Nottinghamshire County Council,1111/1001,Children and Young People,CYP,Third Party Payments,EFA,16/08/2023,05-18735,"4,297.50",Baby T Workshops Ltd
Nottinghamshire County Council,1111/1001,Children and Young People,CYP,Third Party Payments,EFA,16/08/2023,05-18736,"4,297.50",Baby T Workshops Ltd
Nottinghamshire County Council,1111/1001,Children and Young People,CYP,Third Party Payments,EFA,17/08/2023,05-18778,"17,282.00",New Roots Care & Education Ltd
Nottinghamshire County Council,1111/1001,Children and Young People,CYP,Third Party Payments,EFA,18/08/2023,05-18357,"1,082.57",Aspris Children's Services Ltd
Nottinghamshire County Council,1111/1001,Children and Young People,CYP,Third Party Payments,EFA,18/08/2023,05-18358,"1,036.56",Aspris Children's Services Ltd
Nottinghamshire County Council,1111/1001,Children and Young People,CYP,Third Party Payments,EFA,18/08/2023,05-18359,871.21,Aspris Children's Services Ltd
Nottinghamshire County Council,1111/1001,Children and Young People,CYP,Third Party Payments,EFA,18/08/2023,05-18360,"1,348.68",Aspris Children's Services Ltd
Nottinghamshire County Council,1111/1001,Children and Young People,CYP,Third Party Payments,EFA,18/08/2023,05-18606,991.74,Aspris Children's Services Ltd
Nottinghamshire County Council,1111/1001,Children and Young People,CYP,Third Party Payments,EFA,18/08/2023,05-18783,"38,624.59",Pontville School (Witherslack Group
Nottinghamshire County Council,1111/1001,Children and Young People,CYP,Third Party Payments,EFA,21/08/2023,05-18195,"9,600.00",Equip Education & Support Services
Nottinghamshire County Council,1111/1001,Children and Young People,CYP,Third Party Payments,EFA,21/08/2023,05-18201,"3,696.20",Special Education Services Ltd
Nottinghamshire County Council,1111/1001,Children and Young People,CYP,Third Party Payments,EFA,21/08/2023,05-18309,"4,500.00",Equip Education & Support Services
Nottinghamshire County Council,1111/1001,Children and Young People,CYP,Third Party Payments,EFA,21/08/2023,05-18431,"2,040.51",Simply Sensory Training & Support
Nottinghamshire County Council,1111/1001,Children and Young People,CYP,Third Party Payments,EFA,21/08/2023,05-18432,"1,443.58",Simply Sensory Training & Support
Nottinghamshire County Council,1111/1001,Children and Young People,CYP,Third Party Payments,EFA,21/08/2023,05-18433,"6,374.72",Simply Sensory Training & Support
Nottinghamshire County Council,1111/1001,Children and Young People,CYP,Third Party Payments,EFA,21/08/2023,05-18434,"5,308.07",Simply Sensory Training & Support
Nottinghamshire County Council,1111/1001,Children and Young People,CYP,Third Party Payments,EFA,21/08/2023,05-18435,"5,263.12",Simply Sensory Training & Support
Nottinghamshire County Council,1111/1001,Children and Young People,CYP,Third Party Payments,EFA,21/08/2023,05-18436,"4,713.68",Simply Sensory Training & Support
Nottinghamshire County Council,1111/1001,Children and Young People,CYP,Third Party Payments,EFA,21/08/2023,05-18437,600,Simply Sensory Training & Support
Nottinghamshire County Council,1111/1001,Children and Young People,CYP,Third Party Payments,EFA,21/08/2023,05-18440,595.54,Simply Sensory Training & Support
Nottinghamshire County Council,1111/1001,Children and Young People,CYP,Third Party Payments,EFA,21/08/2023,05-18441,"2,281.05",Simply Sensory Training & Support
Nottinghamshire County Council,1111/1001,Children and Young People,CYP,Third Party Payments,EFA,21/08/2023,05-18442,"1,626.15",Simply Sensory Training & Support
Nottinghamshire County Council,1111/1001,Children and Young People,CYP,Third Party Payments,EFA,21/08/2023,05-18576,"41,724.00",Nottingham Tutorial College
Nottinghamshire County Council,1111/1001,Children and Young People,CYP,Third Party Payments,EFA,21/08/2023,05-18812,"1,440.00",Fleet Education Services Ltd
Nottinghamshire County Council,1111/1001,Children and Young People,CYP,Third Party Payments,EFA,21/08/2023,05-18842,"11,385.00",Progression 2Work Ltd (Registered O
Nottinghamshire County Council,1111/1001,Children and Young People,CYP,Third Party Payments,EFA,21/08/2023,05-18843,"11,385.00",Progression 2Work Ltd (Registered O
Nottinghamshire County Council,1111/1001,Children and Young People,CYP,Third Party Payments,EFA,21/08/2023,05-18844,"11,385.00",Progression 2Work Ltd (Registered O
Nottinghamshire County Council,1111/1001,Children and Young People,CYP,Third Party Payments,EFA,21/08/2023,05-18845,"11,385.00",Progression 2Work Ltd (Registered O
Nottinghamshire County Council,1111/1001,Children and Young People,CYP,Third Party Payments,EFA,21/08/2023,05-18847,"11,385.00",Progression 2Work Ltd (Registered O
Nottinghamshire County Council,1111/1001,Children and Young People,CYP,Third Party Payments,EFA,21/08/2023,05-18848,"11,385.00",Progression 2Work Ltd (Registered O
Nottinghamshire County Council,1111/1001,Children and Young People,CYP,Third Party Payments,EFA,21/08/2023,05-18849,"11,385.00",Progression 2Work Ltd (Registered O
Nottinghamshire County Council,1111/1001,Children and Young People,CYP,Third Party Payments,EFA,21/08/2023,05-18860,"2,640.00",Do Talk Write Ltd
Nottinghamshire County Council,1111/1001,Children and Young People,CYP,Third Party Payments,EFA,21/08/2023,05-18861,"2,640.00",Do Talk Write Ltd
Nottinghamshire County Council,1111/1001,Children and Young People,CYP,Third Party Payments,EFA,21/08/2023,05-18862,"2,640.00",Do Talk Write Ltd
Nottinghamshire County Council,1111/1001,Children and Young People,CYP,Third Party Payments,EFA,21/08/2023,05-18863,991.74,Aspris Children's Services Ltd
Nottinghamshire County Council,1111/1001,Children and Young People,CYP,Third Party Payments,EFA,21/08/2023,05-18864,"30,487.12",Aspris Children's Services Ltd
Nottinghamshire County Council,1111/1001,Children and Young People,CYP,Third Party Payments,EFA,21/08/2023,05-18865,991.74,Aspris Children's Services Ltd
Nottinghamshire County Council,1111/1001,Children and Young People,CYP,Third Party Payments,EFA,21/08/2023,05-18866,991.74,Aspris Children's Services Ltd
Nottinghamshire County Council,1111/1001,Children and Young People,CYP,Third Party Payments,EFA,22/08/2023,05-18869,"2,640.00",Do Talk Write Ltd
Nottinghamshire County Council,1111/1001,Children and Young People,CYP,Third Party Payments,EFA,22/08/2023,05-18870,"2,640.00",Do Talk Write Ltd
Nottinghamshire County Council,1111/1001,Children and Young People,CYP,Third Party Payments,EFA,22/08/2023,05-18871,"2,640.00",Do Talk Write Ltd
Nottinghamshire County Council,1111/1001,Children and Young People,CYP,Third Party Payments,EFA,22/08/2023,05-18872,991.74,Aspris Children's Services Ltd
Nottinghamshire County Council,1111/1001,Children and Young People,CYP,Third Party Payments,EFA,22/08/2023,05-18873,991.74,Aspris Children's Services Ltd
Nottinghamshire County Council,1111/1001,Children and Young People,CYP,Third Party Payments,EFA,22/08/2023,05-18874,991.74,Aspris Children's Services Ltd
Nottinghamshire County Council,1111/1001,Children and Young People,CYP,Third Party Payments,EFA,22/08/2023,05-18875,"2,640.00",Do Talk Write Ltd
Nottinghamshire County Council,1111/1001,Children and Young People,CYP,Third Party Payments,EFA,22/08/2023,05-18876,"2,640.00",Do Talk Write Ltd
Nottinghamshire County Council,1111/1001,Children and Young People,CYP,Third Party Payments,EFA,22/08/2023,05-18878,"11,385.00",Progression 2Work Ltd (Registered O
Nottinghamshire County Council,1111/1001,Children and Young People,CYP,Third Party Payments,EFA,22/08/2023,05-18879,"2,640.00",Do Talk Write Ltd
Nottinghamshire County Council,1111/1001,Children and Young People,CYP,Third Party Payments,EFA,22/08/2023,05-18880,"1,125.66",Simply Sensory Training & Support
Nottinghamshire County Council,1111/1001,Children and Young People,CYP,Third Party Payments,EFA,23/08/2023,05-18932,"6,000.00","Culture, Learning & Libraries (Midl"
Nottinghamshire County Council,1111/1001,Children and Young People,CYP,Third Party Payments,EFA,24/08/2023,05-18194,"4,173.00",Jumpstart AP Ltd
Nottinghamshire County Council,1111/1001,Children and Young People,CYP,Third Party Payments,EFA,24/08/2023,05-18479,"19,457.50",Pollyteach Ltd
Nottinghamshire County Council,1111/1001,Children and Young People,CYP,Third Party Payments,EFA,24/08/2023,05-18640,"1,183.50",National Teaching & Advisory Servic
Nottinghamshire County Council,1111/1001,Children and Young People,CYP,Third Party Payments,EFA,24/08/2023,05-18777,"4,000.00",Pollyteach Ltd
Nottinghamshire County Council,1111/1001,Children and Young People,CYP,Third Party Payments,EFA,24/08/2023,05-18905,"25,463.35",Real Education Ltd
Nottinghamshire County Council,1111/1001,Children and Young People,CYP,Third Party Payments,EFA,24/08/2023,05-18946,"2,640.00",Do Talk Write Ltd
Nottinghamshire County Council,1111/1001,Children and Young People,CYP,Third Party Payments,EFA,24/08/2023,05-18949,"2,640.00",Do Talk Write Ltd
Nottinghamshire County Council,1111/1001,Children and Young People,CYP,Third Party Payments,EFA,24/08/2023,05-18953,"7,992.00",A Place To Call Our Own Ltd
Nottinghamshire County Council,1111/1001,Children and Young People,CYP,Third Party Payments,EFA,24/08/2023,05-18955,776.25,A Place To Call Our Own Ltd
Nottinghamshire County Council,1111/1001,Children and Young People,CYP,Third Party Payments,EFA,24/08/2023,05-18958,"25,770.00",Quorn Hall School
Nottinghamshire County Council,1111/1001,Children and Young People,CYP,Third Party Payments,EFA,24/08/2023,05-18959,"25,770.00",Quorn Hall School
Nottinghamshire County Council,1111/1001,Children and Young People,CYP,Third Party Payments,EFA,24/08/2023,05-18960,"25,770.00",Quorn Hall School
Nottinghamshire County Council,1111/1001,Children and Young People,CYP,Third Party Payments,EFA,24/08/2023,05-18961,"25,770.00",Quorn Hall School
Nottinghamshire County Council,1111/1001,Children and Young People,CYP,Third Party Payments,EFA,24/08/2023,05-18962,"25,770.00",Quorn Hall School
Nottinghamshire County Council,1111/1001,Children and Young People,CYP,Third Party Payments,EFA,25/08/2023,05-18501,"48,067.00",Wilds Lodge School
Nottinghamshire County Council,1111/1001,Children and Young People,CYP,Third Party Payments,EFA,25/08/2023,05-18738,"31,357.00",Place Young Peoples Company Ltd
Nottinghamshire County Council,1111/1001,Children and Young People,CYP,Third Party Payments,EFA,25/08/2023,05-18744,"31,357.00",Place Young Peoples Company Ltd
Nottinghamshire County Council,1111/1001,Children and Young People,CYP,Third Party Payments,EFA,25/08/2023,05-18771,"31,357.00",Place Young Peoples Company Ltd
Nottinghamshire County Council,1111/1001,Children and Young People,CYP,Third Party Payments,EFA,25/08/2023,05-18772,"31,357.00",Place Young Peoples Company Ltd
Nottinghamshire County Council,1111/1001,Children and Young People,CYP,Third Party Payments,EFA,25/08/2023,05-18773,"31,357.00",Place Young Peoples Company Ltd
Nottinghamshire County Council,1111/1001,Children and Young People,CYP,Third Party Payments,EFA,25/08/2023,05-18775,"31,357.00",Place Young Peoples Company Ltd
Nottinghamshire County Council,1111/1001,Children and Young People,CYP,Third Party Payments,EFA,25/08/2023,05-18776,"31,357.00",Place Young Peoples Company Ltd
Nottinghamshire County Council,1111/1001,Children and Young People,CYP,Third Party Payments,EFA,25/08/2023,05-18779,"31,357.00",Place Young Peoples Company Ltd
Nottinghamshire County Council,1111/1001,Children and Young People,CYP,Third Party Payments,EFA,25/08/2023,05-18780,"20,749.42",Integrated Provision-Witherslack Gr
Nottinghamshire County Council,1111/1001,Children and Young People,CYP,Third Party Payments,EFA,25/08/2023,05-18781,"20,749.42",Integrated Provision-Witherslack Gr
Nottinghamshire County Council,1111/1001,Children and Young People,CYP,Third Party Payments,EFA,25/08/2023,05-18894,"31,357.00",Place Young Peoples Company Ltd
Nottinghamshire County Council,1111/1001,Children and Young People,CYP,Third Party Payments,EFA,25/08/2023,05-18896,"31,357.00",Place Young Peoples Company Ltd
Nottinghamshire County Council,1111/1001,Children and Young People,CYP,Third Party Payments,EFA,25/08/2023,05-18897,"31,357.00",Place Young Peoples Company Ltd
Nottinghamshire County Council,1111/1001,Children and Young People,CYP,Third Party Payments,EFA,25/08/2023,05-18900,"32,127.65",Integrated Provision-Witherslack Gr
Nottinghamshire County Council,1111/1001,Children and Young People,CYP,Third Party Payments,EFA,25/08/2023,05-18901,"32,127.65",Integrated Provision-Witherslack Gr
Nottinghamshire County Council,1111/1001,Children and Young People,CYP,Third Party Payments,EFA,25/08/2023,05-18907,"32,127.65",Integrated Provision-Witherslack Gr
Nottinghamshire County Council,1111/1001,Children and Young People,CYP,Third Party Payments,EFA,25/08/2023,05-18913,"3,666.67",Channels & Choices Therapeutic Fost
Nottinghamshire County Council,1111/1001,Children and Young People,CYP,Third Party Payments,EFA,25/08/2023,05-18951,"7,870.00",Southwell Equine Assisted Learning
Nottinghamshire County Council,1111/1001,Children and Young People,CYP,Third Party Payments,EFA,29/08/2023,05-19013,"11,400.00",TBAC Consultants Ltd
Nottinghamshire County Council,1111/1001,Children and Young People,CYP,Third Party Payments,EFA,30/08/2023,05-17945,"1,900.00",[Redacted]
Nottinghamshire County Council,1111/1001,Children and Young People,CYP,Third Party Payments,EFA,30/08/2023,05-17946,"2,500.00",[Redacted]
Nottinghamshire County Council,1111/1001,Children and Young People,CYP,Third Party Payments,EFA,30/08/2023,05-19039,"6,695.76",Speech and Language UK Services Ltd
Nottinghamshire County Council,1111/1001,Children and Young People,CYP,Third Party Payments,EFA,30/08/2023,05-19040,"6,695.76",Speech and Language UK Services Ltd
Nottinghamshire County Council,1111/1001,Children and Young People,CYP,Third Party Payments,EFA,30/08/2023,05-19041,"6,695.76",Speech and Language UK Services Ltd
Nottinghamshire County Council,1111/1001,Children and Young People,CYP,Third Party Payments,EFA,30/08/2023,05-19042,"6,695.76",Speech and Language UK Services Ltd
Nottinghamshire County Council,1111/1001,Children and Young People,CYP,Third Party Payments,EFA,30/08/2023,05-19043,"6,695.76",Speech and Language UK Services Ltd
Nottinghamshire County Council,1111/1001,Children and Young People,CYP,Third Party Payments,EFA,30/08/2023,05-19044,"6,695.76",Speech and Language UK Services Ltd
Nottinghamshire County Council,1111/1001,Children and Young People,CYP,Third Party Payments,EFA,30/08/2023,05-19045,"6,695.76",Speech and Language UK Services Ltd
Nottinghamshire County Council,1111/1001,Children and Young People,CYP,Third Party Payments,EFA,30/08/2023,05-19046,"6,695.76",Speech and Language UK Services Ltd
Nottinghamshire County Council,1111/1001,Children and Young People,CYP,Third Party Payments,EFA,30/08/2023,05-19048,"6,695.76",Speech and Language UK Services Ltd
Nottinghamshire County Council,1111/1001,Children and Young People,CYP,Third Party Payments,EFA,30/08/2023,05-19049,"6,695.76",Speech and Language UK Services Ltd
Nottinghamshire County Council,1111/1001,Children and Young People,CYP,Third Party Payments,EFA,30/08/2023,05-19057,"11,385.00",Progression 2Work Ltd (Registered O
Nottinghamshire County Council,1111/1001,Children and Young People,CYP,Third Party Payments,EFA,30/08/2023,05-19058,"11,385.00",Progression 2Work Ltd (Registered O
Nottinghamshire County Council,1111/1001,Children and Young People,CYP,Third Party Payments,EFA,30/08/2023,05-19059,"11,385.00",Progression 2Work Ltd (Registered O
Nottinghamshire County Council,1111/1001,Children and Young People,CYP,Third Party Payments,EFA,30/08/2023,05-19060,"11,385.00",Progression 2Work Ltd (Registered O
Nottinghamshire County Council,1111/1001,Children and Young People,CYP,Third Party Payments,EFA,31/08/2023,05-18498,"31,807.82",Senad Ltd
Nottinghamshire County Council,1111/1001,Children and Young People,CYP,Third Party Payments,EFA,31/08/2023,05-18541,"31,807.82",Senad Ltd
Nottinghamshire County Council,1111/1001,Children and Young People,CYP,Third Party Payments,EFA,31/08/2023,05-19066,"8,658.89",Speech and Language UK Services Ltd
Nottinghamshire County Council,1111/1001,Children and Young People,CYP,Third Party Payments,EFA,31/08/2023,05-19067,"8,658.89",Speech and Language UK Services Ltd
Nottinghamshire County Council,1111/1001,Children and Young People,CYP,Third Party Payments,EFA,31/08/2023,05-19068,"8,658.89",Speech and Language UK Services Ltd
Nottinghamshire County Council,1111/1001,Children and Young People,CYP,Third Party Payments,EFA,31/08/2023,05-19069,"8,658.89",Speech and Language UK Services Ltd
Nottinghamshire County Council,1111/1001,Children and Young People,CYP,Third Party Payments,EFA,31/08/2023,05-19071,"8,658.89",Speech and Language UK Services Ltd
Nottinghamshire County Council,1111/1001,Children and Young People,CYP,Third Party Payments,EFA,31/08/2023,05-19072,"8,658.89",Speech and Language UK Services Ltd
Nottinghamshire County Council,1111/1001,Children and Young People,CYP,Third Party Payments,EFA,31/08/2023,05-19073,"6,695.76",Speech and Language UK Services Ltd
Nottinghamshire County Council,1111/1001,Children and Young People,CYP,Third Party Payments,EFA,31/08/2023,05-19074,"6,695.76",Speech and Language UK Services Ltd
Nottinghamshire County Council,1111/1001,Children and Young People,CYP,Third Party Payments,EFA,31/08/2023,05-19075,"6,695.76",Speech and Language UK Services Ltd
Nottinghamshire County Council,1111/1001,Children and Young People,CYP,Third Party Payments,EFA,31/08/2023,05-19076,"6,695.76",Speech and Language UK Services Ltd
Nottinghamshire County Council,1111/1001,Children and Young People,CYP,Third Party Payments,EFA,31/08/2023,05-19077,"6,695.76",Speech and Language UK Services Ltd
Nottinghamshire County Council,1111/1001,Children and Young People,CYP,Third Party Payments,EFA,31/08/2023,05-19078,"6,695.76",Speech and Language UK Services Ltd
Nottinghamshire County Council,1111/1001,Children and Young People,CYP,Third Party Payments,EFA,31/08/2023,05-19079,"6,695.76",Speech and Language UK Services Ltd
Nottinghamshire County Council,1111/1001,Children and Young People,CYP,Third Party Payments,EFA,31/08/2023,05-19080,"6,695.76",Speech and Language UK Services Ltd
Nottinghamshire County Council,1111/1001,Children and Young People,CYP,Third Party Payments,EFA,31/08/2023,05-19081,"6,695.76",Speech and Language UK Services Ltd
Nottinghamshire County Council,1111/1001,Children and Young People,CYP,Third Party Payments,EFA,31/08/2023,05-19082,"6,695.76",Speech and Language UK Services Ltd
Nottinghamshire County Council,1111/1001,Children and Young People,CYP,Third Party Payments,EFA,31/08/2023,05-19083,"6,695.76",Speech and Language UK Services Ltd
Nottinghamshire County Council,1111/1001,Children and Young People,CYP,Third Party Payments,EFA,31/08/2023,05-19084,"6,695.76",Speech and Language UK Services Ltd
Nottinghamshire County Council,1111/1001,Children and Young People,CYP,Third Party Payments,EFA,31/08/2023,05-19085,"6,695.76",Speech and Language UK Services Ltd
Nottinghamshire County Council,1111/1001,Children and Young People,CYP,Third Party Payments,EFA,31/08/2023,05-19086,"6,695.76",Speech and Language UK Services Ltd
Nottinghamshire County Council,1111/1001,Children and Young People,CYP,Third Party Payments,EFA,31/08/2023,05-19087,"6,695.76",Speech and Language UK Services Ltd
Nottinghamshire County Council,1111/1001,Children and Young People,CYP,Third Party Payments,EFA,31/08/2023,05-19088,"6,695.76",Speech and Language UK Services Ltd
Nottinghamshire County Council,1111/1001,Children and Young People,CYP,Third Party Payments,EFA,31/08/2023,05-19089,"6,695.76",Speech and Language UK Services Ltd
Nottinghamshire County Council,1111/1001,Children and Young People,CYP,Third Party Payments,EFA,31/08/2023,05-19090,"6,695.76",Speech and Language UK Services Ltd
Nottinghamshire County Council,1111/1001,Children and Young People,CYP,Third Party Payments,EFA,31/08/2023,05-19091,"6,695.76",Speech and Language UK Services Ltd
Nottinghamshire County Council,1111/1001,Children and Young People,CYP,Third Party Payments,EFA,31/08/2023,05-19092,"6,695.76",Speech and Language UK Services Ltd
Nottinghamshire County Council,1111/1001,Children and Young People,CYP,Third Party Payments,EFA,31/08/2023,05-19093,"6,695.76",Speech and Language UK Services Ltd
Nottinghamshire County Council,1111/1001,Children and Young People,CYP,Third Party Payments,EFA,31/08/2023,05-19094,"6,695.76",Speech and Language UK Services Ltd
Nottinghamshire County Council,1111/1001,Children and Young People,CYP,Third Party Payments,EFA,31/08/2023,05-19095,"6,695.76",Speech and Language UK Services Ltd
Nottinghamshire County Council,1111/1001,Children and Young People,CYP,Third Party Payments,EFA,31/08/2023,05-19097,"9,333.34",Acorn Care & Education Ltd
Nottinghamshire County Council,1111/1001,Children and Young People,CYP,Third Party Payments,EFA,31/08/2023,05-19098,"9,333.34",Acorn Care & Education Ltd
Nottinghamshire County Council,1111/1001,Children and Young People,CYP,Third Party Payments,EFA,31/08/2023,05-19099,"9,333.34",Acorn Care & Education Ltd
Nottinghamshire County Council,1111/1001,Children and Young People,CYP,Third Party Payments,EFA,31/08/2023,05-19100,"9,333.34",Acorn Care & Education Ltd
Nottinghamshire County Council,1111/1001,Children and Young People,CYP,Third Party Payments,EFA,31/08/2023,05-19101,"9,333.34",Acorn Care & Education Ltd
Nottinghamshire County Council,1111/1001,Children and Young People,CYP,Third Party Payments,EFA,31/08/2023,05-19102,"9,333.34",Acorn Care & Education Ltd
Nottinghamshire County Council,1111/1001,Children and Young People,CYP,Third Party Payments,EFA,31/08/2023,05-19105,"9,333.34",Acorn Care & Education Ltd
Nottinghamshire County Council,1111/1001,Children and Young People,CYP,Third Party Payments,EFA,31/08/2023,05-19106,"9,333.34",Acorn Care & Education Ltd
Nottinghamshire County Council,1111/1001,Children and Young People,CYP,Third Party Payments,EFA,31/08/2023,05-19107,"9,333.34",Acorn Care & Education Ltd
Nottinghamshire County Council,1111/1001,Children and Young People,CYP,Third Party Payments,EFA,31/08/2023,05-19108,"9,333.34",Acorn Care & Education Ltd
Nottinghamshire County Council,1111/1001,Children and Young People,CYP,Third Party Payments,EFA,31/08/2023,05-19109,"9,333.34",Acorn Care & Education Ltd
Nottinghamshire County Council,1111/1001,Children and Young People,CYP,Third Party Payments,EFA,31/08/2023,05-19110,"9,333.34",Acorn Care & Education Ltd
Nottinghamshire County Council,1111/1001,Children and Young People,CYP,Third Party Payments,EFA,31/08/2023,05-19111,"4,231.49",The SMB Group
Nottinghamshire County Council,1111/1001,Children and Young People,CYP,Third Party Payments,EFA,31/08/2023,05-19112,"9,333.34",Acorn Care & Education Ltd
Nottinghamshire County Council,1111/1001,Children and Young People,CYP,Third Party Payments,EFA,31/08/2023,05-19114,"6,695.76",Speech and Language UK Services Ltd
Nottinghamshire County Council,1111/1001,Children and Young People,CYP,Third Party Payments,EFA,31/08/2023,05-19115,"6,695.76",Speech and Language UK Services Ltd
Nottinghamshire County Council,1111/1001,Children and Young People,CYP,Third Party Payments,EFA,31/08/2023,05-19116,"9,333.34",Acorn Care & Education Ltd
Nottinghamshire County Council,1111/1001,Children and Young People,CYP,Third Party Payments,EFA,31/08/2023,05-19117,"9,333.34",Acorn Care & Education Ltd
Nottinghamshire County Council,1111/1001,Children and Young People,CYP,Third Party Payments,EFA,31/08/2023,05-19118,"6,695.76",Speech and Language UK Services Ltd
Nottinghamshire County Council,1111/1001,Children and Young People,CYP,Third Party Payments,EFA,31/08/2023,05-19119,"6,695.76",Speech and Language UK Services Ltd
Nottinghamshire County Council,1111/1001,Children and Young People,CYP,Third Party Payments,EFA,31/08/2023,05-19120,"6,695.76",Speech and Language UK Services Ltd
Nottinghamshire County Council,1111/1001,Children and Young People,CYP,Third Party Payments,EFA,31/08/2023,05-19122,"6,695.76",Speech and Language UK Services Ltd
Nottinghamshire County Council,1111/1001,Children and Young People,CYP,Third Party Payments,EFA,31/08/2023,05-19123,"6,695.76",Speech and Language UK Services Ltd
Nottinghamshire County Council,1111/1001,Children and Young People,CYP,Third Party Payments,EFA,31/08/2023,05-19127,"9,333.34",Acorn Care & Education Ltd
Nottinghamshire County Council,1111/1001,Children and Young People,CYP,Third Party Payments,EFA,31/08/2023,05-19129,"9,333.34",Acorn Care & Education Ltd
Nottinghamshire County Council,1111/1001,Children and Young People,CYP,Third Party Payments,EFA,31/08/2023,05-19130,"9,333.34",Acorn Care & Education Ltd
Nottinghamshire County Council,1111/1001,Children and Young People,CYP,Third Party Payments,EFA,31/08/2023,05-19132,"9,333.34",Acorn Care & Education Ltd
Nottinghamshire County Council,1111/1001,Children and Young People,CYP,Third Party Payments,EFA,31/08/2023,05-19133,"6,695.76",Speech and Language UK Services Ltd
Nottinghamshire County Council,1111/1001,Children and Young People,CYP,Third Party Payments,EFA,31/08/2023,05-19134,"6,695.76",Speech and Language UK Services Ltd
Nottinghamshire County Council,1111/1001,Children and Young People,CYP,Third Party Payments,EFA,31/08/2023,05-19135,"6,695.76",Speech and Language UK Services Ltd
Nottinghamshire County Council,1111/1001,Children and Young People,CYP,Third Party Payments,EFA,31/08/2023,05-19136,"6,695.76",Speech and Language UK Services Ltd
Nottinghamshire County Council,1111/1001,Children and Young People,CYP,Third Party Payments,EFA,31/08/2023,05-19137,"6,695.76",Speech and Language UK Services Ltd
Nottinghamshire County Council,1111/1001,Children and Young People,CYP,Third Party Payments,EFA,31/08/2023,05-19138,"6,695.76",Speech and Language UK Services Ltd
Nottinghamshire County Council,1111/1001,Children and Young People,CYP,Third Party Payments,EFA,31/08/2023,05-19139,"6,695.76",Speech and Language UK Services Ltd
Nottinghamshire County Council,1111/1001,Children and Young People,CYP,Third Party Payments,EFA,31/08/2023,05-19140,"6,695.76",Speech and Language UK Services Ltd
Nottinghamshire County Council,1111/1001,Children and Young People,CYP,Third Party Payments,EFA,31/08/2023,05-19144,"9,333.34",Acorn Care & Education Ltd
Nottinghamshire County Council,1111/1001,Children and Young People,CYP,Third Party Payments,EFA,31/08/2023,05-19145,"9,333.34",Acorn Care & Education Ltd
Nottinghamshire County Council,1111/1001,Children and Young People,CYP,Third Party Payments,EFA,31/08/2023,05-19146,"9,333.34",Acorn Care & Education Ltd
Nottinghamshire County Council,1111/1001,Children and Young People,CYP,Third Party Payments,EFA,31/08/2023,05-19147,"9,333.34",Acorn Care & Education Ltd
Nottinghamshire County Council,1111/1001,Children and Young People,CYP,Third Party Payments,EFA,31/08/2023,05-19148,"9,333.34",Acorn Care & Education Ltd
Nottinghamshire County Council,1111/1001,Children and Young People,CYP,Third Party Payments,EFA,31/08/2023,05-19149,"9,333.34",Acorn Care & Education Ltd
Nottinghamshire County Council,1111/1001,Children and Young People,CYP,Third Party Payments,EFA,31/08/2023,05-19150,"9,333.34",Acorn Care & Education Ltd
Nottinghamshire County Council,1111/1001,Children and Young People,CYP,Third Party Payments,EFA,31/08/2023,05-19151,"9,333.34",Acorn Care & Education Ltd
Nottinghamshire County Council,1111/1001,Children and Young People,CYP,Third Party Payments,EGA,01/08/2023,05-10027,"12,335.90",Treetops Nursery (Toton)
Nottinghamshire County Council,1111/1001,Children and Young People,CYP,Third Party Payments,EGA,01/08/2023,05-10028,"9,198.62",Treetops Nursery (Clipstone)
Nottinghamshire County Council,1111/1001,Children and Young People,CYP,Third Party Payments,EGA,01/08/2023,05-10029,"23,622.95",Treetops Nurseries (Workop)
Nottinghamshire County Council,1111/1001,Children and Young People,CYP,Third Party Payments,EGA,01/08/2023,05-18129,"26,062.13",Trauma in Mind Ltd
Nottinghamshire County Council,1111/1001,Children and Young People,CYP,Third Party Payments,EGA,03/08/2023,05-18139,"9,490.00",Smiles on Faces Ltd (Evoke 24)
Nottinghamshire County Council,1111/1001,Children and Young People,CYP,Third Party Payments,EGA,03/08/2023,05-18146,"10,710.00",Smiles on Faces Ltd (Evoke 24)
Nottinghamshire County Council,1111/1001,Children and Young People,CYP,Third Party Payments,EGA,03/08/2023,05-18193,572.04,True Fostering Ltd
Nottinghamshire County Council,1111/1001,Children and Young People,CYP,Third Party Payments,EGA,03/08/2023,05-18199,572.04,True Fostering Ltd
Nottinghamshire County Council,1111/1001,Children and Young People,CYP,Third Party Payments,EGA,03/08/2023,05-18216,"93,996.88",Safe Haven Accommodation Ltd
Nottinghamshire County Council,1111/1001,Children and Young People,CYP,Third Party Payments,EGA,04/08/2023,05-18115,"21,257.32",Chrysalis Consortium Ltd
Nottinghamshire County Council,1111/1001,Children and Young People,CYP,Third Party Payments,EGA,04/08/2023,05-18224,572.04,True Fostering Ltd
Nottinghamshire County Council,1111/1001,Children and Young People,CYP,Third Party Payments,EGA,04/08/2023,05-18240,"30,225.93",National Fostering Agency
Nottinghamshire County Council,1111/1001,Children and Young People,CYP,Third Party Payments,EGA,07/08/2023,05-18202,"8,300.00",Truly Care Services Ltd
Nottinghamshire County Council,1111/1001,Children and Young People,CYP,Third Party Payments,EGA,07/08/2023,05-18203,"47,793.01",Truly Care Services Ltd
Nottinghamshire County Council,1111/1001,Children and Young People,CYP,Third Party Payments,EGA,07/08/2023,05-18204,"26,486.78",Truly Care Services Ltd
Nottinghamshire County Council,1111/1001,Children and Young People,CYP,Third Party Payments,EGA,07/08/2023,05-18328,"3,764.40",Team Fostering
Nottinghamshire County Council,1111/1001,Children and Young People,CYP,Third Party Payments,EGA,07/08/2023,05-18329,"3,764.40",Team Fostering
Nottinghamshire County Council,1111/1001,Children and Young People,CYP,Third Party Payments,EGA,07/08/2023,05-18330,"3,764.40",Team Fostering
Nottinghamshire County Council,1111/1001,Children and Young People,CYP,Third Party Payments,EGA,07/08/2023,05-18331,"3,764.40",Team Fostering
Nottinghamshire County Council,1111/1001,Children and Young People,CYP,Third Party Payments,EGA,07/08/2023,05-18332,"3,764.40",Team Fostering
Nottinghamshire County Council,1111/1001,Children and Young People,CYP,Third Party Payments,EGA,07/08/2023,05-18333,"3,764.40",Team Fostering
Nottinghamshire County Council,1111/1001,Children and Young People,CYP,Third Party Payments,EGA,07/08/2023,05-18334,"3,764.40",Team Fostering
Nottinghamshire County Council,1111/1001,Children and Young People,CYP,Third Party Payments,EGA,07/08/2023,05-18335,"3,764.40",Team Fostering
Nottinghamshire County Council,1111/1001,Children and Young People,CYP,Third Party Payments,EGA,07/08/2023,05-18336,"3,764.40",Team Fostering
Nottinghamshire County Council,1111/1001,Children and Young People,CYP,Third Party Payments,EGA,07/08/2023,05-18339,"13,426.70",Jani Homes Nottingham Ltd (Placemen
Nottinghamshire County Council,1111/1001,Children and Young People,CYP,Third Party Payments,EGA,08/08/2023,05-11298,"1,097.76",Scottswood Pdn Ltd
Nottinghamshire County Council,1111/1001,Children and Young People,CYP,Third Party Payments,EGA,08/08/2023,05-18177,"23,914.33",Educ8 (Your Chapter Ltd)
Nottinghamshire County Council,1111/1001,Children and Young People,CYP,Third Party Payments,EGA,08/08/2023,05-18375,"258,562.18",Abbey Green Therapeutic Childrens S
Nottinghamshire County Council,1111/1001,Children and Young People,CYP,Third Party Payments,EGA,09/08/2023,05-11448,"1,999.99",Norman Galloway Ltd
Nottinghamshire County Council,1111/1001,Children and Young People,CYP,Third Party Payments,EGA,09/08/2023,05-18384,"110,534.60",Foster Care Associates Ltd
Nottinghamshire County Council,1111/1001,Children and Young People,CYP,Third Party Payments,EGA,09/08/2023,05-18385,"23,294.64",Esland North Ltd
Nottinghamshire County Council,1111/1001,Children and Young People,CYP,Third Party Payments,EGA,09/08/2023,05-18388,"110,534.60",Foster Care Associates Ltd
Nottinghamshire County Council,1111/1001,Children and Young People,CYP,Third Party Payments,EGA,09/08/2023,05-18391,"3,763.40",Fostering Dimensions Ltd
Nottinghamshire County Council,1111/1001,Children and Young People,CYP,Third Party Payments,EGA,09/08/2023,05-18392,"3,763.40",Fostering Dimensions Ltd
Nottinghamshire County Council,1111/1001,Children and Young People,CYP,Third Party Payments,EGA,09/08/2023,05-18411,"107,531.06",Metropolitan Care Solution Ltd (A&M
Nottinghamshire County Council,1111/1001,Children and Young People,CYP,Third Party Payments,EGA,09/08/2023,05-18419,"73,793.53",Framework Housing Association(Head
Nottinghamshire County Council,1111/1001,Children and Young People,CYP,Third Party Payments,EGA,09/08/2023,05-18421,"21,753.99",Framework Housing Association(Head
Nottinghamshire County Council,1111/1001,Children and Young People,CYP,Third Party Payments,EGA,09/08/2023,05-18446,"3,542.85",Brightside Care Solutions Ltd
Nottinghamshire County Council,1111/1001,Children and Young People,CYP,Third Party Payments,EGA,09/08/2023,05-18449,"30,437.15",Nevaeh Homes Ltd
Nottinghamshire County Council,1111/1001,Children and Young People,CYP,Third Party Payments,EGA,10/08/2023,05-18237,"18,406.87",East Midlands Care Matters (Head Of
Nottinghamshire County Council,1111/1001,Children and Young People,CYP,Third Party Payments,EGA,10/08/2023,05-18242,"19,956.87",East Midlands Care Matters (Head Of
Nottinghamshire County Council,1111/1001,Children and Young People,CYP,Third Party Payments,EGA,10/08/2023,05-18439,"1,300.00",Young People First Ltd
Nottinghamshire County Council,1111/1001,Children and Young People,CYP,Third Party Payments,EGA,10/08/2023,05-18465,"1,578.57",Young People First Ltd
Nottinghamshire County Council,1111/1001,Children and Young People,CYP,Third Party Payments,EGA,10/08/2023,05-18466,"2,600.00",Young People First Ltd
Nottinghamshire County Council,1111/1001,Children and Young People,CYP,Third Party Payments,EGA,10/08/2023,05-18483,"18,904.54",Star Fostering Ltd
Nottinghamshire County Council,1111/1001,Children and Young People,CYP,Third Party Payments,EGA,10/08/2023,05-18484,"18,904.54",Star Fostering Ltd
Nottinghamshire County Council,1111/1001,Children and Young People,CYP,Third Party Payments,EGA,10/08/2023,05-18486,"18,904.54",Star Fostering Ltd
Nottinghamshire County Council,1111/1001,Children and Young People,CYP,Third Party Payments,EGA,10/08/2023,05-18489,"18,904.54",Star Fostering Ltd
Nottinghamshire County Council,1111/1001,Children and Young People,CYP,Third Party Payments,EGA,10/08/2023,05-18492,"399,128.52",VRF Blue Mountain Homes Ltd
Nottinghamshire County Council,1111/1001,Children and Young People,CYP,Third Party Payments,EGA,10/08/2023,05-18495,"12,593.85",Treehouse Care Fostering Solutions
Nottinghamshire County Council,1111/1001,Children and Young People,CYP,Third Party Payments,EGA,10/08/2023,05-18507,"26,812.21",Footsteps To Futures
Nottinghamshire County Council,1111/1001,Children and Young People,CYP,Third Party Payments,EGA,10/08/2023,05-18508,"6,676.55",YMCA Robin Hood Group(Head Office)
Nottinghamshire County Council,1111/1001,Children and Young People,CYP,Third Party Payments,EGA,10/08/2023,05-18510,"6,676.55",YMCA Robin Hood Group(Head Office)
